Workbook

Sheet Readme
B2: KAPA Library Quantification Kit (Illumina® platforms) | T2: CG000157 Rev A
B4: Chromium Connect Library Quantification Worksheet
B8: This spreadsheet is a modification of the Data Analysis Template provided by KAPA Biosciences for analysis of NGS library quantification data generated with the KAPA Library Quantification Kit (Illumina® platforms). It has been adjusted to include format-specific settings and information for using the KAPA Library Quantification Kit on the 10x Genomics Chromium Connect instrument.
B13: For information on the complete Chromium Connect protocol, consult the Chromium Connect Instrument User Guide (CG000180) and the Chromium Next GEM Automated Single Cell 3' Reagent Kits v3.1 User Guide (CG000286)
B17: The "Chromium Connect Assay Info" tab in this Excel sheet collects sample names and library sizes for a given Chromium Connect Assay.
B18: The "Cq Data Input" tab collects Cq information for each sample generated by the quantification kit. The "Analysis" and "Summary" tabs analyze and summarize the data.
B19: The fourth sheet can also be used to calculate the yield of each quantified library by entering the library volumes in the designated column.
B20: Tabs marked "example" provide example data to show what final data analysis may look like.
B22: Data analysis consists of three parts:
B24: 1. Review Cq values for the six DNA Standards to evaluate the reliability of the data:
B26: This excel sheet will automatically import Cq values entered into "Cq data input" into relevant cells in the "Analysis" tab.
B28: - If the Cq value for any replicate varies by more than +/- 0.25 of a cycle from the other value(s) (as calculated in column I), that replicate should
B29: be regarded as an outlier, and moved to column G. If a value is designated an outlier, delete the formula in the corresponding row of column I.
B30: The difference of 0.25 cycles is arbitrary and instrument-dependent. When deciding on what to classify as an outlier, keep in mind that 1 cycle
B31: represents a 2-fold difference in concentration.
B32: - The average Cq value for each DNA Standard should be ~3.3 cycles later than the DNA Standard that is 10-fold more concentrated (between
B33: 3.2 and 3.45 is very good, whereas 3.1 - 3.6 is acceptable). If the spacing between any two standards is less than 3.1 cycles and more than
B34: 3.6 cycles, the corresponding Delta Cq cell in column J will change to red. One or more red Delta Cq cells are an indication of unacceptable
B35: experimental variation. The assay will most likely not yield reliable library concentrations, and should be repeated. Please refer to the KAPA
B36: Library Quantification Kit Technical Data Sheet and the KAPA Library Quantification Technical Guide for detailed discussions related to
B37: experimental factors that can affect the reliability of the assay.
B38: - The Delta Cq between no template control (NTC) reactions and DNA Standard 6 should preferably be ≥3 cycles.
B40: 2. Generate and review the standard curve and reaction efficiency:
B42: Data from the previous section are used to generate the standard curve and calculate the amplification efficiency for the six DNA standards.
B43: Key parameters are calculated using two different methods, and guidelines for interpreting results are provided.
B44: - At least one and a maximum of two DNA Standards may be omitted from the standard curve (if Cq values for those Standards are deemed to
B45: be unreliable). This can be done by modifying the data range for the graph and formulae in cells D47, D48, D49 and D53. When omitting
B46: DNA Standards from the curve, remember that the curve may not be extrapolated, and concentrations of libraries with an average Cq value
B47: outside of the range of the (modified) standard curve may not be calculated.
B49: 3. Calculate library concentrations:
B51: The slope and intercept of the standard curve are used to calculate the concentrations of library samples.
B52: Please refer to Section 5 of the KAPA Library Quantification Kit Technical Data Sheet for complete guidelines.
B53: - If more than one dilution of a library was assayed, the Delta Cq column may be used to assess whether calculated concentrations are likely to
B54: be reliable. For example, if the Delta Cq for consecutive 2-fold dilutions falls outside the range of 0.9 - 1.1 cycles, it is an indication that serial
B55: dilutions were not made with a high degree of accuracy, and that calculated concentrations may be unreliable as a result.
B56: - If more than one dilution of a library was assayed, use the % Deviation column to determine the working concentration of the
B57: library. If the library concentrations calculated from multiple dilutions falls within 10% from one another, use the average of the concentrations.
B58: If the calculated concentrations differ by more than 10%, use the average concentration from the dilutions that are deemed (most) reliable.
B59: In such cases, modify the formula for calculating the working concentration accordingly.
B62: Calculated library concentrations are exported to the table in the Summary sheet following the Analysis sheet. The amount of each library
B63: available for the next step in your workflow may be calculated by inserting library volumes in the designated column. This worksheet may be
B64: extended and customized to calculate other library parameters (e.g. conversion rates, volumes needed for pooling) as per your specific requirements.
B66: Readme text highlighted in aqua was written by 10x Genomics.
B70: © 2020 10X Genomics, Inc. FOR RESEARCH USE ONLY. NOT FOR USE IN DIAGNOSTIC PROCEDURES. | N70: Contact:
N71: support@10xgenomics.com
N72: 10x Genomics
N73: 6230 Stoneridge Mall Road
N74: Pleasanton, CA 94588 USA

Sheet 1 dilution - Analysis (hidden)
C3: Section 1. Review Cq values for DNA Standards
C5: - Enter the appropriate information into the fields highlighted in green.
C6: - Move "outliers" to column G (so these are no longer is used in calculations). Delete the formula in the corresponding row in column I.
C7: - The average Cq value for each DNA Standard should be ~3.3 cycles later than the DNA Standard that is 10-fold more concentrated (between 3.2 and 3.45 is very good
C8: and 3.1 - 3.6 is acceptable).
C9: - If the spacing between any two standards is less than 3.1 cycles and more than 3.6 cycles, those data points (and any library samples falling between those
C10: data points) are not highly reliable.
C13: Well | D13: Std # | E13: Conc (pM) | F13: Cq | G13: Outliers | H13: Av Cq | I13: Difference | J13: Delta Cq
D14: 1 | E14: 20 | H14: =AVERAGE(F14:F16) ->  | I14: =F14-$H$14 ->  | J14: -
D15: 1 | E15: 20 | I15: =F15-$H$14 -> 
D16: 1 | E16: 20 | I16: =F16-$H$14 ->  | J16: =H17-H14 -> 
D17: 2 | E17: 2 | H17: =AVERAGE(F17:F19) ->  | I17: =F17-$H$17 -> 
D18: 2 | E18: 2 | I18: =F18-$H$17 -> 
D19: 2 | E19: 2 | I19: =F19-$H$17 ->  | J19: =H20-H17 -> 
D20: 3 | E20: 0.2 | H20: =AVERAGE(F20:F22) ->  | I20: =F20-$H$20 -> 
D21: 3 | E21: 0.2 | I21: =F21-$H$20 -> 
D22: 3 | E22: 0.2 | I22: =F22-$H$20 ->  | J22: =H23-H20 -> 
D23: 4 | E23: 0.02 | H23: =AVERAGE(F23:F25) ->  | I23: =F23-$H$23 -> 
D24: 4 | E24: 0.02 | I24: =F24-$H$23 -> 
D25: 4 | E25: 0.02 | I25: =F25-$H$23 ->  | J25: =H26-H23 -> 
D26: 5 | E26: 0.002 | H26: =AVERAGE(F26:F28) ->  | I26: =F26-$H$26 -> 
D27: 5 | E27: 0.002 | I27: =F27-$H$26 -> 
D28: 5 | E28: 0.002 | I28: =F28-$H$26 ->  | J28: =H29-H26 -> 
D29: 6 | E29: 0.0002 | H29: =AVERAGE(F29:F31) ->  | I29: =F29-$H$29 -> 
D30: 6 | E30: 0.0002 | I30: =F30-$H$29 -> 
D31: 6 | E31: 0.0002 | I31: =F31-$H$29 ->  | J31: =H32-H29 -> 
D32: NTC | E32: - | H32: =AVERAGE(F32:F34) -> 
D33: NTC | E33: -
D34: NTC | E34: -
C40: Section 2. Generate and review the standard curve
C42: - Type the value for the intercept from the graph to the right into cell D57.
C43: - Type the value for the slope from the graph to the right into cell D59. | K43: Note: if the standard curve equation does not update, click on the line, right click and select
K44: Format Trendline. (Untick and) tick the boxes for "Display Equation and R-squared value on chart"
C47: DNA Standard | D47: Conc in pM | E47: Log conc | F47: Average Cq | G47: Delta Cq
C48: 1 | D48: 20 | E48: =LOG(D48) -> 1.301029996 | F48: =H14 ->  | G48: -
C49: 2 | D49: 2 | E49: 0.3010299957 | F49: =H17 ->  | G49: =F49-F48 ->  | H49: Should be between 3.1 and 3.6
C50: 3 | D50: 0.2 | E50: -0.6989700043 | F50: =H20 ->  | G50: =F50-F49 -> 
C51: 4 | D51: 0.02 | E51: -1.698970004 | F51: =H23 ->  | G51: =F51-F50 -> 
C52: 5 | D52: 0.002 | E52: -2.698970004 | F52: =H26 ->  | G52: =F52-F51 -> 
C53: 6 | D53: 0.0002 | E53: -3.698970004 | F53: =H29 ->  | G53: =F53-F52 -> 
C54: Efficiency: | D54: =POWER(10, 1/(-SLOPE(F48:F53, LOG(D48:D53))))-1 ->  | E54: (Calculated) | F54: Should be between 90 and 110%
C55: Slope: | D55: =SLOPE(F48:F53, LOG(D48:D53)) ->  | E55: (Calculated) | F55: Value must be the same as on the graph
C56: R-squared: | D56: =RSQ(F48:F53, -LOG(D48:D53)) ->  | E56: (Calculated) | F56: Should be between 0.99 and 1.00
C57: Intercept: | D57: 11.217 | E57: (Type the intercept value from the graph in cell D57)
C59: If slope = | D59: -3.2394 | E59: (Type the slope value from the graph in cell D59)
C60: then efficiency = | D60: =POWER(10, (-1/D59))-1 -> 1.035631402 | E60: (Calculated) | F60: Value must be the same as in cell D54
C63: Note: it is important to type the appropriate values from the straight line equation into the two green blocks,
C64: as the table in Section 3 uses these two values to calculate the concentration of the library samples.
C70: Section 3. Calculate and review library concentrations
C72: - Sort the data for your library samples by grouping the Cq values for different dilutions of the same sample together. Enter the appropriate information into the fields highlighted in green (Columns C - G).
C73: - Move the outliers to Column H, so these are no longer is used in calculations. If you move a Cq value (outlier) from column F to H, you have to delete the formula in column J of that row.
C75: If the average Cq value for a library < than the average Cq value for Std 1, or > than the average Cq value for Std 6, the data from that dilution may not be used in calculations (i.e. you may not extrapolate). If only one dilution of each library was assayed, the library has to
C76: requantified using a more appropriate dilution.
C79: Library # | D79: Sample name | E79: Dilution | F79: Cq | G79: Average fragment length (bp) | H79: Outliers/ outside curve | I79: Average Cq | J79: Difference | K79: log (concentration) | L79: Average concentration (pM) | M79: Size-adjusted concentration (pM) | N79: Concentration of undiluted library (pM) | O79: Concentration of undiluted library (nM) | P79: Concentration of undiluted library (ng/µL)
C80: 1 | I80: =AVERAGE(F80:F82) ->  | J80: =F80-I80 ->  | K80: =(I80-$D$57)/$D$59 ->  | L80: =10^K80 ->  | M80: =L80*(452/G80) ->  | N80: =M80*E80 ->  | O80: =N80/1000 ->  | P80: =((O80*10^-12)*(G80*617.9))*10^-6*10^9*10^3 -> 
J81: =F81-I80 -> 
J82: =F82-I80 -> 
C83: 2 | I83: =AVERAGE(F83:F85) ->  | J83: =F83-I83 ->  | K83: =(I83-$D$57)/$D$59 ->  | L83: =10^K83 ->  | M83: =L83*(452/G83) ->  | N83: =M83*E83 ->  | O83: =N83/1000 ->  | P83: =((O83*10^-12)*(G83*617.9))*10^-6*10^9*10^3 -> 
J84: =F84-I83 -> 
J85: =F85-I83 -> 
C86: 3 | I86: =AVERAGE(F86:F88) ->  | J86: =F86-I86 ->  | K86: =(I86-$D$57)/$D$59 ->  | L86: =10^K86 ->  | M86: =L86*(452/G86) ->  | N86: =M86*E86 ->  | O86: =N86/1000 ->  | P86: =((O86*10^-12)*(G86*617.9))*10^-6*10^9*10^3 -> 
J87: =F87-I86 -> 
J88: =F88-I86 -> 
C89: 4 | I89: =AVERAGE(F89:F91) ->  | J89: =F89-I89 ->  | K89: =(I89-$D$57)/$D$59 ->  | L89: =10^K89 ->  | M89: =L89*(452/G89) ->  | N89: =M89*E89 ->  | O89: =N89/1000 ->  | P89: =((O89*10^-12)*(G89*617.9))*10^-6*10^9*10^3 -> 
J90: =F90-I89 -> 
J91: =F91-I89 -> 
C92: 5 | I92: =AVERAGE(F92:F94) ->  | J92: =F92-I92 ->  | K92: =(I92-$D$57)/$D$59 ->  | L92: =10^K92 ->  | M92: =L92*(452/G92) ->  | N92: =M92*E92 ->  | O92: =N92/1000 ->  | P92: =((O92*10^-12)*(G92*617.9))*10^-6*10^9*10^3 -> 
J93: =F93-I92 -> 
J94: =F94-I92 -> 
C95: 6 | I95: =AVERAGE(F95:F97) ->  | J95: =F95-I95 ->  | K95: =(I95-$D$57)/$D$59 ->  | L95: =10^K95 ->  | M95: =L95*(452/G95) ->  | N95: =M95*E95 ->  | O95: =N95/1000 ->  | P95: =((O95*10^-12)*(G95*617.9))*10^-6*10^9*10^3 -> 
J96: =F96-I95 -> 
J97: =F97-I95 -> 
C98: 7 | I98: =AVERAGE(F98:F100) ->  | J98: =F98-I98 ->  | K98: =(I98-$D$57)/$D$59 ->  | L98: =10^K98 ->  | M98: =L98*(452/G98) ->  | N98: =M98*E98 ->  | O98: =N98/1000 ->  | P98: =((O98*10^-12)*(G98*617.9))*10^-6*10^9*10^3 -> 
J99: =F99-I98 -> 
J100: =F100-I98 -> 
C101: 8 | I101: =AVERAGE(F101:F103) ->  | J101: =F101-I101 ->  | K101: =(I101-$D$57)/$D$59 ->  | L101: =10^K101 ->  | M101: =L101*(452/G101) ->  | N101: =M101*E101 ->  | O101: =N101/1000 ->  | P101: =((O101*10^-12)*(G101*617.9))*10^-6*10^9*10^3 -> 
J102: =F102-I101 -> 
J103: =F103-I101 -> 
C104: 9 | I104: =AVERAGE(F104:F106) ->  | J104: =F104-I104 ->  | K104: =(I104-$D$57)/$D$59 ->  | L104: =10^K104 ->  | M104: =L104*(452/G104) ->  | N104: =M104*E104 ->  | O104: =N104/1000 ->  | P104: =((O104*10^-12)*(G104*617.9))*10^-6*10^9*10^3 -> 
J105: =F105-I104 -> 
J106: =F106-I104 -> 
C107: 10 | I107: =AVERAGE(F107:F109) ->  | J107: =F107-I107 ->  | K107: =(I107-$D$57)/$D$59 ->  | L107: =10^K107 ->  | M107: =L107*(452/G107) ->  | N107: =M107*E107 ->  | O107: =N107/1000 ->  | P107: =((O107*10^-12)*(G107*617.9))*10^-6*10^9*10^3 -> 
J108: =F108-I107 -> 
J109: =F109-I107 -> 
C110: 11 | I110: =AVERAGE(F110:F112) ->  | J110: =F110-I110 ->  | K110: =(I110-$D$57)/$D$59 ->  | L110: =10^K110 ->  | M110: =L110*(452/G110) ->  | N110: =M110*E110 ->  | O110: =N110/1000 ->  | P110: =((O110*10^-12)*(G110*617.9))*10^-6*10^9*10^3 -> 
J111: =F111-I110 -> 
J112: =F112-I110 -> 
C113: 12 | I113: =AVERAGE(F113:F115) ->  | J113: =F113-I113 ->  | K113: =(I113-$D$57)/$D$59 ->  | L113: =10^K113 ->  | M113: =L113*(452/G113) ->  | N113: =M113*E113 ->  | O113: =N113/1000 ->  | P113: =((O113*10^-12)*(G113*617.9))*10^-6*10^9*10^3 -> 
J114: =F114-I113 -> 
J115: =F115-I113 -> 
C116: 13 | I116: =AVERAGE(F116:F118) ->  | J116: =F116-I116 ->  | K116: =(I116-$D$57)/$D$59 ->  | L116: =10^K116 ->  | M116: =L116*(452/G116) ->  | N116: =M116*E116 ->  | O116: =N116/1000 ->  | P116: =((O116*10^-12)*(G116*617.9))*10^-6*10^9*10^3 -> 
J117: =F117-I116 -> 
J118: =F118-I116 -> 
C119: 14 | I119: =AVERAGE(F119:F121) ->  | J119: =F119-I119 ->  | K119: =(I119-$D$57)/$D$59 ->  | L119: =10^K119 ->  | M119: =L119*(452/G119) ->  | N119: =M119*E119 ->  | O119: =N119/1000 ->  | P119: =((O119*10^-12)*(G119*617.9))*10^-6*10^9*10^3 -> 
J120: =F120-I119 -> 
J121: =F121-I119 -> 
C122: 15 | I122: =AVERAGE(F122:F124) ->  | J122: =F122-I122 ->  | K122: =(I122-$D$57)/$D$59 ->  | L122: =10^K122 ->  | M122: =L122*(452/G122) ->  | N122: =M122*E122 ->  | O122: =N122/1000 ->  | P122: =((O122*10^-12)*(G122*617.9))*10^-6*10^9*10^3 -> 
J123: =F123-I122 -> 
J124: =F124-I122 -> 
C125: 16 | I125: =AVERAGE(F125:F127) ->  | J125: =F125-I125 ->  | K125: =(I125-$D$57)/$D$59 ->  | L125: =10^K125 ->  | M125: =L125*(452/G125) ->  | N125: =M125*E125 ->  | O125: =N125/1000 ->  | P125: =((O125*10^-12)*(G125*617.9))*10^-6*10^9*10^3 -> 
J126: =F126-I125 -> 
J127: =F127-I125 -> 
C128: 17 | I128: =AVERAGE(F128:F130) ->  | J128: =F128-I128 ->  | K128: =(I128-$D$57)/$D$59 ->  | L128: =10^K128 ->  | M128: =L128*(452/G128) ->  | N128: =M128*E128 ->  | O128: =N128/1000 ->  | P128: =((O128*10^-12)*(G128*617.9))*10^-6*10^9*10^3 -> 
J129: =F129-I128 -> 
J130: =F130-I128 -> 
C131: 18 | I131: =AVERAGE(F131:F133) ->  | J131: =F131-I131 ->  | K131: =(I131-$D$57)/$D$59 ->  | L131: =10^K131 ->  | M131: =L131*(452/G131) ->  | N131: =M131*E131 ->  | O131: =N131/1000 -> 
J132: =F132-I131 -> 
J133: =F133-I131 -> 
C134: 19 | I134: =AVERAGE(F134:F136) ->  | J134: =F134-I134 ->  | K134: =(I134-$D$57)/$D$59 ->  | L134: =10^K134 ->  | M134: =L134*(452/G134) ->  | N134: =M134*E134 ->  | O134: =N134/1000 -> 
J135: =F135-I134 -> 
J136: =F136-I134 -> 
C137: 20 | I137: =AVERAGE(F137:F139) ->  | J137: =F137-I137 ->  | K137: =(I137-$D$57)/$D$59 ->  | L137: =10^K137 ->  | M137: =L137*(452/G137) ->  | N137: =M137*E137 ->  | O137: =N137/1000 ->  | P137: =((O137*10^-12)*(G137*617.9))*10^-6*10^9*10^3 -> 
J138: =F138-I137 -> 
J139: =F139-I137 -> 
C140: 21 | I140: =AVERAGE(F140:F142) ->  | J140: =F140-I140 ->  | K140: =(I140-$D$57)/$D$59 ->  | L140: =10^K140 ->  | M140: =L140*(452/G140) ->  | N140: =M140*E140 ->  | O140: =N140/1000 ->  | P140: =((O140*10^-12)*(G140*617.9))*10^-6*10^9*10^3 -> 
J141: =F141-I140 -> 
J142: =F142-I140 -> 
C143: 22 | I143: =AVERAGE(F143:F145) ->  | J143: =F143-I143 ->  | K143: =(I143-$D$57)/$D$59 ->  | L143: =10^K143 ->  | M143: =L143*(452/G143) ->  | N143: =M143*E143 ->  | O143: =N143/1000 ->  | P143: =((O143*10^-12)*(G143*617.9))*10^-6*10^9*10^3 -> 
J144: =F144-I143 -> 
J145: =F145-I143 -> 
C146: 23 | I146: =AVERAGE(F146:F148) ->  | J146: =F146-I146 ->  | K146: =(I146-$D$57)/$D$59 ->  | L146: =10^K146 ->  | M146: =L146*(452/G146) ->  | N146: =M146*E146 ->  | O146: =N146/1000 ->  | P146: =((O146*10^-12)*(G146*617.9))*10^-6*10^9*10^3 -> 
J147: =F147-I146 -> 
J148: =F148-I146 -> 
C149: 24 | I149: =AVERAGE(F149:F151) ->  | J149: =F149-I149 ->  | K149: =(I149-$D$57)/$D$59 ->  | L149: =10^K149 ->  | M149: =L149*(452/G149) ->  | N149: =M149*E149 ->  | O149: =N149/1000 ->  | P149: =((O149*10^-12)*(G149*617.9))*10^-6*10^9*10^3 -> 
J150: =F150-I149 -> 
J151: =F151-I149 -> 
C152: 25 | I152: =AVERAGE(F152:F154) ->  | J152: =F152-I152 ->  | K152: =(I152-$D$57)/$D$59 ->  | L152: =10^K152 ->  | M152: =L152*(452/G152) ->  | N152: =M152*E152 ->  | O152: =N152/1000 ->  | P152: =((O152*10^-12)*(G152*617.9))*10^-6*10^9*10^3 -> 
J153: =F153-I152 -> 
J154: =F154-I152 -> 
C155: 26 | I155: =AVERAGE(F155:F157) ->  | J155: =F155-I155 ->  | K155: =(I155-$D$57)/$D$59 ->  | L155: =10^K155 ->  | M155: =L155*(452/G155) ->  | N155: =M155*E155 ->  | O155: =N155/1000 ->  | P155: =((O155*10^-12)*(G155*617.9))*10^-6*10^9*10^3 -> 
J156: =F156-I155 -> 
J157: =F157-I155 -> 
C158: 27 | I158: =AVERAGE(F158:F160) ->  | J158: =F158-I158 ->  | K158: =(I158-$D$57)/$D$59 ->  | L158: =10^K158 ->  | M158: =L158*(452/G158) ->  | N158: =M158*E158 ->  | O158: =N158/1000 ->  | P158: =((O158*10^-12)*(G158*617.9))*10^-6*10^9*10^3 -> 
J159: =F159-I158 -> 
J160: =F160-I158 -> 
C161: 28 | I161: =AVERAGE(F161:F163) ->  | J161: =F161-I161 ->  | K161: =(I161-$D$57)/$D$59 ->  | L161: =10^K161 ->  | M161: =L161*(452/G161) ->  | N161: =M161*E161 ->  | O161: =N161/1000 ->  | P161: =((O161*10^-12)*(G161*617.9))*10^-6*10^9*10^3 -> 
J162: =F162-I161 -> 
J163: =F163-I161 -> 
C164: 29 | I164: =AVERAGE(F164:F166) ->  | J164: =F164-I164 ->  | K164: =(I164-$D$57)/$D$59 ->  | L164: =10^K164 ->  | M164: =L164*(452/G164) ->  | N164: =M164*E164 ->  | O164: =N164/1000 ->  | P164: =((O164*10^-12)*(G164*617.9))*10^-6*10^9*10^3 -> 
J165: =F165-I164 -> 
J166: =F166-I164 -> 
C167: 30 | I167: =AVERAGE(F167:F169) ->  | J167: =F167-I167 ->  | K167: =(I167-$D$57)/$D$59 ->  | L167: =10^K167 ->  | M167: =L167*(452/G167) ->  | N167: =M167*E167 ->  | O167: =N167/1000 ->  | P167: =((O167*10^-12)*(G167*617.9))*10^-6*10^9*10^3 -> 
J168: =F168-I167 -> 
J169: =F169-I167 -> 
C170: 31 | I170: =AVERAGE(F170:F172) ->  | J170: =F170-I170 ->  | K170: =(I170-$D$57)/$D$59 ->  | L170: =10^K170 ->  | M170: =L170*(452/G170) ->  | N170: =M170*E170 ->  | O170: =N170/1000 ->  | P170: =((O170*10^-12)*(G170*617.9))*10^-6*10^9*10^3 -> 
J171: =F171-I170 -> 
J172: =F172-I170 -> 
C173: 32 | I173: =AVERAGE(F173:F175) ->  | J173: =F173-I173 ->  | K173: =(I173-$D$57)/$D$59 ->  | L173: =10^K173 ->  | M173: =L173*(452/G173) ->  | N173: =M173*E173 ->  | O173: =N173/1000 ->  | P173: =((O173*10^-12)*(G173*617.9))*10^-6*10^9*10^3 -> 
J174: =F174-I173 -> 
J175: =F175-I173 -> 
C176: 33 | I176: =AVERAGE(F176:F178) ->  | J176: =F176-I176 ->  | K176: =(I176-$D$57)/$D$59 ->  | L176: =10^K176 ->  | M176: =L176*(452/G176) ->  | N176: =M176*E176 ->  | O176: =N176/1000 ->  | P176: =((O176*10^-12)*(G176*617.9))*10^-6*10^9*10^3 -> 
J177: =F177-I176 -> 
J178: =F178-I176 -> 
C179: 34 | I179: =AVERAGE(F179:F181) ->  | J179: =F179-I179 ->  | K179: =(I179-$D$57)/$D$59 ->  | L179: =10^K179 ->  | M179: =L179*(452/G179) ->  | N179: =M179*E179 ->  | O179: =N179/1000 ->  | P179: =((O179*10^-12)*(G179*617.9))*10^-6*10^9*10^3 -> 
J180: =F180-I179 -> 
J181: =F181-I179 -> 
C182: 35 | I182: =AVERAGE(F182:F184) ->  | J182: =F182-I182 ->  | K182: =(I182-$D$57)/$D$59 ->  | L182: =10^K182 ->  | M182: =L182*(452/G182) ->  | N182: =M182*E182 ->  | O182: =N182/1000 ->  | P182: =((O182*10^-12)*(G182*617.9))*10^-6*10^9*10^3 -> 
J183: =F183-I182 -> 
J184: =F184-I182 -> 
C185: 36 | I185: =AVERAGE(F185:F187) ->  | J185: =F185-I185 ->  | K185: =(I185-$D$57)/$D$59 ->  | L185: =10^K185 ->  | M185: =L185*(452/G185) ->  | N185: =M185*E185 ->  | O185: =N185/1000 ->  | P185: =((O185*10^-12)*(G185*617.9))*10^-6*10^9*10^3 -> 
J186: =F186-I185 -> 
J187: =F187-I185 -> 
C188: 37 | I188: =AVERAGE(F188:F190) ->  | J188: =F188-I188 ->  | K188: =(I188-$D$57)/$D$59 ->  | L188: =10^K188 ->  | M188: =L188*(452/G188) ->  | N188: =M188*E188 ->  | O188: =N188/1000 ->  | P188: =((O188*10^-12)*(G188*617.9))*10^-6*10^9*10^3 -> 
J189: =F189-I188 -> 
J190: =F190-I188 -> 
C191: 38 | I191: =AVERAGE(F191:F193) ->  | J191: =F191-I191 ->  | K191: =(I191-$D$57)/$D$59 ->  | L191: =10^K191 ->  | M191: =L191*(452/G191) ->  | N191: =M191*E191 ->  | O191: =N191/1000 ->  | P191: =((O191*10^-12)*(G191*617.9))*10^-6*10^9*10^3 -> 
J192: =F192-I191 -> 
J193: =F193-I191 -> 
C194: 39 | I194: =AVERAGE(F194:F196) ->  | J194: =F194-I194 ->  | K194: =(I194-$D$57)/$D$59 ->  | L194: =10^K194 ->  | M194: =L194*(452/G194) ->  | N194: =M194*E194 ->  | O194: =N194/1000 ->  | P194: =((O194*10^-12)*(G194*617.9))*10^-6*10^9*10^3 -> 
J195: =F195-I194 -> 
J196: =F196-I194 -> 
C197: 40 | I197: =AVERAGE(F197:F199) ->  | J197: =F197-I197 ->  | K197: =(I197-$D$57)/$D$59 ->  | L197: =10^K197 ->  | M197: =L197*(452/G197) ->  | N197: =M197*E197 ->  | O197: =N197/1000 ->  | P197: =((O197*10^-12)*(G197*617.9))*10^-6*10^9*10^3 -> 
J198: =F198-I197 -> 
J199: =F199-I197 -> 
C200: 41 | I200: =AVERAGE(F200:F202) ->  | J200: =F200-I200 ->  | K200: =(I200-$D$57)/$D$59 ->  | L200: =10^K200 ->  | M200: =L200*(452/G200) ->  | N200: =M200*E200 ->  | O200: =N200/1000 ->  | P200: =((O200*10^-12)*(G200*617.9))*10^-6*10^9*10^3 -> 
J201: =F201-I200 -> 
J202: =F202-I200 -> 
C203: 42 | I203: =AVERAGE(F203:F205) ->  | J203: =F203-I203 ->  | K203: =(I203-$D$57)/$D$59 ->  | L203: =10^K203 ->  | M203: =L203*(452/G203) ->  | N203: =M203*E203 ->  | O203: =N203/1000 ->  | P203: =((O203*10^-12)*(G203*617.9))*10^-6*10^9*10^3 -> 
J204: =F204-I203 -> 
J205: =F205-I203 -> 
C206: 43 | I206: =AVERAGE(F206:F208) ->  | J206: =F206-I206 ->  | K206: =(I206-$D$57)/$D$59 ->  | L206: =10^K206 ->  | M206: =L206*(452/G206) ->  | N206: =M206*E206 ->  | O206: =N206/1000 ->  | P206: =((O206*10^-12)*(G206*617.9))*10^-6*10^9*10^3 -> 
J207: =F207-I206 -> 
J208: =F208-I206 -> 
C209: 44 | I209: =AVERAGE(F209:F211) ->  | J209: =F209-I209 ->  | K209: =(I209-$D$57)/$D$59 ->  | L209: =10^K209 ->  | M209: =L209*(452/G209) ->  | N209: =M209*E209 ->  | O209: =N209/1000 ->  | P209: =((O209*10^-12)*(G209*617.9))*10^-6*10^9*10^3 -> 
J210: =F210-I209 -> 
J211: =F211-I209 -> 
C212: 45 | I212: =AVERAGE(F212:F214) ->  | J212: =F212-I212 ->  | K212: =(I212-$D$57)/$D$59 ->  | L212: =10^K212 ->  | M212: =L212*(452/G212) ->  | N212: =M212*E212 ->  | O212: =N212/1000 ->  | P212: =((O212*10^-12)*(G212*617.9))*10^-6*10^9*10^3 -> 
J213: =F213-I212 -> 
J214: =F214-I212 -> 
C215: 46 | I215: =AVERAGE(F215:F217) ->  | J215: =F215-I215 ->  | K215: =(I215-$D$57)/$D$59 ->  | L215: =10^K215 ->  | M215: =L215*(452/G215) ->  | N215: =M215*E215 ->  | O215: =N215/1000 ->  | P215: =((O215*10^-12)*(G215*617.9))*10^-6*10^9*10^3 -> 
J216: =F216-I215 -> 
J217: =F217-I215 -> 
C218: 47 | I218: =AVERAGE(F218:F220) ->  | J218: =F218-I218 ->  | K218: =(I218-$D$57)/$D$59 ->  | L218: =10^K218 ->  | M218: =L218*(452/G218) ->  | N218: =M218*E218 ->  | O218: =N218/1000 ->  | P218: =((O218*10^-12)*(G218*617.9))*10^-6*10^9*10^3 -> 
J219: =F219-I218 -> 
J220: =F220-I218 -> 
C221: 48 | I221: =AVERAGE(F221:F223) ->  | J221: =F221-I221 ->  | K221: =(I221-$D$57)/$D$59 ->  | L221: =10^K221 ->  | M221: =L221*(452/G221) ->  | N221: =M221*E221 ->  | O221: =N221/1000 ->  | P221: =((O221*10^-12)*(G221*617.9))*10^-6*10^9*10^3 -> 
J222: =F222-I221 -> 
J223: =F223-I221 -> 
C224: 49 | I224: =AVERAGE(F224:F226) ->  | J224: =F224-I224 ->  | K224: =(I224-$D$57)/$D$59 ->  | L224: =10^K224 ->  | M224: =L224*(452/G224) ->  | N224: =M224*E224 ->  | O224: =N224/1000 ->  | P224: =((O224*10^-12)*(G224*617.9))*10^-6*10^9*10^3 -> 
J225: =F225-I224 -> 
... 142 more rows

Sheet 1 dilution - Summary (hidden)
C3: Library concentrations and yields
C5: Sample name | D5: Concentration of undiluted library (pM) | E5: Concentration of undiluted library (nM) | F5: Concentration of undiluted library (ng/µL) | G5: Library volume (µL) | H5: Available amount of library (ng)
C6: ='1 dilution - Analysis'!D80 -> 0 | D6: ='1 dilution - Analysis'!N80 ->  | E6: ='1 dilution - Analysis'!O80 ->  | F6: ='1 dilution - Analysis'!P80 ->  | G6: 25 | H6: =F6*G6 -> 
C7: ='1 dilution - Analysis'!D83 -> 0 | D7: ='1 dilution - Analysis'!N83 ->  | E7: ='1 dilution - Analysis'!O83 ->  | F7: ='1 dilution - Analysis'!P83 ->  | G7: 25 | H7: =F7*G7 -> 
C8: ='1 dilution - Analysis'!D86 -> 0 | D8: ='1 dilution - Analysis'!N86 ->  | E8: ='1 dilution - Analysis'!O86 ->  | F8: ='1 dilution - Analysis'!P86 ->  | G8: 25
C9: ='1 dilution - Analysis'!D89 -> 0 | D9: ='1 dilution - Analysis'!N89 ->  | E9: ='1 dilution - Analysis'!O89 ->  | F9: ='1 dilution - Analysis'!P89 ->  | G9: 25
C10: ='1 dilution - Analysis'!D92 -> 0 | D10: ='1 dilution - Analysis'!N92 ->  | E10: ='1 dilution - Analysis'!O92 ->  | F10: ='1 dilution - Analysis'!P92 ->  | G10: 25
C11: ='1 dilution - Analysis'!D95 -> 0 | D11: ='1 dilution - Analysis'!N95 ->  | E11: ='1 dilution - Analysis'!O95 ->  | F11: ='1 dilution - Analysis'!P95 ->  | G11: 25
C12: ='1 dilution - Analysis'!D98 -> 0 | D12: ='1 dilution - Analysis'!N98 ->  | E12: ='1 dilution - Analysis'!O98 ->  | F12: ='1 dilution - Analysis'!P98 ->  | G12: 25
C13: ='1 dilution - Analysis'!D101 -> 0 | D13: ='1 dilution - Analysis'!N101 ->  | E13: ='1 dilution - Analysis'!O101 ->  | F13: ='1 dilution - Analysis'!P101 ->  | G13: 25
C14: ='1 dilution - Analysis'!D104 -> 0 | D14: ='1 dilution - Analysis'!N104 ->  | E14: ='1 dilution - Analysis'!O104 ->  | F14: ='1 dilution - Analysis'!P104 ->  | G14: 25
C15: ='1 dilution - Analysis'!D107 -> 0 | D15: ='1 dilution - Analysis'!N107 ->  | E15: ='1 dilution - Analysis'!O107 ->  | F15: ='1 dilution - Analysis'!P107 ->  | G15: 25
C16: ='1 dilution - Analysis'!D110 -> 0 | D16: ='1 dilution - Analysis'!N110 ->  | E16: ='1 dilution - Analysis'!O110 ->  | F16: ='1 dilution - Analysis'!P110 ->  | G16: 25
C17: ='1 dilution - Analysis'!D113 -> 0 | D17: ='1 dilution - Analysis'!N113 ->  | E17: ='1 dilution - Analysis'!O113 ->  | F17: ='1 dilution - Analysis'!P113 ->  | G17: 25
C18: ='1 dilution - Analysis'!D116 -> 0 | D18: ='1 dilution - Analysis'!N116 ->  | E18: ='1 dilution - Analysis'!O116 ->  | F18: ='1 dilution - Analysis'!P116 ->  | G18: 25
C19: ='1 dilution - Analysis'!D119 -> 0 | D19: ='1 dilution - Analysis'!N119 ->  | E19: ='1 dilution - Analysis'!O119 ->  | F19: ='1 dilution - Analysis'!P119 ->  | G19: 25
C20: ='1 dilution - Analysis'!D122 -> 0 | D20: ='1 dilution - Analysis'!N122 ->  | E20: ='1 dilution - Analysis'!O122 ->  | F20: ='1 dilution - Analysis'!P122 ->  | G20: 25
C21: ='1 dilution - Analysis'!D125 -> 0 | D21: ='1 dilution - Analysis'!N125 ->  | E21: ='1 dilution - Analysis'!O125 ->  | F21: ='1 dilution - Analysis'!P125 ->  | G21: 25
C22: ='1 dilution - Analysis'!D128 -> 0 | D22: ='1 dilution - Analysis'!N128 ->  | E22: ='1 dilution - Analysis'!O128 ->  | F22: ='1 dilution - Analysis'!P128 ->  | G22: 25
C23: ='1 dilution - Analysis'!D131 -> 0 | D23: ='1 dilution - Analysis'!N131 ->  | E23: ='1 dilution - Analysis'!O131 ->  | F23: ='1 dilution - Analysis'!P131 ->  | G23: 25
C24: ='1 dilution - Analysis'!D134 -> 0 | D24: ='1 dilution - Analysis'!N134 ->  | E24: ='1 dilution - Analysis'!O134 ->  | F24: ='1 dilution - Analysis'!P134 ->  | G24: 25
C25: ='1 dilution - Analysis'!D137 -> 0 | D25: ='1 dilution - Analysis'!N137 ->  | E25: ='1 dilution - Analysis'!O137 ->  | F25: ='1 dilution - Analysis'!P137 ->  | G25: 25
C26: ='1 dilution - Analysis'!D140 -> 0 | D26: ='1 dilution - Analysis'!N140 ->  | E26: ='1 dilution - Analysis'!O140 ->  | F26: ='1 dilution - Analysis'!P140 ->  | G26: 25
C27: ='1 dilution - Analysis'!D143 -> 0 | D27: ='1 dilution - Analysis'!N143 ->  | E27: ='1 dilution - Analysis'!O143 ->  | F27: ='1 dilution - Analysis'!P143 ->  | G27: 25
C28: ='1 dilution - Analysis'!D146 -> 0 | D28: ='1 dilution - Analysis'!N146 ->  | E28: ='1 dilution - Analysis'!O146 ->  | F28: ='1 dilution - Analysis'!P146 ->  | G28: 25
C29: ='1 dilution - Analysis'!D149 -> 0 | D29: ='1 dilution - Analysis'!N149 ->  | E29: ='1 dilution - Analysis'!O149 ->  | F29: ='1 dilution - Analysis'!P149 ->  | G29: 25
C30: ='1 dilution - Analysis'!D152 -> 0 | D30: ='1 dilution - Analysis'!N152 ->  | E30: ='1 dilution - Analysis'!O152 ->  | F30: ='1 dilution - Analysis'!P152 ->  | G30: 25
C31: ='1 dilution - Analysis'!D155 -> 0 | D31: ='1 dilution - Analysis'!N155 ->  | E31: ='1 dilution - Analysis'!O155 ->  | F31: ='1 dilution - Analysis'!P155 ->  | G31: 25
C32: ='1 dilution - Analysis'!D158 -> 0 | D32: ='1 dilution - Analysis'!N158 ->  | E32: ='1 dilution - Analysis'!O158 ->  | F32: ='1 dilution - Analysis'!P158 ->  | G32: 25
C33: ='1 dilution - Analysis'!D161 -> 0 | D33: ='1 dilution - Analysis'!N161 ->  | E33: ='1 dilution - Analysis'!O161 ->  | F33: ='1 dilution - Analysis'!P161 ->  | G33: 25
C34: ='1 dilution - Analysis'!D164 -> 0 | D34: ='1 dilution - Analysis'!N164 ->  | E34: ='1 dilution - Analysis'!O164 ->  | F34: ='1 dilution - Analysis'!P164 ->  | G34: 25
C35: ='1 dilution - Analysis'!D167 -> 0 | D35: ='1 dilution - Analysis'!N167 ->  | E35: ='1 dilution - Analysis'!O167 ->  | F35: ='1 dilution - Analysis'!P167 ->  | G35: 25
C36: ='1 dilution - Analysis'!D170 -> 0 | D36: ='1 dilution - Analysis'!N170 ->  | E36: ='1 dilution - Analysis'!O170 ->  | F36: ='1 dilution - Analysis'!P170 ->  | G36: 25
C37: ='1 dilution - Analysis'!D173 -> 0 | D37: ='1 dilution - Analysis'!N173 ->  | E37: ='1 dilution - Analysis'!O173 ->  | F37: ='1 dilution - Analysis'!P173 ->  | G37: 25
C38: ='1 dilution - Analysis'!D176 -> 0 | D38: ='1 dilution - Analysis'!N176 ->  | E38: ='1 dilution - Analysis'!O176 ->  | F38: ='1 dilution - Analysis'!P176 ->  | G38: 25
C39: ='1 dilution - Analysis'!D179 -> 0 | D39: ='1 dilution - Analysis'!N179 ->  | E39: ='1 dilution - Analysis'!O179 ->  | F39: ='1 dilution - Analysis'!P179 ->  | G39: 25
C40: ='1 dilution - Analysis'!D182 -> 0 | D40: ='1 dilution - Analysis'!N182 ->  | E40: ='1 dilution - Analysis'!O182 ->  | F40: ='1 dilution - Analysis'!P182 ->  | G40: 25
C41: ='1 dilution - Analysis'!D185 -> 0 | D41: ='1 dilution - Analysis'!N185 ->  | E41: ='1 dilution - Analysis'!O185 ->  | F41: ='1 dilution - Analysis'!P185 ->  | G41: 25
C42: ='1 dilution - Analysis'!D188 -> 0 | D42: ='1 dilution - Analysis'!N188 ->  | E42: ='1 dilution - Analysis'!O188 ->  | F42: ='1 dilution - Analysis'!P188 ->  | G42: 25
C43: ='1 dilution - Analysis'!D191 -> 0 | D43: ='1 dilution - Analysis'!N191 ->  | E43: ='1 dilution - Analysis'!O191 ->  | F43: ='1 dilution - Analysis'!P191 ->  | G43: 25
C44: ='1 dilution - Analysis'!D194 -> 0 | D44: ='1 dilution - Analysis'!N194 ->  | E44: ='1 dilution - Analysis'!O194 ->  | F44: ='1 dilution - Analysis'!P194 ->  | G44: 25
C45: ='1 dilution - Analysis'!D197 -> 0 | D45: ='1 dilution - Analysis'!N197 ->  | E45: ='1 dilution - Analysis'!O197 ->  | F45: ='1 dilution - Analysis'!P197 ->  | G45: 25
C46: ='1 dilution - Analysis'!D200 -> 0 | D46: ='1 dilution - Analysis'!N200 ->  | E46: ='1 dilution - Analysis'!O200 ->  | F46: ='1 dilution - Analysis'!P200 ->  | G46: 25
C47: ='1 dilution - Analysis'!D203 -> 0 | D47: ='1 dilution - Analysis'!N203 ->  | E47: ='1 dilution - Analysis'!O203 ->  | F47: ='1 dilution - Analysis'!P203 ->  | G47: 25
C48: ='1 dilution - Analysis'!D206 -> 0 | D48: ='1 dilution - Analysis'!N206 ->  | E48: ='1 dilution - Analysis'!O206 ->  | F48: ='1 dilution - Analysis'!P206 ->  | G48: 25
C49: ='1 dilution - Analysis'!D209 -> 0 | D49: ='1 dilution - Analysis'!N209 ->  | E49: ='1 dilution - Analysis'!O209 ->  | F49: ='1 dilution - Analysis'!P209 ->  | G49: 25
C50: ='1 dilution - Analysis'!D212 -> 0 | D50: ='1 dilution - Analysis'!N212 ->  | E50: ='1 dilution - Analysis'!O212 ->  | F50: ='1 dilution - Analysis'!P212 ->  | G50: 25
C51: ='1 dilution - Analysis'!D215 -> 0 | D51: ='1 dilution - Analysis'!N215 ->  | E51: ='1 dilution - Analysis'!O215 ->  | F51: ='1 dilution - Analysis'!P215 ->  | G51: 25
C52: ='1 dilution - Analysis'!D218 -> 0 | D52: ='1 dilution - Analysis'!N218 ->  | E52: ='1 dilution - Analysis'!O218 ->  | F52: ='1 dilution - Analysis'!P218 ->  | G52: 25
C53: ='1 dilution - Analysis'!D221 -> 0 | D53: ='1 dilution - Analysis'!N221 ->  | E53: ='1 dilution - Analysis'!O221 ->  | F53: ='1 dilution - Analysis'!P221 ->  | G53: 25
C54: ='1 dilution - Analysis'!D224 -> 0 | D54: ='1 dilution - Analysis'!N224 ->  | E54: ='1 dilution - Analysis'!O224 ->  | F54: ='1 dilution - Analysis'!P224 ->  | G54: 25
C55: ='1 dilution - Analysis'!D227 -> 0 | D55: ='1 dilution - Analysis'!N227 ->  | E55: ='1 dilution - Analysis'!O227 ->  | F55: ='1 dilution - Analysis'!P227 ->  | G55: 25
C56: ='1 dilution - Analysis'!D230 -> 0 | D56: ='1 dilution - Analysis'!N230 ->  | E56: ='1 dilution - Analysis'!O230 ->  | F56: ='1 dilution - Analysis'!P230 ->  | G56: 25
C57: ='1 dilution - Analysis'!D233 -> 0 | D57: ='1 dilution - Analysis'!N233 ->  | E57: ='1 dilution - Analysis'!O233 ->  | F57: ='1 dilution - Analysis'!P233 ->  | G57: 25
C58: ='1 dilution - Analysis'!D236 -> 0 | D58: ='1 dilution - Analysis'!N236 ->  | E58: ='1 dilution - Analysis'!O236 ->  | F58: ='1 dilution - Analysis'!P236 ->  | G58: 25
C59: ='1 dilution - Analysis'!D239 -> 0 | D59: ='1 dilution - Analysis'!N239 ->  | E59: ='1 dilution - Analysis'!O239 ->  | F59: ='1 dilution - Analysis'!P239 ->  | G59: 25
C60: ='1 dilution - Analysis'!D242 -> 0 | D60: ='1 dilution - Analysis'!N242 ->  | E60: ='1 dilution - Analysis'!O242 ->  | F60: ='1 dilution - Analysis'!P242 ->  | G60: 25
C61: ='1 dilution - Analysis'!D245 -> 0 | D61: ='1 dilution - Analysis'!N245 ->  | E61: ='1 dilution - Analysis'!O245 ->  | F61: ='1 dilution - Analysis'!P245 ->  | G61: 25
C62: ='1 dilution - Analysis'!D248 -> 0 | D62: ='1 dilution - Analysis'!N248 ->  | E62: ='1 dilution - Analysis'!O248 ->  | F62: ='1 dilution - Analysis'!P248 ->  | G62: 25
C63: ='1 dilution - Analysis'!D251 -> 0 | D63: ='1 dilution - Analysis'!N251 ->  | E63: ='1 dilution - Analysis'!O251 ->  | F63: ='1 dilution - Analysis'!P251 ->  | G63: 25
C64: ='1 dilution - Analysis'!D254 -> 0 | D64: ='1 dilution - Analysis'!N254 ->  | E64: ='1 dilution - Analysis'!O254 ->  | F64: ='1 dilution - Analysis'!P254 ->  | G64: 25
C65: ='1 dilution - Analysis'!D257 -> 0 | D65: ='1 dilution - Analysis'!N257 ->  | E65: ='1 dilution - Analysis'!O257 ->  | F65: ='1 dilution - Analysis'!P257 ->  | G65: 25
C66: ='1 dilution - Analysis'!D260 -> 0 | D66: ='1 dilution - Analysis'!N260 ->  | E66: ='1 dilution - Analysis'!O260 ->  | F66: ='1 dilution - Analysis'!P260 ->  | G66: 25
C67: ='1 dilution - Analysis'!D263 -> 0 | D67: ='1 dilution - Analysis'!N263 ->  | E67: ='1 dilution - Analysis'!O263 ->  | F67: ='1 dilution - Analysis'!P263 ->  | G67: 25
C68: ='1 dilution - Analysis'!D266 -> 0 | D68: ='1 dilution - Analysis'!N266 ->  | E68: ='1 dilution - Analysis'!O266 ->  | F68: ='1 dilution - Analysis'!P266 ->  | G68: 25
C69: ='1 dilution - Analysis'!D269 -> 0 | D69: ='1 dilution - Analysis'!N269 ->  | E69: ='1 dilution - Analysis'!O269 ->  | F69: ='1 dilution - Analysis'!P269 ->  | G69: 25
C70: ='1 dilution - Analysis'!D272 -> 0 | D70: ='1 dilution - Analysis'!N272 ->  | E70: ='1 dilution - Analysis'!O272 ->  | F70: ='1 dilution - Analysis'!P272 ->  | G70: 25
C71: ='1 dilution - Analysis'!D275 -> 0 | D71: ='1 dilution - Analysis'!N275 ->  | E71: ='1 dilution - Analysis'!O275 ->  | F71: ='1 dilution - Analysis'!P275 ->  | G71: 25 | H71: =F71*G71 -> 
C72: ='1 dilution - Analysis'!D278 -> 0 | D72: ='1 dilution - Analysis'!N278 ->  | E72: ='1 dilution - Analysis'!O278 ->  | F72: ='1 dilution - Analysis'!P278 ->  | G72: 25
C73: ='1 dilution - Analysis'!D281 -> 0 | D73: ='1 dilution - Analysis'!N281 ->  | E73: ='1 dilution - Analysis'!O281 ->  | F73: ='1 dilution - Analysis'!P281 ->  | G73: 25
C74: ='1 dilution - Analysis'!D284 -> 0 | D74: ='1 dilution - Analysis'!N284 ->  | E74: ='1 dilution - Analysis'!O284 ->  | F74: ='1 dilution - Analysis'!P284 ->  | G74: 25
C75: ='1 dilution - Analysis'!D287 -> 0 | D75: ='1 dilution - Analysis'!N287 ->  | E75: ='1 dilution - Analysis'!O287 ->  | F75: ='1 dilution - Analysis'!P287 ->  | G75: 25
C76: ='1 dilution - Analysis'!D290 -> 0 | D76: ='1 dilution - Analysis'!N290 ->  | E76: ='1 dilution - Analysis'!O290 ->  | F76: ='1 dilution - Analysis'!P290 ->  | G76: 25
C77: ='1 dilution - Analysis'!D293 -> 0 | D77: ='1 dilution - Analysis'!N293 ->  | E77: ='1 dilution - Analysis'!O293 ->  | F77: ='1 dilution - Analysis'!P293 ->  | G77: 25
C78: ='1 dilution - Analysis'!D296 -> 0 | D78: ='1 dilution - Analysis'!N296 ->  | E78: ='1 dilution - Analysis'!O296 ->  | F78: ='1 dilution - Analysis'!P296 ->  | G78: 25
C79: ='1 dilution - Analysis'!D299 -> 0 | D79: ='1 dilution - Analysis'!N299 ->  | E79: ='1 dilution - Analysis'!O299 ->  | F79: ='1 dilution - Analysis'!P299 ->  | G79: 25
C80: ='1 dilution - Analysis'!D302 -> 0 | D80: ='1 dilution - Analysis'!N302 ->  | E80: ='1 dilution - Analysis'!O302 ->  | F80: ='1 dilution - Analysis'!P302 ->  | G80: 25
C81: ='1 dilution - Analysis'!D305 -> 0 | D81: ='1 dilution - Analysis'!N305 ->  | E81: ='1 dilution - Analysis'!O305 ->  | F81: ='1 dilution - Analysis'!P305 ->  | G81: 25
C82: ='1 dilution - Analysis'!D308 -> 0 | D82: ='1 dilution - Analysis'!N308 ->  | E82: ='1 dilution - Analysis'!O308 ->  | F82: ='1 dilution - Analysis'!P308 ->  | G82: 25
C83: ='1 dilution - Analysis'!D311 -> 0 | D83: ='1 dilution - Analysis'!N311 ->  | E83: ='1 dilution - Analysis'!O311 ->  | F83: ='1 dilution - Analysis'!P311 ->  | G83: 25
C84: ='1 dilution - Analysis'!D314 -> 0 | D84: ='1 dilution - Analysis'!N314 ->  | E84: ='1 dilution - Analysis'!O314 ->  | F84: ='1 dilution - Analysis'!P314 ->  | G84: 25
C85: ='1 dilution - Analysis'!D317 -> 0 | D85: ='1 dilution - Analysis'!N317 ->  | E85: ='1 dilution - Analysis'!O317 ->  | F85: ='1 dilution - Analysis'!P317 ->  | G85: 25
C86: ='1 dilution - Analysis'!D320 -> 0 | D86: ='1 dilution - Analysis'!N320 ->  | E86: ='1 dilution - Analysis'!O320 ->  | F86: ='1 dilution - Analysis'!P320 ->  | G86: 25
C87: ='1 dilution - Analysis'!D323 -> 0 | D87: ='1 dilution - Analysis'!N323 ->  | E87: ='1 dilution - Analysis'!O323 ->  | F87: ='1 dilution - Analysis'!P323 ->  | G87: 25
C88: ='1 dilution - Analysis'!D326 -> 0 | D88: ='1 dilution - Analysis'!N326 ->  | E88: ='1 dilution - Analysis'!O326 ->  | F88: ='1 dilution - Analysis'!P326 ->  | G88: 25
C89: ='1 dilution - Analysis'!D329 -> 0 | D89: ='1 dilution - Analysis'!N329 ->  | E89: ='1 dilution - Analysis'!O329 ->  | F89: ='1 dilution - Analysis'!P329 ->  | G89: 25
C90: ='1 dilution - Analysis'!D332 -> 0 | D90: ='1 dilution - Analysis'!N332 ->  | E90: ='1 dilution - Analysis'!O332 ->  | F90: ='1 dilution - Analysis'!P332 ->  | G90: 25
C91: ='1 dilution - Analysis'!D335 -> 0 | D91: ='1 dilution - Analysis'!N335 ->  | E91: ='1 dilution - Analysis'!O335 ->  | F91: ='1 dilution - Analysis'!P335 ->  | G91: 25 | H91: =F91*G91 -> 
C92: ='1 dilution - Analysis'!D338 -> 0 | D92: ='1 dilution - Analysis'!N338 ->  | E92: ='1 dilution - Analysis'!O338 ->  | F92: ='1 dilution - Analysis'!P338 ->  | G92: 25
C93: ='1 dilution - Analysis'!D341 -> 0 | D93: ='1 dilution - Analysis'!N341 ->  | E93: ='1 dilution - Analysis'!O341 ->  | F93: ='1 dilution - Analysis'!P341 ->  | G93: 25
C94: ='1 dilution - Analysis'!D344 -> 0 | D94: ='1 dilution - Analysis'!N344 ->  | E94: ='1 dilution - Analysis'!O344 ->  | F94: ='1 dilution - Analysis'!P344 ->  | G94: 25
C95: ='1 dilution - Analysis'!D347 -> 0 | D95: ='1 dilution - Analysis'!N347 ->  | E95: ='1 dilution - Analysis'!O347 ->  | F95: ='1 dilution - Analysis'!P347 ->  | G95: 25
C96: ='1 dilution - Analysis'!D350 -> 0 | D96: ='1 dilution - Analysis'!N350 ->  | E96: ='1 dilution - Analysis'!O350 ->  | F96: ='1 dilution - Analysis'!P350 ->  | G96: 25
C97: ='1 dilution - Analysis'!D353 -> 0 | D97: ='1 dilution - Analysis'!N353 ->  | E97: ='1 dilution - Analysis'!O353 ->  | F97: ='1 dilution - Analysis'!P353 ->  | G97: 25
C98: ='1 dilution - Analysis'!D356 -> 0 | D98: ='1 dilution - Analysis'!N356 ->  | E98: ='1 dilution - Analysis'!O356 ->  | F98: ='1 dilution - Analysis'!P356 ->  | G98: 25
C99: ='1 dilution - Analysis'!D359 -> 0 | D99: ='1 dilution - Analysis'!N359 ->  | E99: ='1 dilution - Analysis'!O359 ->  | F99: ='1 dilution - Analysis'!P359 ->  | G99: 25
C100: ='1 dilution - Analysis'!D362 -> 0 | D100: ='1 dilution - Analysis'!N362 ->  | E100: ='1 dilution - Analysis'!O362 ->  | F100: ='1 dilution - Analysis'!P362 ->  | G100: 25
C101: ='1 dilution - Analysis'!D365 -> 0 | D101: ='1 dilution - Analysis'!N365 ->  | E101: ='1 dilution - Analysis'!O365 ->  | F101: ='1 dilution - Analysis'!P365 ->  | G101: 25

Sheet 2 dilutions - Analysis (hidden)
C3: Section 1. Review Cq values for DNA Standards
C5: - Enter the appropriate information into the fields highlighted in green.
C6: - Move "outliers" to column G (so these are no longer is used in calculations). Delete the formula in the corresponding row in column I.
C7: - The average Cq value for each DNA Standard should be ~3.3 cycles later than the DNA Standard that is 10-fold more concentrated (between 3.2 and 3.45 is very good
C8: and 3.1 - 3.6 is acceptable).
C9: - If the spacing between any two standards is less than 3.1 cycles and more than 3.6 cycles, those data points (and any library samples falling between those
C10: data points) are not highly reliable.
C13: Well | D13: Std # | E13: Conc (pM) | F13: Cq | G13: Outliers | H13: Av Cq | I13: Difference | J13: Delta Cq
D14: 1 | E14: 20 | H14: =AVERAGE(F14:F16) ->  | I14: =F14-$H$14 ->  | J14: -
D15: 1 | E15: 20 | I15: =F15-$H$14 -> 
D16: 1 | E16: 20 | I16: =F16-$H$14 ->  | J16: =H17-H14 -> 
D17: 2 | E17: 2 | H17: =AVERAGE(F17:F19) ->  | I17: =F17-$H$17 -> 
D18: 2 | E18: 2 | I18: =F18-$H$17 -> 
D19: 2 | E19: 2 | I19: =F19-$H$17 ->  | J19: =H20-H17 -> 
D20: 3 | E20: 0.2 | H20: =AVERAGE(F20:F22) ->  | I20: =F20-$H$20 -> 
D21: 3 | E21: 0.2 | I21: =F21-$H$20 -> 
D22: 3 | E22: 0.2 | I22: =F22-$H$20 ->  | J22: =H23-H20 -> 
D23: 4 | E23: 0.02 | H23: =AVERAGE(F23:F25) ->  | I23: =F23-$H$23 -> 
D24: 4 | E24: 0.02 | I24: =F24-$H$23 -> 
D25: 4 | E25: 0.02 | I25: =F25-$H$23 ->  | J25: =H26-H23 -> 
D26: 5 | E26: 0.002 | H26: =AVERAGE(F26:F28) ->  | I26: =F26-$H$26 -> 
D27: 5 | E27: 0.002 | I27: =F27-$H$26 -> 
D28: 5 | E28: 0.002 | I28: =F28-$H$26 ->  | J28: =H29-H26 -> 
D29: 6 | E29: 0.0002 | H29: =AVERAGE(F29:F31) ->  | I29: =F29-$H$29 -> 
D30: 6 | E30: 0.0002 | I30: =F30-$H$29 -> 
D31: 6 | E31: 0.0002 | I31: =F31-$H$29 ->  | J31: =H32-H29 -> 
D32: NTC | E32: - | H32: =AVERAGE(F32:F34) -> 
D33: NTC | E33: -
D34: NTC | E34: -
C40: Section 2. Generate and review the standard curve
C42: - Type the value for the intercept from the graph to the right into cell D57.
C43: - Type the value for the slope from the graph to the right into cell D59. | K43: Note: if the standard curve equation does not update, click on the line, right click and select
K44: Format Trendline. (Untick and) tick the boxes for "Display Equation and R-squared value on chart"
C47: DNA Standard | D47: Conc in pM | E47: Log conc | F47: Average Cq | G47: Delta Cq
C48: 1 | D48: 20 | E48: =LOG(D48) -> 1.301029996 | F48: =H14 ->  | G48: -
C49: 2 | D49: 2 | E49: 0.3010299957 | F49: =H17 ->  | G49: =F49-F48 ->  | H49: Should be between 3.1 and 3.6
C50: 3 | D50: 0.2 | E50: -0.6989700043 | F50: =H20 ->  | G50: =F50-F49 -> 
C51: 4 | D51: 0.02 | E51: -1.698970004 | F51: =H23 ->  | G51: =F51-F50 -> 
C52: 5 | D52: 0.002 | E52: -2.698970004 | F52: =H26 ->  | G52: =F52-F51 -> 
C53: 6 | D53: 0.0002 | E53: -3.698970004 | F53: =H29 ->  | G53: =F53-F52 -> 
C54: Efficiency: | D54: =POWER(10, 1/(-SLOPE(F48:F53, LOG(D48:D53))))-1 ->  | E54: (Calculated) | F54: Should be between 90 and 110%
C55: Slope: | D55: =SLOPE(F48:F53, LOG(D48:D53)) ->  | E55: (Calculated) | F55: Value must be the same as on the graph
C56: R-squared: | D56: =RSQ(F48:F53, -LOG(D48:D53)) ->  | E56: (Calculated) | F56: Should be between 0.99 and 1.00
C57: Intercept: | D57: 11.217 | E57: (Type the intercept value from the graph in cell D57)
C59: If slope = | D59: -3.2394 | E59: (Type the slope value from the graph in cell D59)
C60: then efficiency = | D60: =POWER(10, (-1/D59))-1 -> 1.035631402 | E60: (Calculated) | F60: Value must be the same as in cell D54
C63: Note: it is important to type the appropriate values from the straight line equation into the two green blocks,
C64: as the table in Section 3 uses these two values to calculate the concentration of the library samples.
C70: Section 3. Calculate and review library concentrations
C72: - Sort the data for your library samples by grouping the Cq values for different dilutions of the same sample together. Enter the appropriate information into the fields highlighted in green (Columns C - G).
C73: - Move the outliers to Column H, so these are no longer is used in calculations. If you move a Cq value (outlier) from column F to H, you have to delete the formula in column J of that row.
C75: If the average Cq value for a library < than the average Cq value for Std 1, or > than the average Cq value for Std 6, the data from that dilution may not be used in calculations (i.e. you may not extrapolate). If only one dilution of each library was assayed, the library has to
C76: requantified using a more appropriate dilution.
C79: Library # | D79: Sample name | E79: Dilution | F79: Cq | G79: Average fragment length (bp) | H79: Outliers/ outside curve | I79: Average Cq | J79: Difference | K79: Delta Cq | L79: log (concentration) | M79: Average concentration (pM) | N79: Size-adjusted concentration (pM) | O79: Concentration of undiluted library (pM) | P79: Concentration of undiluted library (nM) | Q79: Concentration of undiluted library (ng/µL) | R79: % Deviation | S79: Working concentration (pM) | T79: Working concentration (nM) | U79: Working concentration (ng/µL)
C80: 1 | I80: =AVERAGE(F80:F82) ->  | J80: =F80-I80 ->  | K80: =I83-I80 ->  | L80: =(I80-$D$57)/$D$59 ->  | M80: =10^L80 ->  | N80: =M80*(452/G80) ->  | O80: =N80*E80 ->  | P80: =O80/1000 ->  | Q80: =((P80*10^-12)*(G80*617.9))*10^-6*10^9*10^3 ->  | R80: =1-(P83/P80) ->  | S80: =AVERAGE(O80:O85) ->  | T80: =AVERAGE(P80:P85) ->  | U80: =AVERAGE(Q80:Q85) -> 
J81: =F81-I80 -> 
J82: =F82-I80 -> 
I83: =AVERAGE(F83:F85) ->  | J83: =F83-I83 ->  | L83: =(I83-$D$57)/$D$59 ->  | M83: =10^L83 ->  | N83: =M83*(452/G80) ->  | O83: =N83*E83 ->  | P83: =O83/1000 ->  | Q83: =((P83*10^-12)*(G80*617.9))*10^-6*10^9*10^3 -> 
J84: =F84-I83 -> 
J85: =F85-I83 -> 
C86: 2 | H86: ` | I86: =AVERAGE(F86:F88) ->  | J86: =F86-I86 ->  | K86: =I89-I86 ->  | L86: =(I86-$D$57)/$D$59 ->  | M86: =10^L86 ->  | N86: =M86*(452/G86) ->  | O86: =N86*E86 ->  | P86: =O86/1000 ->  | Q86: =((P86*10^-12)*(G86*617.9))*10^-6*10^9*10^3 ->  | R86: =1-(P89/P86) ->  | S86: =AVERAGE(O86:O91) ->  | T86: =AVERAGE(P86:P91) ->  | U86: =AVERAGE(Q86:Q91) -> 
J87: =F87-I86 -> 
J88: =F88-I86 -> 
I89: =AVERAGE(F89:F91) ->  | J89: =F89-I89 ->  | L89: =(I89-$D$57)/$D$59 ->  | M89: =10^L89 ->  | N89: =M89*(452/G86) ->  | O89: =N89*E89 ->  | P89: =O89/1000 ->  | Q89: =((P89*10^-12)*(G86*617.9))*10^-6*10^9*10^3 -> 
J90: =F90-I89 -> 
J91: =F91-I89 -> 
C92: 3 | I92: =AVERAGE(F92:F94) ->  | J92: =F92-I92 ->  | K92: =I95-I92 ->  | L92: =(I92-$D$57)/$D$59 ->  | M92: =10^L92 ->  | N92: =M92*(452/G92) ->  | O92: =N92*E92 ->  | P92: =O92/1000 ->  | Q92: =((P92*10^-12)*(G92*617.9))*10^-6*10^9*10^3 ->  | R92: =1-(P95/P92) ->  | S92: =AVERAGE(O92:O97) ->  | T92: =AVERAGE(P92:P97) ->  | U92: =AVERAGE(Q92:Q97) -> 
J93: =F93-I92 -> 
J94: =F94-I92 -> 
I95: =AVERAGE(F95:F97) ->  | J95: =F95-I95 ->  | L95: =(I95-$D$57)/$D$59 ->  | M95: =10^L95 ->  | N95: =M95*(452/G92) ->  | O95: =N95*E95 ->  | P95: =O95/1000 ->  | Q95: =((P95*10^-12)*(G92*617.9))*10^-6*10^9*10^3 -> 
J96: =F96-I95 -> 
J97: =F97-I95 -> 
C98: 4 | I98: =AVERAGE(F98:F100) ->  | J98: =F98-I98 ->  | K98: =I101-I98 ->  | L98: =(I98-$D$57)/$D$59 ->  | M98: =10^L98 ->  | N98: =M98*(452/G98) ->  | O98: =N98*E98 ->  | P98: =O98/1000 ->  | Q98: =((P98*10^-12)*(G98*617.9))*10^-6*10^9*10^3 ->  | R98: =1-(P101/P98) ->  | S98: =AVERAGE(O98:O103) ->  | T98: =AVERAGE(P98:P103) ->  | U98: =AVERAGE(Q98:Q103) -> 
J99: =F99-I98 -> 
J100: =F100-I98 -> 
I101: =AVERAGE(F101:F103) ->  | J101: =F101-I101 ->  | L101: =(I101-$D$57)/$D$59 ->  | M101: =10^L101 ->  | N101: =M101*(452/G98) ->  | O101: =N101*E101 ->  | P101: =O101/1000 ->  | Q101: =((P101*10^-12)*(G98*617.9))*10^-6*10^9*10^3 -> 
J102: =F102-I101 -> 
J103: =F103-I101 -> 
C104: 5 | I104: =AVERAGE(F104:F106) ->  | J104: =F104-I104 ->  | K104: =I107-I104 ->  | L104: =(I104-$D$57)/$D$59 ->  | M104: =10^L104 ->  | N104: =M104*(452/G104) ->  | O104: =N104*E104 ->  | P104: =O104/1000 ->  | Q104: =((P104*10^-12)*(G104*617.9))*10^-6*10^9*10^3 ->  | R104: =1-(P107/P104) ->  | S104: =AVERAGE(O104:O109) ->  | T104: =AVERAGE(P104:P109) ->  | U104: =AVERAGE(Q104:Q109) -> 
J105: =F105-I104 -> 
J106: =F106-I104 -> 
I107: =AVERAGE(F107:F109) ->  | J107: =F107-I107 ->  | L107: =(I107-$D$57)/$D$59 ->  | M107: =10^L107 ->  | N107: =M107*(452/G104) ->  | O107: =N107*E107 ->  | P107: =O107/1000 ->  | Q107: =((P107*10^-12)*(G104*617.9))*10^-6*10^9*10^3 -> 
J108: =F108-I107 -> 
J109: =F109-I107 -> 
C110: 6 | I110: =AVERAGE(F110:F112) ->  | J110: =F110-I110 ->  | K110: =I113-I110 ->  | L110: =(I110-$D$57)/$D$59 ->  | M110: =10^L110 ->  | N110: =M110*(452/G110) ->  | O110: =N110*E110 ->  | P110: =O110/1000 ->  | Q110: =((P110*10^-12)*(G110*617.9))*10^-6*10^9*10^3 ->  | R110: =1-(P113/P110) ->  | S110: =AVERAGE(O110:O115) ->  | T110: =AVERAGE(P110:P115) ->  | U110: =AVERAGE(Q110:Q115) -> 
J111: =F111-I110 -> 
J112: =F112-I110 -> 
I113: =AVERAGE(F113:F115) ->  | J113: =F113-I113 ->  | L113: =(I113-$D$57)/$D$59 ->  | M113: =10^L113 ->  | N113: =M113*(452/G110) ->  | O113: =N113*E113 ->  | P113: =O113/1000 ->  | Q113: =((P113*10^-12)*(G110*617.9))*10^-6*10^9*10^3 -> 
J114: =F114-I113 -> 
J115: =F115-I113 -> 
C116: 7 | I116: =AVERAGE(F116:F118) ->  | J116: =F116-I116 ->  | K116: =I119-I116 ->  | L116: =(I116-$D$57)/$D$59 ->  | M116: =10^L116 ->  | N116: =M116*(452/G116) ->  | O116: =N116*E116 ->  | P116: =O116/1000 ->  | Q116: =((P116*10^-12)*(G116*617.9))*10^-6*10^9*10^3 ->  | R116: =1-(P119/P116) ->  | S116: =AVERAGE(O116:O121) ->  | T116: =AVERAGE(P116:P121) ->  | U116: =AVERAGE(Q116:Q121) -> 
J117: =F117-I116 -> 
J118: =F118-I116 -> 
I119: =AVERAGE(F119:F121) ->  | J119: =F119-I119 ->  | L119: =(I119-$D$57)/$D$59 ->  | M119: =10^L119 ->  | N119: =M119*(452/G116) ->  | O119: =N119*E119 ->  | P119: =O119/1000 ->  | Q119: =((P119*10^-12)*(G116*617.9))*10^-6*10^9*10^3 -> 
J120: =F120-I119 -> 
J121: =F121-I119 -> 
C122: 8 | I122: =AVERAGE(F122:F124) ->  | J122: =F122-I122 ->  | K122: =I125-I122 ->  | L122: =(I122-$D$57)/$D$59 ->  | M122: =10^L122 ->  | N122: =M122*(452/G122) ->  | O122: =N122*E122 ->  | P122: =O122/1000 ->  | Q122: =((P122*10^-12)*(G122*617.9))*10^-6*10^9*10^3 ->  | R122: =1-(P125/P122) ->  | S122: =AVERAGE(O122:O127) ->  | T122: =AVERAGE(P122:P127) ->  | U122: =AVERAGE(Q122:Q127) -> 
J123: =F123-I122 -> 
J124: =F124-I122 -> 
I125: =AVERAGE(F125:F127) ->  | J125: =F125-I125 ->  | L125: =(I125-$D$57)/$D$59 ->  | M125: =10^L125 ->  | N125: =M125*(452/G122) ->  | O125: =N125*E125 ->  | P125: =O125/1000 ->  | Q125: =((P125*10^-12)*(G122*617.9))*10^-6*10^9*10^3 -> 
J126: =F126-I125 -> 
J127: =F127-I125 -> 
C128: 9 | I128: =AVERAGE(F128:F130) ->  | J128: =F128-I128 ->  | K128: =I131-I128 ->  | L128: =(I128-$D$57)/$D$59 ->  | M128: =10^L128 ->  | N128: =M128*(452/G128) ->  | O128: =N128*E128 ->  | P128: =O128/1000 ->  | Q128: =((P128*10^-12)*(G128*617.9))*10^-6*10^9*10^3 ->  | R128: =1-(P131/P128) ->  | S128: =AVERAGE(O128:O133) ->  | T128: =AVERAGE(P128:P133) ->  | U128: =AVERAGE(Q128:Q133) -> 
J129: =F129-I128 -> 
J130: =F130-I128 -> 
I131: =AVERAGE(F131:F133) ->  | J131: =F131-I131 ->  | L131: =(I131-$D$57)/$D$59 ->  | M131: =10^L131 ->  | N131: =M131*(452/G128) ->  | O131: =N131*E131 ->  | P131: =O131/1000 ->  | Q131: =((P131*10^-12)*(G128*617.9))*10^-6*10^9*10^3 -> 
J132: =F132-I131 -> 
J133: =F133-I131 -> 
C134: 10 | I134: =AVERAGE(F134:F136) ->  | J134: =F134-I134 ->  | K134: =I137-I134 ->  | L134: =(I134-$D$57)/$D$59 ->  | M134: =10^L134 ->  | N134: =M134*(452/G134) ->  | O134: =N134*E134 ->  | P134: =O134/1000 ->  | Q134: =((P134*10^-12)*(G134*617.9))*10^-6*10^9*10^3 ->  | R134: =1-(P137/P134) ->  | S134: =AVERAGE(O134:O139) ->  | T134: =AVERAGE(P134:P139) ->  | U134: =AVERAGE(Q134:Q139) -> 
J135: =F135-I134 -> 
J136: =F136-I134 -> 
I137: =AVERAGE(F137:F139) ->  | J137: =F137-I137 ->  | L137: =(I137-$D$57)/$D$59 ->  | M137: =10^L137 ->  | N137: =M137*(452/G134) ->  | O137: =N137*E137 ->  | P137: =O137/1000 ->  | Q137: =((P137*10^-12)*(G134*617.9))*10^-6*10^9*10^3 -> 
J138: =F138-I137 -> 
J139: =F139-I137 -> 
C140: 11 | I140: =AVERAGE(F140:F142) ->  | J140: =F140-I140 ->  | K140: =I143-I140 ->  | L140: =(I140-$D$57)/$D$59 ->  | M140: =10^L140 ->  | N140: =M140*(452/G140) ->  | O140: =N140*E140 ->  | P140: =O140/1000 ->  | Q140: =((P140*10^-12)*(G140*617.9))*10^-6*10^9*10^3 ->  | R140: =1-(P143/P140) ->  | S140: =AVERAGE(O140:O145) ->  | T140: =AVERAGE(P140:P145) ->  | U140: =AVERAGE(Q140:Q145) -> 
J141: =F141-I140 -> 
J142: =F142-I140 -> 
I143: =AVERAGE(F143:F145) ->  | J143: =F143-I143 ->  | L143: =(I143-$D$57)/$D$59 ->  | M143: =10^L143 ->  | N143: =M143*(452/G140) ->  | O143: =N143*E143 ->  | P143: =O143/1000 ->  | Q143: =((P143*10^-12)*(G140*617.9))*10^-6*10^9*10^3 -> 
J144: =F144-I143 -> 
J145: =F145-I143 -> 
C146: 12 | I146: =AVERAGE(F146:F148) ->  | J146: =F146-I146 ->  | K146: =I149-I146 ->  | L146: =(I146-$D$57)/$D$59 ->  | M146: =10^L146 ->  | N146: =M146*(452/G146) ->  | O146: =N146*E146 ->  | P146: =O146/1000 ->  | Q146: =((P146*10^-12)*(G146*617.9))*10^-6*10^9*10^3 ->  | R146: =1-(P149/P146) ->  | S146: =AVERAGE(O146:O151) ->  | T146: =AVERAGE(P146:P151) ->  | U146: =AVERAGE(Q146:Q151) -> 
J147: =F147-I146 -> 
J148: =F148-I146 -> 
I149: =AVERAGE(F149:F151) ->  | J149: =F149-I149 ->  | L149: =(I149-$D$57)/$D$59 ->  | M149: =10^L149 ->  | N149: =M149*(452/G146) ->  | O149: =N149*E149 ->  | P149: =O149/1000 ->  | Q149: =((P149*10^-12)*(G146*617.9))*10^-6*10^9*10^3 -> 
J150: =F150-I149 -> 
J151: =F151-I149 -> 
C152: 13 | I152: =AVERAGE(F152:F154) ->  | J152: =F152-I152 ->  | K152: =I155-I152 ->  | L152: =(I152-$D$57)/$D$59 ->  | M152: =10^L152 ->  | N152: =M152*(452/G152) ->  | O152: =N152*E152 ->  | P152: =O152/1000 ->  | Q152: =((P152*10^-12)*(G152*617.9))*10^-6*10^9*10^3 ->  | R152: =1-(P155/P152) ->  | S152: =AVERAGE(O152:O157) ->  | T152: =AVERAGE(P152:P157) ->  | U152: =AVERAGE(Q152:Q157) -> 
J153: =F153-I152 -> 
J154: =F154-I152 -> 
I155: =AVERAGE(F155:F157) ->  | J155: =F155-I155 ->  | L155: =(I155-$D$57)/$D$59 ->  | M155: =10^L155 ->  | N155: =M155*(452/G152) ->  | O155: =N155*E155 ->  | P155: =O155/1000 ->  | Q155: =((P155*10^-12)*(G152*617.9))*10^-6*10^9*10^3 -> 
J156: =F156-I155 -> 
J157: =F157-I155 -> 
C158: 14 | I158: =AVERAGE(F158:F160) ->  | J158: =F158-I158 ->  | K158: =I161-I158 ->  | L158: =(I158-$D$57)/$D$59 ->  | M158: =10^L158 ->  | N158: =M158*(452/G158) ->  | O158: =N158*E158 ->  | P158: =O158/1000 ->  | Q158: =((P158*10^-12)*(G158*617.9))*10^-6*10^9*10^3 ->  | R158: =1-(P161/P158) ->  | S158: =AVERAGE(O158:O163) ->  | T158: =AVERAGE(P158:P163) ->  | U158: =AVERAGE(Q158:Q163) -> 
J159: =F159-I158 -> 
J160: =F160-I158 -> 
I161: =AVERAGE(F161:F163) ->  | J161: =F161-I161 ->  | L161: =(I161-$D$57)/$D$59 ->  | M161: =10^L161 ->  | N161: =M161*(452/G158) ->  | O161: =N161*E161 ->  | P161: =O161/1000 ->  | Q161: =((P161*10^-12)*(G158*617.9))*10^-6*10^9*10^3 -> 
J162: =F162-I161 -> 
J163: =F163-I161 -> 
C164: 15 | I164: =AVERAGE(F164:F166) ->  | J164: =F164-I164 ->  | K164: =I167-I164 ->  | L164: =(I164-$D$57)/$D$59 ->  | M164: =10^L164 ->  | N164: =M164*(452/G164) ->  | O164: =N164*E164 ->  | P164: =O164/1000 ->  | Q164: =((P164*10^-12)*(G164*617.9))*10^-6*10^9*10^3 ->  | R164: =1-(P167/P164) ->  | S164: =AVERAGE(O164:O169) ->  | T164: =AVERAGE(P164:P169) ->  | U164: =AVERAGE(Q164:Q169) -> 
J165: =F165-I164 -> 
J166: =F166-I164 -> 
I167: =AVERAGE(F167:F169) ->  | J167: =F167-I167 ->  | L167: =(I167-$D$57)/$D$59 ->  | M167: =10^L167 ->  | N167: =M167*(452/G164) ->  | O167: =N167*E167 ->  | P167: =O167/1000 ->  | Q167: =((P167*10^-12)*(G164*617.9))*10^-6*10^9*10^3 -> 
J168: =F168-I167 -> 
J169: =F169-I167 -> 
C170: 16 | I170: =AVERAGE(F170:F172) ->  | J170: =F170-I170 ->  | K170: =I173-I170 ->  | L170: =(I170-$D$57)/$D$59 ->  | M170: =10^L170 ->  | N170: =M170*(452/G170) ->  | O170: =N170*E170 ->  | P170: =O170/1000 ->  | Q170: =((P170*10^-12)*(G170*617.9))*10^-6*10^9*10^3 ->  | R170: =1-(P173/P170) ->  | S170: =AVERAGE(O170:O175) ->  | T170: =AVERAGE(P170:P175) ->  | U170: =AVERAGE(Q170:Q175) -> 
J171: =F171-I170 -> 
J172: =F172-I170 -> 
I173: =AVERAGE(F173:F175) ->  | J173: =F173-I173 ->  | L173: =(I173-$D$57)/$D$59 ->  | M173: =10^L173 ->  | N173: =M173*(452/G170) ->  | O173: =N173*E173 ->  | P173: =O173/1000 ->  | Q173: =((P173*10^-12)*(G170*617.9))*10^-6*10^9*10^3 -> 
J174: =F174-I173 -> 
J175: =F175-I173 -> 
C176: 17 | I176: =AVERAGE(F176:F178) ->  | J176: =F176-I176 ->  | K176: =I179-I176 ->  | L176: =(I176-$D$57)/$D$59 ->  | M176: =10^L176 ->  | N176: =M176*(452/G176) ->  | O176: =N176*E176 ->  | P176: =O176/1000 ->  | Q176: =((P176*10^-12)*(G176*617.9))*10^-6*10^9*10^3 ->  | R176: =1-(P179/P176) ->  | S176: =AVERAGE(O176:O181) ->  | T176: =AVERAGE(P176:P181) ->  | U176: =AVERAGE(Q176:Q181) -> 
J177: =F177-I176 -> 
J178: =F178-I176 -> 
I179: =AVERAGE(F179:F181) ->  | J179: =F179-I179 ->  | L179: =(I179-$D$57)/$D$59 ->  | M179: =10^L179 ->  | N179: =M179*(452/G176) ->  | O179: =N179*E179 ->  | P179: =O179/1000 ->  | Q179: =((P179*10^-12)*(G176*617.9))*10^-6*10^9*10^3 -> 
J180: =F180-I179 -> 
J181: =F181-I179 -> 
C182: 18 | I182: =AVERAGE(F182:F184) ->  | J182: =F182-I182 ->  | K182: =I185-I182 ->  | L182: =(I182-$D$57)/$D$59 ->  | M182: =10^L182 ->  | N182: =M182*(452/G182) ->  | O182: =N182*E182 ->  | P182: =O182/1000 ->  | Q182: =((P182*10^-12)*(G182*617.9))*10^-6*10^9*10^3 ->  | R182: =1-(P185/P182) ->  | S182: =AVERAGE(O182:O187) ->  | T182: =AVERAGE(P182:P187) ->  | U182: =AVERAGE(Q182:Q187) -> 
J183: =F183-I182 -> 
J184: =F184-I182 -> 
I185: =AVERAGE(F185:F187) ->  | J185: =F185-I185 ->  | L185: =(I185-$D$57)/$D$59 ->  | M185: =10^L185 ->  | N185: =M185*(452/G182) ->  | O185: =N185*E185 ->  | P185: =O185/1000 ->  | Q185: =((P185*10^-12)*(G182*617.9))*10^-6*10^9*10^3 -> 
J186: =F186-I185 -> 
J187: =F187-I185 -> 
C188: 19 | I188: =AVERAGE(F188:F190) ->  | J188: =F188-I188 ->  | K188: =I191-I188 ->  | L188: =(I188-$D$57)/$D$59 ->  | M188: =10^L188 ->  | N188: =M188*(452/G188) ->  | O188: =N188*E188 ->  | P188: =O188/1000 ->  | Q188: =((P188*10^-12)*(G188*617.9))*10^-6*10^9*10^3 ->  | R188: =1-(P191/P188) ->  | S188: =AVERAGE(O188:O193) ->  | T188: =AVERAGE(P188:P193) ->  | U188: =AVERAGE(Q188:Q193) -> 
J189: =F189-I188 -> 
J190: =F190-I188 -> 
I191: =AVERAGE(F191:F193) ->  | J191: =F191-I191 ->  | L191: =(I191-$D$57)/$D$59 ->  | M191: =10^L191 ->  | N191: =M191*(452/G188) ->  | O191: =N191*E191 ->  | P191: =O191/1000 ->  | Q191: =((P191*10^-12)*(G188*617.9))*10^-6*10^9*10^3 -> 
J192: =F192-I191 -> 
J193: =F193-I191 -> 
C194: 20 | I194: =AVERAGE(F194:F196) ->  | J194: =F194-I194 ->  | K194: =I197-I194 ->  | L194: =(I194-$D$57)/$D$59 ->  | M194: =10^L194 ->  | N194: =M194*(452/G194) ->  | O194: =N194*E194 ->  | P194: =O194/1000 ->  | Q194: =((P194*10^-12)*(G194*617.9))*10^-6*10^9*10^3 ->  | R194: =1-(P197/P194) ->  | S194: =AVERAGE(O194:O199) ->  | T194: =AVERAGE(P194:P199) ->  | U194: =AVERAGE(Q194:Q199) -> 
J195: =F195-I194 -> 
J196: =F196-I194 -> 
I197: =AVERAGE(F197:F199) ->  | J197: =F197-I197 ->  | L197: =(I197-$D$57)/$D$59 ->  | M197: =10^L197 ->  | N197: =M197*(452/G194) ->  | O197: =N197*E197 ->  | P197: =O197/1000 ->  | Q197: =((P197*10^-12)*(G194*617.9))*10^-6*10^9*10^3 -> 
J198: =F198-I197 -> 
J199: =F199-I197 -> 
C200: 21 | I200: =AVERAGE(F200:F202) ->  | J200: =F200-I200 ->  | K200: =I203-I200 ->  | L200: =(I200-$D$57)/$D$59 ->  | M200: =10^L200 ->  | N200: =M200*(452/G200) ->  | O200: =N200*E200 ->  | P200: =O200/1000 ->  | Q200: =((P200*10^-12)*(G200*617.9))*10^-6*10^9*10^3 ->  | R200: =1-(P203/P200) ->  | S200: =AVERAGE(O200:O205) ->  | T200: =AVERAGE(P200:P205) ->  | U200: =AVERAGE(Q200:Q205) -> 
J201: =F201-I200 -> 
J202: =F202-I200 -> 
I203: =AVERAGE(F203:F205) ->  | J203: =F203-I203 ->  | L203: =(I203-$D$57)/$D$59 ->  | M203: =10^L203 ->  | N203: =M203*(452/G200) ->  | O203: =N203*E203 ->  | P203: =O203/1000 ->  | Q203: =((P203*10^-12)*(G200*617.9))*10^-6*10^9*10^3 -> 
J204: =F204-I203 -> 
J205: =F205-I203 -> 
C206: 22 | I206: =AVERAGE(F206:F208) ->  | J206: =F206-I206 ->  | K206: =I209-I206 ->  | L206: =(I206-$D$57)/$D$59 ->  | M206: =10^L206 ->  | N206: =M206*(452/G206) ->  | O206: =N206*E206 ->  | P206: =O206/1000 ->  | Q206: =((P206*10^-12)*(G206*617.9))*10^-6*10^9*10^3 ->  | R206: =1-(P209/P206) ->  | S206: =AVERAGE(O206:O211) ->  | T206: =AVERAGE(P206:P211) ->  | U206: =AVERAGE(Q206:Q211) -> 
J207: =F207-I206 -> 
J208: =F208-I206 -> 
I209: =AVERAGE(F209:F211) ->  | J209: =F209-I209 ->  | L209: =(I209-$D$57)/$D$59 ->  | M209: =10^L209 ->  | N209: =M209*(452/G206) ->  | O209: =N209*E209 ->  | P209: =O209/1000 ->  | Q209: =((P209*10^-12)*(G206*617.9))*10^-6*10^9*10^3 -> 
J210: =F210-I209 -> 
J211: =F211-I209 -> 
C212: 23 | I212: =AVERAGE(F212:F214) ->  | J212: =F212-I212 ->  | K212: =I215-I212 ->  | L212: =(I212-$D$57)/$D$59 ->  | M212: =10^L212 ->  | N212: =M212*(452/G212) ->  | O212: =N212*E212 ->  | P212: =O212/1000 ->  | Q212: =((P212*10^-12)*(G212*617.9))*10^-6*10^9*10^3 ->  | R212: =1-(P215/P212) ->  | S212: =AVERAGE(O212:O217) ->  | T212: =AVERAGE(P212:P217) ->  | U212: =AVERAGE(Q212:Q217) -> 
J213: =F213-I212 -> 
J214: =F214-I212 -> 
I215: =AVERAGE(F215:F217) ->  | J215: =F215-I215 ->  | L215: =(I215-$D$57)/$D$59 ->  | M215: =10^L215 ->  | N215: =M215*(452/G212) ->  | O215: =N215*E215 ->  | P215: =O215/1000 ->  | Q215: =((P215*10^-12)*(G212*617.9))*10^-6*10^9*10^3 -> 
J216: =F216-I215 -> 
J217: =F217-I215 -> 
C218: 24 | I218: =AVERAGE(F218:F220) ->  | J218: =F218-I218 ->  | K218: =I221-I218 ->  | L218: =(I218-$D$57)/$D$59 ->  | M218: =10^L218 ->  | N218: =M218*(452/G218) ->  | O218: =N218*E218 ->  | P218: =O218/1000 ->  | Q218: =((P218*10^-12)*(G218*617.9))*10^-6*10^9*10^3 ->  | R218: =1-(P221/P218) ->  | S218: =AVERAGE(O218:O223) ->  | T218: =AVERAGE(P218:P223) ->  | U218: =AVERAGE(Q218:Q223) -> 
J219: =F219-I218 -> 
J220: =F220-I218 -> 
I221: =AVERAGE(F221:F223) ->  | J221: =F221-I221 ->  | L221: =(I221-$D$57)/$D$59 ->  | M221: =10^L221 ->  | N221: =M221*(452/G218) ->  | O221: =N221*E221 ->  | P221: =O221/1000 ->  | Q221: =((P221*10^-12)*(G218*617.9))*10^-6*10^9*10^3 -> 
J222: =F222-I221 -> 
J223: =F223-I221 -> 
C224: 25 | I224: =AVERAGE(F224:F226) ->  | J224: =F224-I224 ->  | K224: =I227-I224 ->  | L224: =(I224-$D$57)/$D$59 ->  | M224: =10^L224 ->  | N224: =M224*(452/G224) ->  | O224: =N224*E224 ->  | P224: =O224/1000 ->  | Q224: =((P224*10^-12)*(G224*617.9))*10^-6*10^9*10^3 ->  | R224: =1-(P227/P224) ->  | S224: =AVERAGE(O224:O229) ->  | T224: =AVERAGE(P224:P229) ->  | U224: =AVERAGE(Q224:Q229) -> 
J225: =F225-I224 -> 
... 142 more rows

Sheet 2 dilutions - Summary (hidden)
C3: Library concentrations and yields
C5: Sample name | D5: Concentration of undiluted library (pM) | E5: Concentration of undiluted library (nM) | F5: Concentration of undiluted library (ng/µL) | G5: Library volume (µL) | H5: Available amount of library (ng)
C6: ='2 dilutions - Analysis'!D80 -> 0 | D6: ='2 dilutions - Analysis'!S80 ->  | E6: ='2 dilutions - Analysis'!T80 ->  | F6: ='2 dilutions - Analysis'!U80 ->  | G6: =25 -> 25 | H6: =F6*G6 -> 
C7: ='2 dilutions - Analysis'!D86 -> 0 | D7: ='2 dilutions - Analysis'!S86 ->  | E7: ='2 dilutions - Analysis'!T86 ->  | F7: ='2 dilutions - Analysis'!U86 ->  | G7: =25 -> 25 | H7: =F7*G7 -> 
C8: ='2 dilutions - Analysis'!D92 -> 0 | D8: ='2 dilutions - Analysis'!S92 ->  | E8: ='2 dilutions - Analysis'!T92 ->  | F8: ='2 dilutions - Analysis'!U92 ->  | G8: =25 -> 25
C9: ='2 dilutions - Analysis'!D98 -> 0 | D9: ='2 dilutions - Analysis'!S98 ->  | E9: ='2 dilutions - Analysis'!T98 ->  | F9: ='2 dilutions - Analysis'!U98 ->  | G9: 25
C10: ='2 dilutions - Analysis'!D104 -> 0 | D10: ='2 dilutions - Analysis'!S104 ->  | E10: ='2 dilutions - Analysis'!T104 ->  | F10: ='2 dilutions - Analysis'!U104 ->  | G10: 25
C11: ='2 dilutions - Analysis'!D110 -> 0 | D11: ='2 dilutions - Analysis'!S110 ->  | E11: ='2 dilutions - Analysis'!T110 ->  | F11: ='2 dilutions - Analysis'!U110 ->  | G11: 25
C12: ='2 dilutions - Analysis'!D116 -> 0 | D12: ='2 dilutions - Analysis'!S116 ->  | E12: ='2 dilutions - Analysis'!T116 ->  | F12: ='2 dilutions - Analysis'!U116 ->  | G12: 25
C13: ='2 dilutions - Analysis'!D122 -> 0 | D13: ='2 dilutions - Analysis'!S122 ->  | E13: ='2 dilutions - Analysis'!T122 ->  | F13: ='2 dilutions - Analysis'!U122 ->  | G13: 25
C14: ='2 dilutions - Analysis'!D128 -> 0 | D14: ='2 dilutions - Analysis'!S128 ->  | E14: ='2 dilutions - Analysis'!T128 ->  | F14: ='2 dilutions - Analysis'!U128 ->  | G14: 25
C15: ='2 dilutions - Analysis'!D134 -> 0 | D15: ='2 dilutions - Analysis'!S134 ->  | E15: ='2 dilutions - Analysis'!T134 ->  | F15: ='2 dilutions - Analysis'!U134 ->  | G15: 25
C16: ='2 dilutions - Analysis'!D140 -> 0 | D16: ='2 dilutions - Analysis'!S140 ->  | E16: ='2 dilutions - Analysis'!T140 ->  | F16: ='2 dilutions - Analysis'!U140 ->  | G16: 25
C17: ='2 dilutions - Analysis'!D146 -> 0 | D17: ='2 dilutions - Analysis'!S146 ->  | E17: ='2 dilutions - Analysis'!T146 ->  | F17: ='2 dilutions - Analysis'!U146 ->  | G17: 25
C18: ='2 dilutions - Analysis'!D152 -> 0 | D18: ='2 dilutions - Analysis'!S152 ->  | E18: ='2 dilutions - Analysis'!T152 ->  | F18: ='2 dilutions - Analysis'!U152 ->  | G18: 25
C19: ='2 dilutions - Analysis'!D158 -> 0 | D19: ='2 dilutions - Analysis'!S158 ->  | E19: ='2 dilutions - Analysis'!T158 ->  | F19: ='2 dilutions - Analysis'!U158 ->  | G19: 25
C20: ='2 dilutions - Analysis'!D164 -> 0 | D20: ='2 dilutions - Analysis'!S164 ->  | E20: ='2 dilutions - Analysis'!T164 ->  | F20: ='2 dilutions - Analysis'!U164 ->  | G20: 25
C21: ='2 dilutions - Analysis'!D170 -> 0 | D21: ='2 dilutions - Analysis'!S170 ->  | E21: ='2 dilutions - Analysis'!T170 ->  | F21: ='2 dilutions - Analysis'!U170 ->  | G21: 25
C22: ='2 dilutions - Analysis'!D176 -> 0 | D22: ='2 dilutions - Analysis'!S176 ->  | E22: ='2 dilutions - Analysis'!T176 ->  | F22: ='2 dilutions - Analysis'!U176 ->  | G22: 25
C23: ='2 dilutions - Analysis'!D182 -> 0 | D23: ='2 dilutions - Analysis'!S182 ->  | E23: ='2 dilutions - Analysis'!T182 ->  | F23: ='2 dilutions - Analysis'!U182 ->  | G23: 25
C24: ='2 dilutions - Analysis'!D188 -> 0 | D24: ='2 dilutions - Analysis'!S188 ->  | E24: ='2 dilutions - Analysis'!T188 ->  | F24: ='2 dilutions - Analysis'!U188 ->  | G24: 25
C25: ='2 dilutions - Analysis'!D194 -> 0 | D25: ='2 dilutions - Analysis'!S194 ->  | E25: ='2 dilutions - Analysis'!T194 ->  | F25: ='2 dilutions - Analysis'!U194 ->  | G25: 25
C26: ='2 dilutions - Analysis'!D200 -> 0 | D26: ='2 dilutions - Analysis'!S200 ->  | E26: ='2 dilutions - Analysis'!T200 ->  | F26: ='2 dilutions - Analysis'!U200 ->  | G26: 25
C27: ='2 dilutions - Analysis'!D206 -> 0 | D27: ='2 dilutions - Analysis'!S206 ->  | E27: ='2 dilutions - Analysis'!T206 ->  | F27: ='2 dilutions - Analysis'!U206 ->  | G27: 25
C28: ='2 dilutions - Analysis'!D212 -> 0 | D28: ='2 dilutions - Analysis'!S212 ->  | E28: ='2 dilutions - Analysis'!T212 ->  | F28: ='2 dilutions - Analysis'!U212 ->  | G28: 25
C29: ='2 dilutions - Analysis'!D218 -> 0 | D29: ='2 dilutions - Analysis'!S218 ->  | E29: ='2 dilutions - Analysis'!T218 ->  | F29: ='2 dilutions - Analysis'!U218 ->  | G29: 25
C30: ='2 dilutions - Analysis'!D224 -> 0 | D30: ='2 dilutions - Analysis'!S224 ->  | E30: ='2 dilutions - Analysis'!T224 ->  | F30: ='2 dilutions - Analysis'!U224 ->  | G30: 25
C31: ='2 dilutions - Analysis'!D230 -> 0 | D31: ='2 dilutions - Analysis'!S230 ->  | E31: ='2 dilutions - Analysis'!T230 ->  | F31: ='2 dilutions - Analysis'!U230 ->  | G31: 25
C32: ='2 dilutions - Analysis'!D236 -> 0 | D32: ='2 dilutions - Analysis'!S236 ->  | E32: ='2 dilutions - Analysis'!T236 ->  | F32: ='2 dilutions - Analysis'!U236 ->  | G32: 25
C33: ='2 dilutions - Analysis'!D242 -> 0 | D33: ='2 dilutions - Analysis'!S242 ->  | E33: ='2 dilutions - Analysis'!T242 ->  | F33: ='2 dilutions - Analysis'!U242 ->  | G33: 25
C34: ='2 dilutions - Analysis'!D248 -> 0 | D34: ='2 dilutions - Analysis'!S248 ->  | E34: ='2 dilutions - Analysis'!T248 ->  | F34: ='2 dilutions - Analysis'!U248 ->  | G34: 25
C35: ='2 dilutions - Analysis'!D254 -> 0 | D35: ='2 dilutions - Analysis'!S254 ->  | E35: ='2 dilutions - Analysis'!T254 ->  | F35: ='2 dilutions - Analysis'!U254 ->  | G35: 25
C36: ='2 dilutions - Analysis'!D260 -> 0 | D36: ='2 dilutions - Analysis'!S260 ->  | E36: ='2 dilutions - Analysis'!T260 ->  | F36: ='2 dilutions - Analysis'!U260 ->  | G36: 25
C37: ='2 dilutions - Analysis'!D266 -> 0 | D37: ='2 dilutions - Analysis'!S266 ->  | E37: ='2 dilutions - Analysis'!T266 ->  | F37: ='2 dilutions - Analysis'!U266 ->  | G37: 25
C38: ='2 dilutions - Analysis'!D272 -> 0 | D38: ='2 dilutions - Analysis'!S272 ->  | E38: ='2 dilutions - Analysis'!T272 ->  | F38: ='2 dilutions - Analysis'!U272 ->  | G38: 25
C39: ='2 dilutions - Analysis'!D278 -> 0 | D39: ='2 dilutions - Analysis'!S278 ->  | E39: ='2 dilutions - Analysis'!T278 ->  | F39: ='2 dilutions - Analysis'!U278 ->  | G39: 25
C40: ='2 dilutions - Analysis'!D284 -> 0 | D40: ='2 dilutions - Analysis'!S284 ->  | E40: ='2 dilutions - Analysis'!T284 ->  | F40: ='2 dilutions - Analysis'!U284 ->  | G40: 25
C41: ='2 dilutions - Analysis'!D290 -> 0 | D41: ='2 dilutions - Analysis'!S290 ->  | E41: ='2 dilutions - Analysis'!T290 ->  | F41: ='2 dilutions - Analysis'!U290 ->  | G41: 25
C42: ='2 dilutions - Analysis'!D296 -> 0 | D42: ='2 dilutions - Analysis'!S296 ->  | E42: ='2 dilutions - Analysis'!T296 ->  | F42: ='2 dilutions - Analysis'!U296 ->  | G42: 25
C43: ='2 dilutions - Analysis'!D302 -> 0 | D43: ='2 dilutions - Analysis'!S302 ->  | E43: ='2 dilutions - Analysis'!T302 ->  | F43: ='2 dilutions - Analysis'!U302 ->  | G43: 25
C44: ='2 dilutions - Analysis'!D308 -> 0 | D44: ='2 dilutions - Analysis'!S308 ->  | E44: ='2 dilutions - Analysis'!T308 ->  | F44: ='2 dilutions - Analysis'!U308 ->  | G44: 25
C45: ='2 dilutions - Analysis'!D314 -> 0 | D45: ='2 dilutions - Analysis'!S314 ->  | E45: ='2 dilutions - Analysis'!T314 ->  | F45: ='2 dilutions - Analysis'!U314 ->  | G45: 25
C46: ='2 dilutions - Analysis'!D320 -> 0 | D46: ='2 dilutions - Analysis'!S320 ->  | E46: ='2 dilutions - Analysis'!T320 ->  | F46: ='2 dilutions - Analysis'!U320 ->  | G46: 25
C47: ='2 dilutions - Analysis'!D326 -> 0 | D47: ='2 dilutions - Analysis'!S326 ->  | E47: ='2 dilutions - Analysis'!T326 ->  | F47: ='2 dilutions - Analysis'!U326 ->  | G47: 25
C48: ='2 dilutions - Analysis'!D332 -> 0 | D48: ='2 dilutions - Analysis'!S332 ->  | E48: ='2 dilutions - Analysis'!T332 ->  | F48: ='2 dilutions - Analysis'!U332 ->  | G48: 25
C49: ='2 dilutions - Analysis'!D338 -> 0 | D49: ='2 dilutions - Analysis'!S338 ->  | E49: ='2 dilutions - Analysis'!T338 ->  | F49: ='2 dilutions - Analysis'!U338 ->  | G49: 25
C50: ='2 dilutions - Analysis'!D344 -> 0 | D50: ='2 dilutions - Analysis'!S344 ->  | E50: ='2 dilutions - Analysis'!T344 ->  | F50: ='2 dilutions - Analysis'!U344 ->  | G50: 25
C51: ='2 dilutions - Analysis'!D350 -> 0 | D51: ='2 dilutions - Analysis'!S350 ->  | E51: ='2 dilutions - Analysis'!T350 ->  | F51: ='2 dilutions - Analysis'!U350 ->  | G51: 25
C52: ='2 dilutions - Analysis'!D356 -> 0 | D52: ='2 dilutions - Analysis'!S356 ->  | E52: ='2 dilutions - Analysis'!T356 ->  | F52: ='2 dilutions - Analysis'!U356 ->  | G52: 25
C53: ='2 dilutions - Analysis'!D362 -> 0 | D53: ='2 dilutions - Analysis'!S362 ->  | E53: ='2 dilutions - Analysis'!T362 ->  | F53: ='2 dilutions - Analysis'!U362 ->  | G53: 25

Sheet 3 dilutions - Analysis (hidden)
C3: Section 1. Review Cq values for DNA Standards
C5: - Enter the appropriate information into the fields highlighted in green.
C6: - Move "outliers" to column G (so these are no longer is used in calculations). Delete the formula in the corresponding row in column I.
C7: - The average Cq value for each DNA Standard should be ~3.3 cycles later than the DNA Standard that is 10-fold more concentrated (between 3.2 and 3.45 is very good
C8: and 3.1 - 3.6 is acceptable).
C9: - If the spacing between any two standards is less than 3.1 cycles and more than 3.6 cycles, those data points (and any library samples falling between those
C10: data points) are not highly reliable.
C13: Well | D13: Std # | E13: Conc (pM) | F13: Cq | G13: Outliers | H13: Av Cq | I13: Difference | J13: Delta Cq
D14: 1 | E14: 20 | H14: =AVERAGE(F14:F16) ->  | I14: =F14-$H$14 ->  | J14: -
D15: 1 | E15: 20 | I15: =F15-$H$14 -> 
D16: 1 | E16: 20 | I16: =F16-$H$14 ->  | J16: =H17-H14 -> 
D17: 2 | E17: 2 | H17: =AVERAGE(F17:F19) ->  | I17: =F17-$H$17 -> 
D18: 2 | E18: 2 | I18: =F18-$H$17 -> 
D19: 2 | E19: 2 | I19: =F19-$H$17 ->  | J19: =H20-H17 -> 
D20: 3 | E20: 0.2 | H20: =AVERAGE(F20:F22) ->  | I20: =F20-$H$20 -> 
D21: 3 | E21: 0.2 | I21: =F21-$H$20 -> 
D22: 3 | E22: 0.2 | I22: =F22-$H$20 ->  | J22: =H23-H20 -> 
D23: 4 | E23: 0.02 | H23: =AVERAGE(F23:F25) ->  | I23: =F23-$H$23 -> 
D24: 4 | E24: 0.02 | I24: =F24-$H$23 -> 
D25: 4 | E25: 0.02 | I25: =F25-$H$23 ->  | J25: =H26-H23 -> 
D26: 5 | E26: 0.002 | H26: =AVERAGE(F26:F28) ->  | I26: =F26-$H$26 -> 
D27: 5 | E27: 0.002 | I27: =F27-$H$26 -> 
D28: 5 | E28: 0.002 | I28: =F28-$H$26 ->  | J28: =H29-H26 -> 
D29: 6 | E29: 0.0002 | H29: =AVERAGE(F29:F31) ->  | I29: =F29-$H$29 -> 
D30: 6 | E30: 0.0002 | I30: =F30-$H$29 -> 
D31: 6 | E31: 0.0002 | I31: =F31-$H$29 ->  | J31: =H32-H29 -> 
D32: NTC | E32: - | H32: =AVERAGE(F32:F34) -> 
D33: NTC | E33: -
D34: NTC | E34: -
C40: Section 2. Generate and review the standard curve
C42: - Type the value for the intercept from the graph to the right into cell D57.
C43: - Type the value for the slope from the graph to the right into cell D59. | K43: Note: if the standard curve equation does not update, click on the line, right click and select
K44: Format Trendline. (Untick and) tick the boxes for "Display Equation and R-squared value on chart"
C47: DNA Standard | D47: Conc in pM | E47: Log conc | F47: Average Cq | G47: Delta Cq
C48: 1 | D48: 20 | E48: =LOG(D48) -> 1.301029996 | F48: =H14 ->  | G48: -
C49: 2 | D49: 2 | E49: 0.3010299957 | F49: =H17 ->  | G49: =F49-F48 ->  | H49: Should be between 3.1 and 3.6
C50: 3 | D50: 0.2 | E50: -0.6989700043 | F50: =H20 ->  | G50: =F50-F49 -> 
C51: 4 | D51: 0.02 | E51: -1.698970004 | F51: =H23 ->  | G51: =F51-F50 -> 
C52: 5 | D52: 0.002 | E52: -2.698970004 | F52: =H26 ->  | G52: =F52-F51 -> 
C53: 6 | D53: 0.0002 | E53: -3.698970004 | F53: =H29 ->  | G53: =F53-F52 -> 
C54: Efficiency: | D54: =POWER(10, 1/(-SLOPE(F48:F53, LOG(D48:D53))))-1 ->  | E54: (Calculated) | F54: Should be between 90 and 110%
C55: Slope: | D55: =SLOPE(F48:F53, LOG(D48:D53)) ->  | E55: (Calculated) | F55: Value must be the same as on the graph
C56: R-squared: | D56: =RSQ(F48:F53, -LOG(D48:D53)) ->  | E56: (Calculated) | F56: Should be between 0.99 and 1.00
C57: Intercept: | D57: 11.217 | E57: (Type the intercept value from the graph in cell D57)
C59: If slope = | D59: -3.2394 | E59: (Type the slope value from the graph in cell D59)
C60: then efficiency = | D60: =POWER(10, (-1/D59))-1 -> 1.035631402 | E60: (Calculated) | F60: Value must be the same as in cell D54
C63: Note: it is important to type the appropriate values from the straight line equation into the two green blocks,
C64: as the table in Section 3 uses these two values to calculate the concentration of the library samples.
C70: Section 3. Calculate and review library concentrations
C72: - Sort the data for your library samples by grouping the Cq values for different dilutions of the same sample together. Enter the appropriate information into the fields highlighted in green (Columns C - G).
C73: - Move the outliers to Column H, so these are no longer is used in calculations. If you move a Cq value (outlier) from column F to H, you have to delete the formula in column J of that row.
C75: If the average Cq value for a library < than the average Cq value for Std 1, or > than the average Cq value for Std 6, the data from that dilution may not be used in calculations (i.e. you may not extrapolate). If only one dilution of each library was assayed, the library has to
C76: requantified using a more appropriate dilution.
C79: Library # | D79: Sample name | E79: Dilution | F79: Cq | G79: Average fragment length (bp) | H79: Outliers/ outside curve | I79: Average Cq | J79: Difference | K79: Delta Cq | L79: log (concentration) | M79: Average concentration (pM) | N79: Size-adjusted concentration (pM) | O79: Concentration of undiluted library (pM) | P79: Concentration of undiluted library (nM) | Q79: Concentration of undiluted library (ng/µL) | R79: % Deviation | S79: Working concentration (pM) | T79: Working concentration (nM) | U79: Working concentration (ng/µL)
C80: 1 | I80: =AVERAGE(F80:F82) ->  | J80: =F80-I80 ->  | K80: - | L80: =(I80-$D$57)/$D$59 ->  | M80: =10^L80 ->  | N80: =M80*(452/G80) ->  | O80: =N80*E80 ->  | P80: =O80/1000 ->  | Q80: =((P80*10^-12)*(G80*617.9))*10^-6*10^9*10^3 ->  | R80: - | S80: =AVERAGE(O80:O88) ->  | T80: =AVERAGE(P80:P88) ->  | U80: =AVERAGE(Q80:Q88) -> 
J81: =F81-I80 -> 
J82: =F82-I80 -> 
I83: =AVERAGE(F83:F85) ->  | J83: =F83-I83 ->  | K83: =I83-I80 ->  | L83: =(I83-$D$57)/$D$59 ->  | M83: =10^L83 ->  | N83: =M83*(452/G80) ->  | O83: =N83*E83 ->  | P83: =O83/1000 ->  | Q83: =((P83*10^-12)*(G80*617.9))*10^-6*10^9*10^3 ->  | R83: =1-(P83/P80) -> 
J84: =F84-I83 -> 
J85: =F85-I83 -> 
H86: ` | I86: =AVERAGE(F86:F88) ->  | J86: =F86-I86 ->  | K86: =I86-I83 ->  | L86: =(I86-$D$57)/$D$59 ->  | M86: =10^L86 ->  | N86: =M86*(452/G80) ->  | O86: =N86*E86 ->  | P86: =O86/1000 ->  | Q86: =((P86*10^-12)*(G80*617.9))*10^-6*10^9*10^3 ->  | R86: =1-(P86/P80) -> 
J87: =F87-I86 -> 
J88: =F88-I86 -> 
C89: 2 | I89: =AVERAGE(F89:F91) ->  | J89: =F89-I89 ->  | K89: - | L89: =(I89-$D$57)/$D$59 ->  | M89: =10^L89 ->  | N89: =M89*(452/G89) ->  | O89: =N89*E89 ->  | P89: =O89/1000 ->  | Q89: =((P89*10^-12)*(G89*617.9))*10^-6*10^9*10^3 ->  | R89: - | S89: =AVERAGE(O89:O97) ->  | T89: =AVERAGE(P89:P97) ->  | U89: =AVERAGE(Q89:Q97) -> 
J90: =F90-I89 -> 
J91: =F91-I89 -> 
I92: =AVERAGE(F92:F94) ->  | J92: =F92-I92 ->  | K92: =I92-I89 ->  | L92: =(I92-$D$57)/$D$59 ->  | M92: =10^L92 ->  | N92: =M92*(452/G89) ->  | O92: =N92*E92 ->  | P92: =O92/1000 ->  | Q92: =((P92*10^-12)*(G89*617.9))*10^-6*10^9*10^3 ->  | R92: =1-(P92/P89) -> 
J93: =F93-I92 -> 
J94: =F94-I92 -> 
I95: =AVERAGE(F95:F97) ->  | J95: =F95-I95 ->  | K95: =I95-I92 ->  | L95: =(I95-$D$57)/$D$59 ->  | M95: =10^L95 ->  | N95: =M95*(452/G89) ->  | O95: =N95*E95 ->  | P95: =O95/1000 ->  | Q95: =((P95*10^-12)*(G89*617.9))*10^-6*10^9*10^3 ->  | R95: =1-(P95/P89) -> 
J96: =F96-I95 -> 
J97: =F97-I95 -> 
C98: 3 | I98: =AVERAGE(F98:F100) ->  | J98: =F98-I98 ->  | K98: - | L98: =(I98-$D$57)/$D$59 ->  | M98: =10^L98 ->  | N98: =M98*(452/G98) ->  | O98: =N98*E98 ->  | P98: =O98/1000 ->  | Q98: =((P98*10^-12)*(G98*617.9))*10^-6*10^9*10^3 ->  | R98: - | S98: =AVERAGE(O98:O106) ->  | T98: =AVERAGE(P98:P106) ->  | U98: =AVERAGE(Q98:Q106) -> 
J99: =F99-I98 -> 
J100: =F100-I98 -> 
I101: =AVERAGE(F101:F103) ->  | J101: =F101-I101 ->  | K101: =I101-I98 ->  | L101: =(I101-$D$57)/$D$59 ->  | M101: =10^L101 ->  | N101: =M101*(452/G98) ->  | O101: =N101*E101 ->  | P101: =O101/1000 ->  | Q101: =((P101*10^-12)*(G98*617.9))*10^-6*10^9*10^3 ->  | R101: =1-(P101/P98) -> 
J102: =F102-I101 -> 
J103: =F103-I101 -> 
I104: =AVERAGE(F104:F106) ->  | J104: =F104-I104 ->  | K104: =I104-I101 ->  | L104: =(I104-$D$57)/$D$59 ->  | M104: =10^L104 ->  | N104: =M104*(452/G98) ->  | O104: =N104*E104 ->  | P104: =O104/1000 ->  | Q104: =((P104*10^-12)*(G98*617.9))*10^-6*10^9*10^3 ->  | R104: =1-(P104/P98) -> 
J105: =F105-I104 -> 
J106: =F106-I104 -> 
C107: 4 | I107: =AVERAGE(F107:F109) ->  | J107: =F107-I107 ->  | K107: - | L107: =(I107-$D$57)/$D$59 ->  | M107: =10^L107 ->  | N107: =M107*(452/G107) ->  | O107: =N107*E107 ->  | P107: =O107/1000 ->  | Q107: =((P107*10^-12)*(G107*617.9))*10^-6*10^9*10^3 ->  | R107: - | S107: =AVERAGE(O107:O115) ->  | T107: =AVERAGE(P107:P115) ->  | U107: =AVERAGE(Q107:Q115) -> 
J108: =F108-I107 -> 
J109: =F109-I107 -> 
I110: =AVERAGE(F110:F112) ->  | J110: =F110-I110 ->  | K110: =I110-I107 ->  | L110: =(I110-$D$57)/$D$59 ->  | M110: =10^L110 ->  | N110: =M110*(452/G107) ->  | O110: =N110*E110 ->  | P110: =O110/1000 ->  | Q110: =((P110*10^-12)*(G107*617.9))*10^-6*10^9*10^3 ->  | R110: =1-(P110/P107) -> 
J111: =F111-I110 -> 
J112: =F112-I110 -> 
I113: =AVERAGE(F113:F115) ->  | J113: =F113-I113 ->  | K113: =I113-I110 ->  | L113: =(I113-$D$57)/$D$59 ->  | M113: =10^L113 ->  | N113: =M113*(452/G107) ->  | O113: =N113*E113 ->  | P113: =O113/1000 ->  | Q113: =((P113*10^-12)*(G107*617.9))*10^-6*10^9*10^3 ->  | R113: =1-(P113/P107) -> 
J114: =F114-I113 -> 
J115: =F115-I113 -> 
C116: 5 | I116: =AVERAGE(F116:F118) ->  | J116: =F116-I116 ->  | K116: - | L116: =(I116-$D$57)/$D$59 ->  | M116: =10^L116 ->  | N116: =M116*(452/G116) ->  | O116: =N116*E116 ->  | P116: =O116/1000 ->  | Q116: =((P116*10^-12)*(G116*617.9))*10^-6*10^9*10^3 ->  | R116: - | S116: =AVERAGE(O116:O124) ->  | T116: =AVERAGE(P116:P124) ->  | U116: =AVERAGE(Q116:Q124) -> 
J117: =F117-I116 -> 
J118: =F118-I116 -> 
I119: =AVERAGE(F119:F121) ->  | J119: =F119-I119 ->  | K119: =I119-I116 ->  | L119: =(I119-$D$57)/$D$59 ->  | M119: =10^L119 ->  | N119: =M119*(452/G116) ->  | O119: =N119*E119 ->  | P119: =O119/1000 ->  | Q119: =((P119*10^-12)*(G116*617.9))*10^-6*10^9*10^3 ->  | R119: =1-(P119/P116) -> 
J120: =F120-I119 -> 
J121: =F121-I119 -> 
I122: =AVERAGE(F122:F124) ->  | J122: =F122-I122 ->  | K122: =I122-I119 ->  | L122: =(I122-$D$57)/$D$59 ->  | M122: =10^L122 ->  | N122: =M122*(452/G116) ->  | O122: =N122*E122 ->  | P122: =O122/1000 ->  | Q122: =((P122*10^-12)*(G116*617.9))*10^-6*10^9*10^3 ->  | R122: =1-(P122/P116) -> 
J123: =F123-I122 -> 
J124: =F124-I122 -> 
C125: 6 | I125: =AVERAGE(F125:F127) ->  | J125: =F125-I125 ->  | K125: - | L125: =(I125-$D$57)/$D$59 ->  | M125: =10^L125 ->  | N125: =M125*(452/G125) ->  | O125: =N125*E125 ->  | P125: =O125/1000 ->  | Q125: =((P125*10^-12)*(G125*617.9))*10^-6*10^9*10^3 ->  | R125: - | S125: =AVERAGE(O125:O133) ->  | T125: =AVERAGE(P125:P133) ->  | U125: =AVERAGE(Q125:Q133) -> 
J126: =F126-I125 -> 
J127: =F127-I125 -> 
I128: =AVERAGE(F128:F130) ->  | J128: =F128-I128 ->  | K128: =I128-I125 ->  | L128: =(I128-$D$57)/$D$59 ->  | M128: =10^L128 ->  | N128: =M128*(452/G125) ->  | O128: =N128*E128 ->  | P128: =O128/1000 ->  | Q128: =((P128*10^-12)*(G125*617.9))*10^-6*10^9*10^3 ->  | R128: =1-(P128/P125) -> 
J129: =F129-I128 -> 
J130: =F130-I128 -> 
I131: =AVERAGE(F131:F133) ->  | J131: =F131-I131 ->  | K131: =I131-I128 ->  | L131: =(I131-$D$57)/$D$59 ->  | M131: =10^L131 ->  | N131: =M131*(452/G125) ->  | O131: =N131*E131 ->  | P131: =O131/1000 ->  | Q131: =((P131*10^-12)*(G125*617.9))*10^-6*10^9*10^3 ->  | R131: =1-(P131/P125) -> 
J132: =F132-I131 -> 
J133: =F133-I131 -> 
C134: 7 | I134: =AVERAGE(F134:F136) ->  | J134: =F134-I134 ->  | K134: - | L134: =(I134-$D$57)/$D$59 ->  | M134: =10^L134 ->  | N134: =M134*(452/G134) ->  | O134: =N134*E134 ->  | P134: =O134/1000 ->  | Q134: =((P134*10^-12)*(G134*617.9))*10^-6*10^9*10^3 ->  | R134: - | S134: =AVERAGE(O134:O142) ->  | T134: =AVERAGE(P134:P142) ->  | U134: =AVERAGE(Q134:Q142) -> 
J135: =F135-I134 -> 
J136: =F136-I134 -> 
I137: =AVERAGE(F137:F139) ->  | J137: =F137-I137 ->  | K137: =I137-I134 ->  | L137: =(I137-$D$57)/$D$59 ->  | M137: =10^L137 ->  | N137: =M137*(452/G134) ->  | O137: =N137*E137 ->  | P137: =O137/1000 ->  | Q137: =((P137*10^-12)*(G134*617.9))*10^-6*10^9*10^3 ->  | R137: =1-(P137/P134) -> 
J138: =F138-I137 -> 
J139: =F139-I137 -> 
I140: =AVERAGE(F140:F142) ->  | J140: =F140-I140 ->  | K140: =I140-I137 ->  | L140: =(I140-$D$57)/$D$59 ->  | M140: =10^L140 ->  | N140: =M140*(452/G134) ->  | O140: =N140*E140 ->  | P140: =O140/1000 ->  | Q140: =((P140*10^-12)*(G134*617.9))*10^-6*10^9*10^3 ->  | R140: =1-(P140/P134) -> 
J141: =F141-I140 -> 
J142: =F142-I140 -> 
C143: 8 | I143: =AVERAGE(F143:F145) ->  | J143: =F143-I143 ->  | K143: - | L143: =(I143-$D$57)/$D$59 ->  | M143: =10^L143 ->  | N143: =M143*(452/G143) ->  | O143: =N143*E143 ->  | P143: =O143/1000 ->  | Q143: =((P143*10^-12)*(G143*617.9))*10^-6*10^9*10^3 ->  | R143: - | S143: =AVERAGE(O143:O151) ->  | T143: =AVERAGE(P143:P151) ->  | U143: =AVERAGE(Q143:Q151) -> 
J144: =F144-I143 -> 
J145: =F145-I143 -> 
I146: =AVERAGE(F146:F148) ->  | J146: =F146-I146 ->  | K146: =I146-I143 ->  | L146: =(I146-$D$57)/$D$59 ->  | M146: =10^L146 ->  | N146: =M146*(452/G143) ->  | O146: =N146*E146 ->  | P146: =O146/1000 ->  | Q146: =((P146*10^-12)*(G143*617.9))*10^-6*10^9*10^3 ->  | R146: =1-(P146/P143) -> 
J147: =F147-I146 -> 
J148: =F148-I146 -> 
I149: =AVERAGE(F149:F151) ->  | J149: =F149-I149 ->  | K149: =I149-I146 ->  | L149: =(I149-$D$57)/$D$59 ->  | M149: =10^L149 ->  | N149: =M149*(452/G143) ->  | O149: =N149*E149 ->  | P149: =O149/1000 ->  | Q149: =((P149*10^-12)*(G143*617.9))*10^-6*10^9*10^3 ->  | R149: =1-(P149/P143) -> 
J150: =F150-I149 -> 
J151: =F151-I149 -> 
C152: 9 | I152: =AVERAGE(F152:F154) ->  | J152: =F152-I152 ->  | K152: - | L152: =(I152-$D$57)/$D$59 ->  | M152: =10^L152 ->  | N152: =M152*(452/G152) ->  | O152: =N152*E152 ->  | P152: =O152/1000 ->  | Q152: =((P152*10^-12)*(G152*617.9))*10^-6*10^9*10^3 ->  | R152: - | S152: =AVERAGE(O152:O160) ->  | T152: =AVERAGE(P152:P160) ->  | U152: =AVERAGE(Q152:Q160) -> 
J153: =F153-I152 -> 
J154: =F154-I152 -> 
I155: =AVERAGE(F155:F157) ->  | J155: =F155-I155 ->  | K155: =I155-I152 ->  | L155: =(I155-$D$57)/$D$59 ->  | M155: =10^L155 ->  | N155: =M155*(452/G152) ->  | O155: =N155*E155 ->  | P155: =O155/1000 ->  | Q155: =((P155*10^-12)*(G152*617.9))*10^-6*10^9*10^3 ->  | R155: =1-(P155/P152) -> 
J156: =F156-I155 -> 
J157: =F157-I155 -> 
I158: =AVERAGE(F158:F160) ->  | J158: =F158-I158 ->  | K158: =I158-I155 ->  | L158: =(I158-$D$57)/$D$59 ->  | M158: =10^L158 ->  | N158: =M158*(452/G152) ->  | O158: =N158*E158 ->  | P158: =O158/1000 ->  | Q158: =((P158*10^-12)*(G152*617.9))*10^-6*10^9*10^3 ->  | R158: =1-(P158/P152) -> 
J159: =F159-I158 -> 
J160: =F160-I158 -> 
C161: 10 | I161: =AVERAGE(F161:F163) ->  | J161: =F161-I161 ->  | K161: - | L161: =(I161-$D$57)/$D$59 ->  | M161: =10^L161 ->  | N161: =M161*(452/G161) ->  | O161: =N161*E161 ->  | P161: =O161/1000 ->  | Q161: =((P161*10^-12)*(G161*617.9))*10^-6*10^9*10^3 ->  | R161: - | S161: =AVERAGE(O161:O169) ->  | T161: =AVERAGE(P161:P169) ->  | U161: =AVERAGE(Q161:Q169) -> 
J162: =F162-I161 -> 
J163: =F163-I161 -> 
I164: =AVERAGE(F164:F166) ->  | J164: =F164-I164 ->  | K164: =I164-I161 ->  | L164: =(I164-$D$57)/$D$59 ->  | M164: =10^L164 ->  | N164: =M164*(452/G161) ->  | O164: =N164*E164 ->  | P164: =O164/1000 ->  | Q164: =((P164*10^-12)*(G161*617.9))*10^-6*10^9*10^3 ->  | R164: =1-(P164/P161) -> 
J165: =F165-I164 -> 
J166: =F166-I164 -> 
I167: =AVERAGE(F167:F169) ->  | J167: =F167-I167 ->  | K167: =I167-I164 ->  | L167: =(I167-$D$57)/$D$59 ->  | M167: =10^L167 ->  | N167: =M167*(452/G161) ->  | O167: =N167*E167 ->  | P167: =O167/1000 ->  | Q167: =((P167*10^-12)*(G161*617.9))*10^-6*10^9*10^3 ->  | R167: =1-(P167/P161) -> 
J168: =F168-I167 -> 
J169: =F169-I167 -> 
C170: 11 | I170: =AVERAGE(F170:F172) ->  | J170: =F170-I170 ->  | K170: - | L170: =(I170-$D$57)/$D$59 ->  | M170: =10^L170 ->  | N170: =M170*(452/G170) ->  | O170: =N170*E170 ->  | P170: =O170/1000 ->  | Q170: =((P170*10^-12)*(G170*617.9))*10^-6*10^9*10^3 ->  | R170: - | S170: =AVERAGE(O170:O178) ->  | T170: =AVERAGE(P170:P178) ->  | U170: =AVERAGE(Q170:Q178) -> 
J171: =F171-I170 -> 
J172: =F172-I170 -> 
I173: =AVERAGE(F173:F175) ->  | J173: =F173-I173 ->  | K173: =I173-I170 ->  | L173: =(I173-$D$57)/$D$59 ->  | M173: =10^L173 ->  | N173: =M173*(452/G170) ->  | O173: =N173*E173 ->  | P173: =O173/1000 ->  | Q173: =((P173*10^-12)*(G170*617.9))*10^-6*10^9*10^3 ->  | R173: =1-(P173/P170) -> 
J174: =F174-I173 -> 
J175: =F175-I173 -> 
I176: =AVERAGE(F176:F178) ->  | J176: =F176-I176 ->  | K176: =I176-I173 ->  | L176: =(I176-$D$57)/$D$59 ->  | M176: =10^L176 ->  | N176: =M176*(452/G170) ->  | O176: =N176*E176 ->  | P176: =O176/1000 ->  | Q176: =((P176*10^-12)*(G170*617.9))*10^-6*10^9*10^3 ->  | R176: =1-(P176/P170) -> 
J177: =F177-I176 -> 
J178: =F178-I176 -> 
C179: 12 | I179: =AVERAGE(F179:F181) ->  | J179: =F179-I179 ->  | K179: - | L179: =(I179-$D$57)/$D$59 ->  | M179: =10^L179 ->  | N179: =M179*(452/G179) ->  | O179: =N179*E179 ->  | P179: =O179/1000 ->  | Q179: =((P179*10^-12)*(G179*617.9))*10^-6*10^9*10^3 ->  | R179: - | S179: =AVERAGE(O179:O187) ->  | T179: =AVERAGE(P179:P187) ->  | U179: =AVERAGE(Q179:Q187) -> 
J180: =F180-I179 -> 
J181: =F181-I179 -> 
I182: =AVERAGE(F182:F184) ->  | J182: =F182-I182 ->  | K182: =I182-I179 ->  | L182: =(I182-$D$57)/$D$59 ->  | M182: =10^L182 ->  | N182: =M182*(452/G179) ->  | O182: =N182*E182 ->  | P182: =O182/1000 ->  | Q182: =((P182*10^-12)*(G179*617.9))*10^-6*10^9*10^3 ->  | R182: =1-(P182/P179) -> 
J183: =F183-I182 -> 
J184: =F184-I182 -> 
I185: =AVERAGE(F185:F187) ->  | J185: =F185-I185 ->  | K185: =I185-I182 ->  | L185: =(I185-$D$57)/$D$59 ->  | M185: =10^L185 ->  | N185: =M185*(452/G179) ->  | O185: =N185*E185 ->  | P185: =O185/1000 ->  | Q185: =((P185*10^-12)*(G179*617.9))*10^-6*10^9*10^3 ->  | R185: =1-(P185/P179) -> 
J186: =F186-I185 -> 
J187: =F187-I185 -> 
C188: 13 | I188: =AVERAGE(F188:F190) ->  | J188: =F188-I188 ->  | K188: - | L188: =(I188-$D$57)/$D$59 ->  | M188: =10^L188 ->  | N188: =M188*(452/G188) ->  | O188: =N188*E188 ->  | P188: =O188/1000 ->  | Q188: =((P188*10^-12)*(G188*617.9))*10^-6*10^9*10^3 ->  | R188: - | S188: =AVERAGE(O188:O196) ->  | T188: =AVERAGE(P188:P196) ->  | U188: =AVERAGE(Q188:Q196) -> 
J189: =F189-I188 -> 
J190: =F190-I188 -> 
I191: =AVERAGE(F191:F193) ->  | J191: =F191-I191 ->  | K191: =I191-I188 ->  | L191: =(I191-$D$57)/$D$59 ->  | M191: =10^L191 ->  | N191: =M191*(452/G188) ->  | O191: =N191*E191 ->  | P191: =O191/1000 ->  | Q191: =((P191*10^-12)*(G188*617.9))*10^-6*10^9*10^3 ->  | R191: =1-(P191/P188) -> 
J192: =F192-I191 -> 
J193: =F193-I191 -> 
I194: =AVERAGE(F194:F196) ->  | J194: =F194-I194 ->  | K194: =I194-I191 ->  | L194: =(I194-$D$57)/$D$59 ->  | M194: =10^L194 ->  | N194: =M194*(452/G188) ->  | O194: =N194*E194 ->  | P194: =O194/1000 ->  | Q194: =((P194*10^-12)*(G188*617.9))*10^-6*10^9*10^3 ->  | R194: =1-(P194/P188) -> 
J195: =F195-I194 -> 
J196: =F196-I194 -> 
C197: 14 | I197: =AVERAGE(F197:F199) ->  | J197: =F197-I197 ->  | K197: - | L197: =(I197-$D$57)/$D$59 ->  | M197: =10^L197 ->  | N197: =M197*(452/G197) ->  | O197: =N197*E197 ->  | P197: =O197/1000 ->  | Q197: =((P197*10^-12)*(G197*617.9))*10^-6*10^9*10^3 ->  | R197: - | S197: =AVERAGE(O197:O205) ->  | T197: =AVERAGE(P197:P205) ->  | U197: =AVERAGE(Q197:Q205) -> 
J198: =F198-I197 -> 
J199: =F199-I197 -> 
I200: =AVERAGE(F200:F202) ->  | J200: =F200-I200 ->  | K200: =I200-I197 ->  | L200: =(I200-$D$57)/$D$59 ->  | M200: =10^L200 ->  | N200: =M200*(452/G197) ->  | O200: =N200*E200 ->  | P200: =O200/1000 ->  | Q200: =((P200*10^-12)*(G197*617.9))*10^-6*10^9*10^3 ->  | R200: =1-(P200/P197) -> 
J201: =F201-I200 -> 
J202: =F202-I200 -> 
I203: =AVERAGE(F203:F205) ->  | J203: =F203-I203 ->  | K203: =I203-I200 ->  | L203: =(I203-$D$57)/$D$59 ->  | M203: =10^L203 ->  | N203: =M203*(452/G197) ->  | O203: =N203*E203 ->  | P203: =O203/1000 ->  | Q203: =((P203*10^-12)*(G197*617.9))*10^-6*10^9*10^3 ->  | R203: =1-(P203/P197) -> 
J204: =F204-I203 -> 
J205: =F205-I203 -> 
C206: 15 | I206: =AVERAGE(F206:F208) ->  | J206: =F206-I206 ->  | K206: - | L206: =(I206-$D$57)/$D$59 ->  | M206: =10^L206 ->  | N206: =M206*(452/G206) ->  | O206: =N206*E206 ->  | P206: =O206/1000 ->  | Q206: =((P206*10^-12)*(G206*617.9))*10^-6*10^9*10^3 ->  | R206: - | S206: =AVERAGE(O206:O214) ->  | T206: =AVERAGE(P206:P214) ->  | U206: =AVERAGE(Q206:Q214) -> 
J207: =F207-I206 -> 
J208: =F208-I206 -> 
I209: =AVERAGE(F209:F211) ->  | J209: =F209-I209 ->  | K209: =I209-I206 ->  | L209: =(I209-$D$57)/$D$59 ->  | M209: =10^L209 ->  | N209: =M209*(452/G206) ->  | O209: =N209*E209 ->  | P209: =O209/1000 ->  | Q209: =((P209*10^-12)*(G206*617.9))*10^-6*10^9*10^3 ->  | R209: =1-(P209/P206) -> 
J210: =F210-I209 -> 
J211: =F211-I209 -> 
I212: =AVERAGE(F212:F214) ->  | J212: =F212-I212 ->  | K212: =I212-I209 ->  | L212: =(I212-$D$57)/$D$59 ->  | M212: =10^L212 ->  | N212: =M212*(452/G206) ->  | O212: =N212*E212 ->  | P212: =O212/1000 ->  | Q212: =((P212*10^-12)*(G206*617.9))*10^-6*10^9*10^3 ->  | R212: =1-(P212/P206) -> 
J213: =F213-I212 -> 
J214: =F214-I212 -> 
C215: 16 | I215: =AVERAGE(F215:F217) ->  | J215: =F215-I215 ->  | K215: - | L215: =(I215-$D$57)/$D$59 ->  | M215: =10^L215 ->  | N215: =M215*(452/G215) ->  | O215: =N215*E215 ->  | P215: =O215/1000 ->  | Q215: =((P215*10^-12)*(G215*617.9))*10^-6*10^9*10^3 ->  | R215: - | S215: =AVERAGE(O215:O223) ->  | T215: =AVERAGE(P215:P223) ->  | U215: =AVERAGE(Q215:Q223) -> 
J216: =F216-I215 -> 
J217: =F217-I215 -> 
I218: =AVERAGE(F218:F220) ->  | J218: =F218-I218 ->  | K218: =I218-I215 ->  | L218: =(I218-$D$57)/$D$59 ->  | M218: =10^L218 ->  | N218: =M218*(452/G215) ->  | O218: =N218*E218 ->  | P218: =O218/1000 ->  | Q218: =((P218*10^-12)*(G215*617.9))*10^-6*10^9*10^3 ->  | R218: =1-(P218/P215) -> 
J219: =F219-I218 -> 
J220: =F220-I218 -> 
I221: =AVERAGE(F221:F223) ->  | J221: =F221-I221 ->  | K221: =I221-I218 ->  | L221: =(I221-$D$57)/$D$59 ->  | M221: =10^L221 ->  | N221: =M221*(452/G215) ->  | O221: =N221*E221 ->  | P221: =O221/1000 ->  | Q221: =((P221*10^-12)*(G215*617.9))*10^-6*10^9*10^3 ->  | R221: =1-(P221/P215) -> 
J222: =F222-I221 -> 
J223: =F223-I221 -> 
C224: 17 | I224: =AVERAGE(F224:F226) ->  | J224: =F224-I224 ->  | K224: - | L224: =(I224-$D$57)/$D$59 ->  | M224: =10^L224 ->  | N224: =M224*(452/G224) ->  | O224: =N224*E224 ->  | P224: =O224/1000 ->  | Q224: =((P224*10^-12)*(G224*617.9))*10^-6*10^9*10^3 ->  | R224: - | S224: =AVERAGE(O224:O232) ->  | T224: =AVERAGE(P224:P232) ->  | U224: =AVERAGE(Q224:Q232) -> 
J225: =F225-I224 -> 
... 142 more rows

Sheet 3 dilutions - Summary (hidden)
C3: Library concentrations and yields
C5: Sample name | D5: Concentration of undiluted library (pM) | E5: Concentration of undiluted library (nM) | F5: Concentration of undiluted library (ng/µL) | G5: Library volume (µL) | H5: Available amount of library (ng)
C6: ='3 dilutions - Analysis'!D80 -> 0 | D6: ='3 dilutions - Analysis'!S80 ->  | E6: ='3 dilutions - Analysis'!T80 ->  | F6: ='3 dilutions - Analysis'!U80 ->  | G6: =25 -> 25 | H6: =F6*G6 -> 
C7: ='3 dilutions - Analysis'!D89 -> 0 | D7: ='3 dilutions - Analysis'!S89 ->  | E7: ='3 dilutions - Analysis'!T89 ->  | F7: ='3 dilutions - Analysis'!U89 ->  | G7: =25 -> 25 | H7: =F7*G7 -> 
C8: ='3 dilutions - Analysis'!D98 -> 0 | D8: ='3 dilutions - Analysis'!S98 ->  | E8: ='3 dilutions - Analysis'!T98 ->  | F8: ='3 dilutions - Analysis'!U98 ->  | G8: =25 -> 25
C9: ='3 dilutions - Analysis'!D107 -> 0 | D9: ='3 dilutions - Analysis'!S107 ->  | E9: ='3 dilutions - Analysis'!T107 ->  | F9: ='3 dilutions - Analysis'!U107 ->  | G9: 25
C10: ='3 dilutions - Analysis'!D116 -> 0 | D10: ='3 dilutions - Analysis'!S116 ->  | E10: ='3 dilutions - Analysis'!T116 ->  | F10: ='3 dilutions - Analysis'!U116 ->  | G10: 25
C11: ='3 dilutions - Analysis'!D125 -> 0 | D11: ='3 dilutions - Analysis'!S125 ->  | E11: ='3 dilutions - Analysis'!T125 ->  | F11: ='3 dilutions - Analysis'!U125 ->  | G11: 25
C12: ='3 dilutions - Analysis'!D134 -> 0 | D12: ='3 dilutions - Analysis'!S134 ->  | E12: ='3 dilutions - Analysis'!T134 ->  | F12: ='3 dilutions - Analysis'!U134 ->  | G12: 25
C13: ='3 dilutions - Analysis'!D143 -> 0 | D13: ='3 dilutions - Analysis'!S143 ->  | E13: ='3 dilutions - Analysis'!T143 ->  | F13: ='3 dilutions - Analysis'!U143 ->  | G13: 25
C14: ='3 dilutions - Analysis'!D152 -> 0 | D14: ='3 dilutions - Analysis'!S152 ->  | E14: ='3 dilutions - Analysis'!T152 ->  | F14: ='3 dilutions - Analysis'!U152 ->  | G14: 25
C15: ='3 dilutions - Analysis'!D161 -> 0 | D15: ='3 dilutions - Analysis'!S161 ->  | E15: ='3 dilutions - Analysis'!T161 ->  | F15: ='3 dilutions - Analysis'!U161 ->  | G15: 25
C16: ='3 dilutions - Analysis'!D170 -> 0 | D16: ='3 dilutions - Analysis'!S170 ->  | E16: ='3 dilutions - Analysis'!T170 ->  | F16: ='3 dilutions - Analysis'!U170 ->  | G16: 25
C17: ='3 dilutions - Analysis'!D179 -> 0 | D17: ='3 dilutions - Analysis'!S179 ->  | E17: ='3 dilutions - Analysis'!T179 ->  | F17: ='3 dilutions - Analysis'!U179 ->  | G17: 25
C18: ='3 dilutions - Analysis'!D188 -> 0 | D18: ='3 dilutions - Analysis'!S188 ->  | E18: ='3 dilutions - Analysis'!T188 ->  | F18: ='3 dilutions - Analysis'!U188 ->  | G18: 25
C19: ='3 dilutions - Analysis'!D197 -> 0 | D19: ='3 dilutions - Analysis'!S197 ->  | E19: ='3 dilutions - Analysis'!T197 ->  | F19: ='3 dilutions - Analysis'!U197 ->  | G19: 25
C20: ='3 dilutions - Analysis'!D206 -> 0 | D20: ='3 dilutions - Analysis'!S206 ->  | E20: ='3 dilutions - Analysis'!T206 ->  | F20: ='3 dilutions - Analysis'!U206 ->  | G20: 25
C21: ='3 dilutions - Analysis'!D215 -> 0 | D21: ='3 dilutions - Analysis'!S215 ->  | E21: ='3 dilutions - Analysis'!T215 ->  | F21: ='3 dilutions - Analysis'!U215 ->  | G21: 25
C22: ='3 dilutions - Analysis'!D224 -> 0 | D22: ='3 dilutions - Analysis'!S224 ->  | E22: ='3 dilutions - Analysis'!T224 ->  | F22: ='3 dilutions - Analysis'!U224 ->  | G22: 25
C23: ='3 dilutions - Analysis'!D233 -> 0 | D23: ='3 dilutions - Analysis'!S233 ->  | E23: ='3 dilutions - Analysis'!T233 ->  | F23: ='3 dilutions - Analysis'!U233 ->  | G23: 25
C24: ='3 dilutions - Analysis'!D242 -> 0 | D24: ='3 dilutions - Analysis'!S242 ->  | E24: ='3 dilutions - Analysis'!T242 ->  | F24: ='3 dilutions - Analysis'!U242 ->  | G24: 25
C25: ='3 dilutions - Analysis'!D251 -> 0 | D25: ='3 dilutions - Analysis'!S251 ->  | E25: ='3 dilutions - Analysis'!T251 ->  | F25: ='3 dilutions - Analysis'!U251 ->  | G25: 25
C26: ='3 dilutions - Analysis'!D260 -> 0 | D26: ='3 dilutions - Analysis'!S260 ->  | E26: ='3 dilutions - Analysis'!T260 ->  | F26: ='3 dilutions - Analysis'!U260 ->  | G26: 25
C27: ='3 dilutions - Analysis'!D269 -> 0 | D27: ='3 dilutions - Analysis'!S269 ->  | E27: ='3 dilutions - Analysis'!T269 ->  | F27: ='3 dilutions - Analysis'!U269 ->  | G27: 25
C28: ='3 dilutions - Analysis'!D278 -> 0 | D28: ='3 dilutions - Analysis'!S278 ->  | E28: ='3 dilutions - Analysis'!T278 ->  | F28: ='3 dilutions - Analysis'!U278 ->  | G28: 25
C29: ='3 dilutions - Analysis'!D287 -> 0 | D29: ='3 dilutions - Analysis'!S287 ->  | E29: ='3 dilutions - Analysis'!T287 ->  | F29: ='3 dilutions - Analysis'!U287 ->  | G29: 25
C30: ='3 dilutions - Analysis'!D296 -> 0 | D30: ='3 dilutions - Analysis'!S296 ->  | E30: ='3 dilutions - Analysis'!T296 ->  | F30: ='3 dilutions - Analysis'!U296 ->  | G30: 25
C31: ='3 dilutions - Analysis'!D305 -> 0 | D31: ='3 dilutions - Analysis'!S305 ->  | E31: ='3 dilutions - Analysis'!T305 ->  | F31: ='3 dilutions - Analysis'!U305 ->  | G31: 25
C32: ='3 dilutions - Analysis'!D314 -> 0 | D32: ='3 dilutions - Analysis'!S314 ->  | E32: ='3 dilutions - Analysis'!T314 ->  | F32: ='3 dilutions - Analysis'!U314 ->  | G32: 25
C33: ='3 dilutions - Analysis'!D323 -> 0 | D33: ='3 dilutions - Analysis'!S323 ->  | E33: ='3 dilutions - Analysis'!T323 ->  | F33: ='3 dilutions - Analysis'!U323 ->  | G33: 25
C34: ='3 dilutions - Analysis'!D332 -> 0 | D34: ='3 dilutions - Analysis'!S332 ->  | E34: ='3 dilutions - Analysis'!T332 ->  | F34: ='3 dilutions - Analysis'!U332 ->  | G34: 25
C35: ='3 dilutions - Analysis'!D341 -> 0 | D35: ='3 dilutions - Analysis'!S341 ->  | E35: ='3 dilutions - Analysis'!T341 ->  | F35: ='3 dilutions - Analysis'!U341 ->  | G35: 25
C36: ='3 dilutions - Analysis'!D350 -> 0 | D36: ='3 dilutions - Analysis'!S350 ->  | E36: ='3 dilutions - Analysis'!T350 ->  | F36: ='3 dilutions - Analysis'!U350 ->  | G36: 25
C37: ='3 dilutions - Analysis'!D359 -> 0 | D37: ='3 dilutions - Analysis'!S359 ->  | E37: ='3 dilutions - Analysis'!T359 ->  | F37: ='3 dilutions - Analysis'!U359 ->  | G37: 25

Sheet Chromium Connect Assay Info
A1: Fill in the sample names and corresponding average library sizes for this experiment | G1: Dilution 1 | H1: 12500 | J1: CG000157 Rev A
G2: Dilution 2 | H2: 62500
G3: Dilution 3 | H3: 312500
B4: Sample Name | C4: Average Library Size (bp) | G4: Dilution 4 | H4: 1562500
A5: Sample 1
A6: Sample 2
A7: Sample 3
A8: Sample 4
A9: Sample 5
A10: Sample 6
A11: Sample 7
A12: Sample 8

Sheet Cq data input
A1: Copy and paste the Cq values obtained for this experiment into cells B4-B99 | J1: CG000157 Rev A
A3: Well | B3: Cq
A4: A01
A5: A02
A6: A03
A7: A04
A8: A05
A9: A06
A10: A07
A11: A08
A12: A09
A13: A10
A14: A11
A15: A12
A16: B01
A17: B02
A18: B03
A19: B04
A20: B05
A21: B06
A22: B07
A23: B08
A24: B09
A25: B10
A26: B11
A27: B12
A28: C01
A29: C02
A30: C03
A31: C04
A32: C05
A33: C06
A34: C07
A35: C08
A36: C09
A37: C10
A38: C11
A39: C12
A40: D01
A41: D02
A42: D03
A43: D04
A44: D05
A45: D06
A46: D07
A47: D08
A48: D09
A49: D10
A50: D11
A51: D12
A52: E01
A53: E02
A54: E03
A55: E04
A56: E05
A57: E06
A58: E07
A59: E08
A60: E09
A61: E10
A62: E11
A63: E12
A64: F01
A65: F02
A66: F03
A67: F04
A68: F05
A69: F06
A70: F07
A71: F08
A72: F09
A73: F10
A74: F11
A75: F12
A76: G01
A77: G02
A78: G03
A79: G04
A80: G05
A81: G06
A82: G07
A83: G08
A84: G09
A85: G10
A86: G11
A87: G12
A88: H01
A89: H02
A90: H03
A91: H04
A92: H05
A93: H06
A94: H07
A95: H08
A96: H09
A97: H10
A98: H11
A99: H12

Sheet Analysis
J1: CG000157 Rev A
C3: Section 1. Review Cq values for DNA Standards
C5: - Enter the appropriate information into the fields highlighted in green.
C6: - Move "outliers" to column G (so these are no longer is used in calculations). Delete the formula in the corresponding row in column I.
C7: - The average Cq value for each DNA Standard should be ~3.3 cycles later than the DNA Standard that is 10-fold more concentrated (between 3.2 and 3.45 is very good
C8: and 3.1 - 3.6 is acceptable).
C9: - If the spacing between any two standards is less than 3.1 cycles and more than 3.6 cycles, those data points (and any library samples falling between those
C10: data points) are not highly reliable.
C13: Well | D13: Std # | E13: Conc (pM) | F13: Cq | G13: Outliers | H13: Av Cq | I13: Difference | J13: Delta Cq
C14: A11 | D14: 1 | E14: 20 | F14: =IF('Cq data input'!$B$14="","",'Cq data input'!$B$14) ->  | H14: =AVERAGE(F14:F15) ->  | I14: =F14-$H$14 -> 
C15: A12 | D15: 1 | E15: 20 | F15: =IF('Cq data input'!$B$15="","",'Cq data input'!$B$15) ->  | I15: =F15-$H$14 ->  | J15: =H16-H14 -> 
C16: B11 | D16: 2 | E16: 2 | F16: =IF('Cq data input'!$B$26="","",'Cq data input'!$B$26) ->  | H16: =AVERAGE(F16:F17) ->  | I16: =F16-$H$16 -> 
C17: B12 | D17: 2 | E17: 2 | F17: =IF('Cq data input'!$B$27="","",'Cq data input'!$B$27) ->  | I17: =F17-$H$16 ->  | J17: =H18-H16 -> 
C18: C11 | D18: 3 | E18: 0.2 | F18: =IF('Cq data input'!$B$38="","",'Cq data input'!$B$38) ->  | H18: =AVERAGE(F18:F19) ->  | I18: =F18-$H$18 -> 
C19: C12 | D19: 3 | E19: 0.2 | F19: =IF('Cq data input'!$B$39="","",'Cq data input'!$B$39) ->  | I19: =F19-$H$18 ->  | J19: =H20-H18 -> 
C20: D11 | D20: 4 | E20: 0.02 | F20: =IF('Cq data input'!$B$50="","",'Cq data input'!$B$50) ->  | H20: =AVERAGE(F20:F21) ->  | I20: =F20-$H$20 -> 
C21: D12 | D21: 4 | E21: 0.02 | F21: =IF('Cq data input'!$B$51="","",'Cq data input'!$B$51) ->  | I21: =F21-$H$20 ->  | J21: =H22-H20 -> 
C22: E11 | D22: 5 | E22: 0.002 | F22: =IF('Cq data input'!$B$62="","",'Cq data input'!$B$62) ->  | H22: =AVERAGE(F22:F23) ->  | I22: =F22-$H$22 -> 
C23: E12 | D23: 5 | E23: 0.002 | F23: =IF('Cq data input'!$B$63="","",'Cq data input'!$B$63) ->  | I23: =F23-$H$22 ->  | J23: =H24-H22 -> 
C24: F11 | D24: 6 | E24: 0.0002 | F24: =IF('Cq data input'!$B$74="","",'Cq data input'!$B$74) ->  | H24: =AVERAGE(F24:F25) ->  | I24: =F24-$H$24 -> 
C25: F12 | D25: 6 | E25: 0.0002 | F25: =IF('Cq data input'!$B$75="","",'Cq data input'!$B$75) ->  | I25: =F25-$H$24 ->  | J25: =H26-H24 -> 
C26: G11 | D26: NTC | E26: - | F26: =IF('Cq data input'!$B$86="","",'Cq data input'!$B$86) ->  | H26: =AVERAGE(F26:F29) ->  | I26: =F26-$H$26 -> 
C27: G12 | D27: NTC | E27: - | F27: =IF('Cq data input'!$B$87="","",'Cq data input'!$B$87) ->  | I27: =F27-$H$26 ->  | J27: =H28-H26 -> 
C28: H11 | D28: NTC | E28: - | F28: =IF('Cq data input'!$B$98="","",'Cq data input'!$B$98) ->  | I28: =F28-$H$26 -> 
C29: H12 | D29: NTC | E29: - | F29: =IF('Cq data input'!$B$99="","",'Cq data input'!$B$99) -> 
T31: CG000157 Rev A
C33: Section 2. Generate and review the standard curve
K36: Note: if the standard curve equation does not update, click on the line, right click and select
K37: Format Trendline. (Untick and) tick the boxes for "Display Equation and R-squared value on chart"
C40: DNA Standard | D40: Conc in pM | E40: Log conc | F40: Average Cq | G40: Delta Cq
C41: 1 | D41: 20 | E41: =LOG(D41) -> 1.301029996 | F41: =H14 ->  | G41: -
C42: 2 | D42: 2 | E42: 0.3010299957 | F42: =H16 ->  | G42: =F42-F41 ->  | H42: Should be between 3.1 and 3.6
C43: 3 | D43: 0.2 | E43: -0.6989700043 | F43: =H18 ->  | G43: =F43-F42 -> 
C44: 4 | D44: 0.02 | E44: -1.698970004 | F44: =H20 ->  | G44: =F44-F43 -> 
C45: 5 | D45: 0.002 | E45: -2.698970004 | F45: =H22 ->  | G45: =F45-F44 -> 
C46: 6 | D46: 0.0002 | E46: -3.698970004 | F46: =H24 ->  | G46: =F46-F45 -> 
C47: Efficiency: | D47: =POWER(10, 1/(-SLOPE(F41:F46, LOG(D41:D46))))-1 ->  | E47: (Calculated) | F47: Should be between 90 and 110%
C48: Slope: | D48: =SLOPE(F41:F46, LOG(D41:D46)) ->  | E48: (Calculated) | F48: Value must be the same as on the graph
C49: R-squared: | D49: =RSQ(F41:F46, -LOG(D41:D46)) ->  | E49: (Calculated) | F49: Should be between 0.99 and 1.00
C50: Intercept: | D50: =INTERCEPT(F41:F46,E41:E46) -> 
C52: If slope = | D52: =SLOPE(F41:F46,E41:E46) -> 
C53: then efficiency = | D53: =POWER(10, (-1/D52))-1 ->  | E53: (Calculated)
C56: Note: it is important to type the appropriate values from the straight line equation into the two green blocks,
C57: as the table in Section 3 uses these two values to calculate the concentration of the library samples.
C63: Section 3. Calculate and review library concentrations
C65: - Sort the data for your library samples by grouping the Cq values for different dilutions of the same sample together. Enter the appropriate information into the fields highlighted in green (Columns C - G).
C66: - Move the outliers to Column H, so these are no longer is used in calculations. If you move a Cq value (outlier) from column F to H, you have to delete the formula in column J of that row.
C68: If the average Cq value for a library < than the average Cq value for Std 1, or > than the average Cq value for Std 6, the data from that dilution may not be used in calculations (i.e. you may not extrapolate). If only one dilution of each library was assayed, the library has to
C69: requantified using a more appropriate dilution.
C72: Library # | D72: Sample name | E72: Dilution | F72: Cq | G72: Average fragment length (bp) | H72: Outliers/ outside curve | I72: Average Cq | J72: Difference | K72: Delta Cq | L72: log (concentration) | M72: Average concentration (pM) | N72: Size-adjusted concentration (pM) | O72: Concentration of undiluted library (pM) | P72: Concentration of undiluted library (nM) | Q72: Conentration of undiluted library (ng/µL) | R72: % Deviation | S72: Working concentration (pM) | T72: Working concentration (nM) | U72: Working concentration (ng/µL)
C73: 1 | D73: =IF('Chromium Connect Assay Info'!$B$5="","",'Chromium Connect Assay Info'!$B$5) ->  | E73: ='Chromium Connect Assay Info'!$H$1 -> 12500 | F73: =IF('Cq data input'!$B$4="","",'Cq data input'!$B$4) ->  | G73: =IF('Chromium Connect Assay Info'!$C$5="","",'Chromium Connect Assay Info'!$C$5) ->  | I73: =AVERAGE(F73:F73) ->  | J73: =F73-I73 ->  | K73: - | L73: =(I73-$D$50)/$D$52 ->  | M73: =10^L73 ->  | N73: =M73*(452/G73) ->  | O73: =N73*E73 ->  | P73: =O73/1000 ->  | Q73: =((P73*10^-12)*(G73*617.9))*10^-6*10^9*10^3 ->  | R73: - | S73: =AVERAGE(O73:O76) ->  | T73: =AVERAGE(P73:P76) ->  | U73: =AVERAGE(Q73:Q76) -> 
E74: ='Chromium Connect Assay Info'!$H$2 -> 62500 | F74: =IF('Cq data input'!$B$5="","",'Cq data input'!$B$5) ->  | K74: =I74-I73 ->  | N74: =M74*(452/G73) ->  | Q74: =((P74*10^-12)*(G73*617.9))*10^-6*10^9*10^3 ->  | R74: =1-(P74/P73) -> 
E75: ='Chromium Connect Assay Info'!$H$3 -> 312500 | F75: =IF('Cq data input'!$B$6="","",'Cq data input'!$B$6) ->  | H75: ` | K75: =I75-I74 ->  | N75: =M75*(452/G73) ->  | Q75: =((P75*10^-12)*(G73*617.9))*10^-6*10^9*10^3 ->  | R75: =1-(P75/P73) -> 
E76: ='Chromium Connect Assay Info'!$H$4 -> 1562500 | F76: =IF('Cq data input'!$B$7="","",'Cq data input'!$B$7) ->  | K76: =I76-I75 ->  | N76: =M76*(452/G73) ->  | Q76: =((P76*10^-12)*(G73*617.9))*10^-6*10^9*10^3 ->  | R76: =1-(P76/P73) -> 
C77: 2 | D77: =IF('Chromium Connect Assay Info'!$B$6="","",'Chromium Connect Assay Info'!$B$6) ->  | E77: ='Chromium Connect Assay Info'!$H$1 -> 12500 | F77: =IF('Cq data input'!$B$16="","",'Cq data input'!$B$16) ->  | G77: =IF('Chromium Connect Assay Info'!$C$6="","",'Chromium Connect Assay Info'!$C$6) ->  | K77: - | N77: =M77*(452/G77) ->  | Q77: =((P77*10^-12)*(G77*617.9))*10^-6*10^9*10^3 ->  | R77: - | S77: =AVERAGE(O77:O80) ->  | T77: =AVERAGE(P77:P80) ->  | U77: =AVERAGE(Q77:Q80) -> 
E78: ='Chromium Connect Assay Info'!$H$2 -> 62500 | F78: =IF('Cq data input'!$B$17="","",'Cq data input'!$B$17) ->  | K78: =I78-I77 ->  | N78: =M78*(452/G77) ->  | Q78: =((P78*10^-12)*(G77*617.9))*10^-6*10^9*10^3 ->  | R78: =1-(P78/P77) -> 
E79: ='Chromium Connect Assay Info'!$H$3 -> 312500 | F79: =IF('Cq data input'!$B$18="","",'Cq data input'!$B$18) ->  | H79: ` | K79: =I79-I78 ->  | N79: =M79*(452/G77) ->  | Q79: =((P79*10^-12)*(G77*617.9))*10^-6*10^9*10^3 ->  | R79: =1-(P79/P77) -> 
E80: ='Chromium Connect Assay Info'!$H$4 -> 1562500 | F80: =IF('Cq data input'!$B$19="","",'Cq data input'!$B$19) ->  | K80: =I80-I79 ->  | N80: =M80*(452/G77) ->  | Q80: =((P80*10^-12)*(G77*617.9))*10^-6*10^9*10^3 ->  | R80: =1-(P80/P77) -> 
C81: 3 | D81: =IF('Chromium Connect Assay Info'!$B$7="","",'Chromium Connect Assay Info'!$B$7) ->  | E81: ='Chromium Connect Assay Info'!$H$1 -> 12500 | F81: =IF('Cq data input'!$B$28="","",'Cq data input'!$B$28) ->  | G81: =IF('Chromium Connect Assay Info'!$C$7="","",'Chromium Connect Assay Info'!$C$7) ->  | K81: - | N81: =M81*(452/G81) ->  | Q81: =((P81*10^-12)*(G81*617.9))*10^-6*10^9*10^3 ->  | R81: - | S81: =AVERAGE(O81:O84) ->  | T81: =AVERAGE(P81:P84) ->  | U81: =AVERAGE(Q81:Q84) -> 
E82: ='Chromium Connect Assay Info'!$H$2 -> 62500 | F82: =IF('Cq data input'!$B$29="","",'Cq data input'!$B$29) ->  | K82: =I82-I81 ->  | N82: =M82*(452/G81) ->  | Q82: =((P82*10^-12)*(G81*617.9))*10^-6*10^9*10^3 ->  | R82: =1-(P82/P81) -> 
E83: ='Chromium Connect Assay Info'!$H$3 -> 312500 | F83: =IF('Cq data input'!$B$30="","",'Cq data input'!$B$30) ->  | H83: ` | K83: =I83-I82 ->  | N83: =M83*(452/G81) ->  | Q83: =((P83*10^-12)*(G81*617.9))*10^-6*10^9*10^3 ->  | R83: =1-(P83/P81) -> 
E84: ='Chromium Connect Assay Info'!$H$4 -> 1562500 | F84: =IF('Cq data input'!$B$31="","",'Cq data input'!$B$31) ->  | K84: =I84-I83 ->  | N84: =M84*(452/G81) ->  | Q84: =((P84*10^-12)*(G81*617.9))*10^-6*10^9*10^3 ->  | R84: =1-(P84/P81) -> 
C85: 4 | D85: =IF('Chromium Connect Assay Info'!$B$8="","",'Chromium Connect Assay Info'!$B$8) ->  | E85: ='Chromium Connect Assay Info'!$H$1 -> 12500 | F85: =IF('Cq data input'!$B$40="","",'Cq data input'!$B$40) ->  | G85: =IF('Chromium Connect Assay Info'!$C$8="","",'Chromium Connect Assay Info'!$C$8) ->  | K85: - | N85: =M85*(452/G85) ->  | Q85: =((P85*10^-12)*(G85*617.9))*10^-6*10^9*10^3 ->  | R85: - | S85: =AVERAGE(O85:O88) ->  | T85: =AVERAGE(P85:P88) ->  | U85: =AVERAGE(Q85:Q88) -> 
E86: ='Chromium Connect Assay Info'!$H$2 -> 62500 | F86: =IF('Cq data input'!$B$41="","",'Cq data input'!$B$41) ->  | K86: =I86-I85 ->  | N86: =M86*(452/G85) ->  | Q86: =((P86*10^-12)*(G85*617.9))*10^-6*10^9*10^3 ->  | R86: =1-(P86/P85) -> 
E87: ='Chromium Connect Assay Info'!$H$3 -> 312500 | F87: =IF('Cq data input'!$B$42="","",'Cq data input'!$B$42) ->  | H87: ` | K87: =I87-I86 ->  | N87: =M87*(452/G85) ->  | Q87: =((P87*10^-12)*(G85*617.9))*10^-6*10^9*10^3 ->  | R87: =1-(P87/P85) -> 
E88: ='Chromium Connect Assay Info'!$H$4 -> 1562500 | F88: =IF('Cq data input'!$B$43="","",'Cq data input'!$B$43) ->  | K88: =I88-I87 ->  | N88: =M88*(452/G85) ->  | Q88: =((P88*10^-12)*(G85*617.9))*10^-6*10^9*10^3 ->  | R88: =1-(P88/P85) -> 
C89: 5 | D89: =IF('Chromium Connect Assay Info'!$B$9="","",'Chromium Connect Assay Info'!$B$9) ->  | E89: ='Chromium Connect Assay Info'!$H$1 -> 12500 | F89: =IF('Cq data input'!$B$52="","",'Cq data input'!$B$52) ->  | G89: =IF('Chromium Connect Assay Info'!$C$9="","",'Chromium Connect Assay Info'!$C$9) ->  | K89: - | N89: =M89*(452/G89) ->  | Q89: =((P89*10^-12)*(G89*617.9))*10^-6*10^9*10^3 ->  | R89: - | S89: =AVERAGE(O89:O92) ->  | T89: =AVERAGE(P89:P92) ->  | U89: =AVERAGE(Q89:Q92) -> 
E90: ='Chromium Connect Assay Info'!$H$2 -> 62500 | F90: =IF('Cq data input'!$B$53="","",'Cq data input'!$B$53) ->  | K90: =I90-I89 ->  | N90: =M90*(452/G89) ->  | Q90: =((P90*10^-12)*(G89*617.9))*10^-6*10^9*10^3 ->  | R90: =1-(P90/P89) -> 
E91: ='Chromium Connect Assay Info'!$H$3 -> 312500 | F91: =IF('Cq data input'!$B$54="","",'Cq data input'!$B$54) ->  | H91: ` | K91: =I91-I90 ->  | N91: =M91*(452/G89) ->  | Q91: =((P91*10^-12)*(G89*617.9))*10^-6*10^9*10^3 ->  | R91: =1-(P91/P89) -> 
E92: ='Chromium Connect Assay Info'!$H$4 -> 1562500 | F92: =IF('Cq data input'!$B$55="","",'Cq data input'!$B$55) ->  | K92: =I92-I91 ->  | N92: =M92*(452/G89) ->  | Q92: =((P92*10^-12)*(G89*617.9))*10^-6*10^9*10^3 ->  | R92: =1-(P92/P89) -> 
C93: 6 | D93: =IF('Chromium Connect Assay Info'!$B$10="","",'Chromium Connect Assay Info'!$B$10) ->  | E93: ='Chromium Connect Assay Info'!$H$1 -> 12500 | F93: =IF('Cq data input'!$B$64="","",'Cq data input'!$B$64) ->  | G93: =IF('Chromium Connect Assay Info'!$C$10="","",'Chromium Connect Assay Info'!$C$10) ->  | K93: - | N93: =M93*(452/G93) ->  | Q93: =((P93*10^-12)*(G93*617.9))*10^-6*10^9*10^3 ->  | R93: - | S93: =AVERAGE(O93:O96) ->  | T93: =AVERAGE(P93:P96) ->  | U93: =AVERAGE(Q93:Q96) -> 
E94: ='Chromium Connect Assay Info'!$H$2 -> 62500 | F94: =IF('Cq data input'!$B$65="","",'Cq data input'!$B$65) ->  | K94: =I94-I93 ->  | N94: =M94*(452/G93) ->  | Q94: =((P94*10^-12)*(G93*617.9))*10^-6*10^9*10^3 ->  | R94: =1-(P94/P93) -> 
E95: ='Chromium Connect Assay Info'!$H$3 -> 312500 | F95: =IF('Cq data input'!$B$66="","",'Cq data input'!$B$66) ->  | H95: ` | K95: =I95-I94 ->  | N95: =M95*(452/G93) ->  | Q95: =((P95*10^-12)*(G93*617.9))*10^-6*10^9*10^3 ->  | R95: =1-(P95/P93) -> 
E96: ='Chromium Connect Assay Info'!$H$4 -> 1562500 | F96: =IF('Cq data input'!$B$67="","",'Cq data input'!$B$67) ->  | K96: =I96-I95 ->  | N96: =M96*(452/G93) ->  | Q96: =((P96*10^-12)*(G93*617.9))*10^-6*10^9*10^3 ->  | R96: =1-(P96/P93) -> 
C97: 7 | D97: =IF('Chromium Connect Assay Info'!$B$11="","",'Chromium Connect Assay Info'!$B$11) ->  | E97: ='Chromium Connect Assay Info'!$H$1 -> 12500 | F97: =IF('Cq data input'!$B$76="","",'Cq data input'!$B$76) ->  | G97: =IF('Chromium Connect Assay Info'!$C$11="","",'Chromium Connect Assay Info'!$C$11) ->  | K97: - | N97: =M97*(452/G97) ->  | Q97: =((P97*10^-12)*(G97*617.9))*10^-6*10^9*10^3 ->  | R97: - | S97: =AVERAGE(O97:O100) ->  | T97: =AVERAGE(P97:P100) ->  | U97: =AVERAGE(Q97:Q100) -> 
E98: ='Chromium Connect Assay Info'!$H$2 -> 62500 | F98: =IF('Cq data input'!$B$77="","",'Cq data input'!$B$77) ->  | K98: =I98-I97 ->  | N98: =M98*(452/G97) ->  | Q98: =((P98*10^-12)*(G97*617.9))*10^-6*10^9*10^3 ->  | R98: =1-(P98/P97) -> 
E99: ='Chromium Connect Assay Info'!$H$3 -> 312500 | F99: =IF('Cq data input'!$B$78="","",'Cq data input'!$B$78) ->  | H99: ` | K99: =I99-I98 ->  | N99: =M99*(452/G97) ->  | Q99: =((P99*10^-12)*(G97*617.9))*10^-6*10^9*10^3 ->  | R99: =1-(P99/P97) -> 
E100: ='Chromium Connect Assay Info'!$H$4 -> 1562500 | F100: =IF('Cq data input'!$B$79="","",'Cq data input'!$B$79) ->  | K100: =I100-I99 ->  | N100: =M100*(452/G97) ->  | Q100: =((P100*10^-12)*(G97*617.9))*10^-6*10^9*10^3 ->  | R100: =1-(P100/P97) -> 
C101: 8 | D101: =IF('Chromium Connect Assay Info'!$B$12="","",'Chromium Connect Assay Info'!$B$12) ->  | E101: ='Chromium Connect Assay Info'!$H$1 -> 12500 | F101: =IF('Cq data input'!$B$88="","",'Cq data input'!$B$88) ->  | G101: =IF('Chromium Connect Assay Info'!$C$12="","",'Chromium Connect Assay Info'!$C$12) ->  | K101: - | N101: =M101*(452/G101) ->  | Q101: =((P101*10^-12)*(G101*617.9))*10^-6*10^9*10^3 ->  | R101: - | S101: =AVERAGE(O101:O104) ->  | T101: =AVERAGE(P101:P104) ->  | U101: =AVERAGE(Q101:Q104) -> 
E102: ='Chromium Connect Assay Info'!$H$2 -> 62500 | F102: =IF('Cq data input'!$B$89="","",'Cq data input'!$B$89) ->  | K102: =I102-I101 ->  | N102: =M102*(452/G101) ->  | Q102: =((P102*10^-12)*(G101*617.9))*10^-6*10^9*10^3 ->  | R102: =1-(P102/P101) -> 
E103: ='Chromium Connect Assay Info'!$H$3 -> 312500 | F103: =IF('Cq data input'!$B$90="","",'Cq data input'!$B$90) ->  | H103: ` | K103: =I103-I102 ->  | N103: =M103*(452/G101) ->  | Q103: =((P103*10^-12)*(G101*617.9))*10^-6*10^9*10^3 ->  | R103: =1-(P103/P101) -> 
E104: ='Chromium Connect Assay Info'!$H$4 -> 1562500 | F104: =IF('Cq data input'!$B$91="","",'Cq data input'!$B$91) ->  | K104: =I104-I103 ->  | N104: =M104*(452/G101) ->  | Q104: =((P104*10^-12)*(G101*617.9))*10^-6*10^9*10^3 ->  | R104: =1-(P104/P101) -> 
C105: 9 | D105: =IF('Chromium Connect Assay Info'!$B$5="","",'Chromium Connect Assay Info'!$B$5) ->  | E105: ='Chromium Connect Assay Info'!$H$1 -> 12500 | F105: =IF('Cq data input'!$B$8="","",'Cq data input'!$B$8) ->  | G105: =IF('Chromium Connect Assay Info'!$C$5="","",'Chromium Connect Assay Info'!$C$5) ->  | I105: =AVERAGE(F105:F105) ->  | J105: =F105-I105 ->  | K105: - | L105: =(I105-$D$50)/$D$52 ->  | M105: =10^L105 ->  | N105: =M105*(452/G105) ->  | O105: =N105*E105 ->  | P105: =O105/1000 ->  | Q105: =((P105*10^-12)*(G105*617.9))*10^-6*10^9*10^3 ->  | R105: - | S105: =AVERAGE(O105:O108) ->  | T105: =AVERAGE(P105:P108) ->  | U105: =AVERAGE(Q105:Q108) -> 
E106: ='Chromium Connect Assay Info'!$H$2 -> 62500 | F106: =IF('Cq data input'!$B$9="","",'Cq data input'!$B$9) ->  | K106: =I106-I105 ->  | N106: =M106*(452/G105) ->  | Q106: =((P106*10^-12)*(G105*617.9))*10^-6*10^9*10^3 ->  | R106: =1-(P106/P105) -> 
E107: ='Chromium Connect Assay Info'!$H$3 -> 312500 | F107: =IF('Cq data input'!$B$10="","",'Cq data input'!$B$10) ->  | H107: ` | K107: =I107-I106 ->  | N107: =M107*(452/G105) ->  | Q107: =((P107*10^-12)*(G105*617.9))*10^-6*10^9*10^3 ->  | R107: =1-(P107/P105) -> 
E108: ='Chromium Connect Assay Info'!$H$4 -> 1562500 | F108: =IF('Cq data input'!$B$11="","",'Cq data input'!$B$11) ->  | K108: =I108-I107 ->  | N108: =M108*(452/G105) ->  | Q108: =((P108*10^-12)*(G105*617.9))*10^-6*10^9*10^3 ->  | R108: =1-(P108/P105) -> 
C109: 10 | D109: =IF('Chromium Connect Assay Info'!$B$6="","",'Chromium Connect Assay Info'!$B$6) ->  | E109: ='Chromium Connect Assay Info'!$H$1 -> 12500 | F109: =IF('Cq data input'!$B$20="","",'Cq data input'!$B$20) ->  | G109: =IF('Chromium Connect Assay Info'!$C$6="","",'Chromium Connect Assay Info'!$C$6) ->  | K109: - | N109: =M109*(452/G109) ->  | Q109: =((P109*10^-12)*(G109*617.9))*10^-6*10^9*10^3 ->  | R109: - | S109: =AVERAGE(O109:O112) ->  | T109: =AVERAGE(P109:P112) ->  | U109: =AVERAGE(Q109:Q112) -> 
E110: ='Chromium Connect Assay Info'!$H$2 -> 62500 | F110: =IF('Cq data input'!$B$21="","",'Cq data input'!$B$21) ->  | K110: =I110-I109 ->  | N110: =M110*(452/G109) ->  | Q110: =((P110*10^-12)*(G109*617.9))*10^-6*10^9*10^3 ->  | R110: =1-(P110/P109) -> 
E111: ='Chromium Connect Assay Info'!$H$3 -> 312500 | F111: =IF('Cq data input'!$B$22="","",'Cq data input'!$B$22) ->  | H111: ` | K111: =I111-I110 ->  | N111: =M111*(452/G109) ->  | Q111: =((P111*10^-12)*(G109*617.9))*10^-6*10^9*10^3 ->  | R111: =1-(P111/P109) -> 
E112: ='Chromium Connect Assay Info'!$H$4 -> 1562500 | F112: =IF('Cq data input'!$B$23="","",'Cq data input'!$B$23) ->  | K112: =I112-I111 ->  | N112: =M112*(452/G109) ->  | Q112: =((P112*10^-12)*(G109*617.9))*10^-6*10^9*10^3 ->  | R112: =1-(P112/P109) -> 
C113: 11 | D113: =IF('Chromium Connect Assay Info'!$B$7="","",'Chromium Connect Assay Info'!$B$7) ->  | E113: ='Chromium Connect Assay Info'!$H$1 -> 12500 | F113: =IF('Cq data input'!$B$32="","",'Cq data input'!$B$32) ->  | G113: =IF('Chromium Connect Assay Info'!$C$7="","",'Chromium Connect Assay Info'!$C$7) ->  | K113: - | N113: =M113*(452/G113) ->  | Q113: =((P113*10^-12)*(G113*617.9))*10^-6*10^9*10^3 ->  | R113: - | S113: =AVERAGE(O113:O116) ->  | T113: =AVERAGE(P113:P116) ->  | U113: =AVERAGE(Q113:Q116) -> 
E114: ='Chromium Connect Assay Info'!$H$2 -> 62500 | F114: =IF('Cq data input'!$B$33="","",'Cq data input'!$B$33) ->  | K114: =I114-I113 ->  | N114: =M114*(452/G113) ->  | Q114: =((P114*10^-12)*(G113*617.9))*10^-6*10^9*10^3 ->  | R114: =1-(P114/P113) -> 
E115: ='Chromium Connect Assay Info'!$H$3 -> 312500 | F115: =IF('Cq data input'!$B$34="","",'Cq data input'!$B$34) ->  | H115: ` | K115: =I115-I114 ->  | N115: =M115*(452/G113) ->  | Q115: =((P115*10^-12)*(G113*617.9))*10^-6*10^9*10^3 ->  | R115: =1-(P115/P113) -> 
E116: ='Chromium Connect Assay Info'!$H$4 -> 1562500 | F116: =IF('Cq data input'!$B$35="","",'Cq data input'!$B$35) ->  | K116: =I116-I115 ->  | N116: =M116*(452/G113) ->  | Q116: =((P116*10^-12)*(G113*617.9))*10^-6*10^9*10^3 ->  | R116: =1-(P116/P113) -> 
C117: 12 | D117: =IF('Chromium Connect Assay Info'!$B$8="","",'Chromium Connect Assay Info'!$B$8) ->  | E117: ='Chromium Connect Assay Info'!$H$1 -> 12500 | F117: =IF('Cq data input'!$B$44="","",'Cq data input'!$B$44) ->  | G117: =IF('Chromium Connect Assay Info'!$C$8="","",'Chromium Connect Assay Info'!$C$8) ->  | K117: - | N117: =M117*(452/G117) ->  | Q117: =((P117*10^-12)*(G117*617.9))*10^-6*10^9*10^3 ->  | R117: - | S117: =AVERAGE(O117:O120) ->  | T117: =AVERAGE(P117:P120) ->  | U117: =AVERAGE(Q117:Q120) -> 
E118: ='Chromium Connect Assay Info'!$H$2 -> 62500 | F118: =IF('Cq data input'!$B$45="","",'Cq data input'!$B$45) ->  | K118: =I118-I117 ->  | N118: =M118*(452/G117) ->  | Q118: =((P118*10^-12)*(G117*617.9))*10^-6*10^9*10^3 ->  | R118: =1-(P118/P117) -> 
E119: ='Chromium Connect Assay Info'!$H$3 -> 312500 | F119: =IF('Cq data input'!$B$46="","",'Cq data input'!$B$46) ->  | H119: ` | K119: =I119-I118 ->  | N119: =M119*(452/G117) ->  | Q119: =((P119*10^-12)*(G117*617.9))*10^-6*10^9*10^3 ->  | R119: =1-(P119/P117) -> 
E120: ='Chromium Connect Assay Info'!$H$4 -> 1562500 | F120: =IF('Cq data input'!$B$47="","",'Cq data input'!$B$47) ->  | K120: =I120-I119 ->  | N120: =M120*(452/G117) ->  | Q120: =((P120*10^-12)*(G117*617.9))*10^-6*10^9*10^3 ->  | R120: =1-(P120/P117) -> 
C121: 13 | D121: =IF('Chromium Connect Assay Info'!$B$9="","",'Chromium Connect Assay Info'!$B$9) ->  | E121: ='Chromium Connect Assay Info'!$H$1 -> 12500 | F121: =IF('Cq data input'!$B$56="","",'Cq data input'!$B$56) ->  | G121: =IF('Chromium Connect Assay Info'!$C$9="","",'Chromium Connect Assay Info'!$C$9) ->  | K121: - | N121: =M121*(452/G121) ->  | Q121: =((P121*10^-12)*(G121*617.9))*10^-6*10^9*10^3 ->  | R121: - | S121: =AVERAGE(O121:O124) ->  | T121: =AVERAGE(P121:P124) ->  | U121: =AVERAGE(Q121:Q124) -> 
E122: ='Chromium Connect Assay Info'!$H$2 -> 62500 | F122: =IF('Cq data input'!$B$57="","",'Cq data input'!$B$57) ->  | K122: =I122-I121 ->  | N122: =M122*(452/G121) ->  | Q122: =((P122*10^-12)*(G121*617.9))*10^-6*10^9*10^3 ->  | R122: =1-(P122/P121) -> 
E123: ='Chromium Connect Assay Info'!$H$3 -> 312500 | F123: =IF('Cq data input'!$B$58="","",'Cq data input'!$B$58) ->  | H123: ` | K123: =I123-I122 ->  | N123: =M123*(452/G121) ->  | Q123: =((P123*10^-12)*(G121*617.9))*10^-6*10^9*10^3 ->  | R123: =1-(P123/P121) -> 
E124: ='Chromium Connect Assay Info'!$H$4 -> 1562500 | F124: =IF('Cq data input'!$B$59="","",'Cq data input'!$B$59) ->  | K124: =I124-I123 ->  | N124: =M124*(452/G121) ->  | Q124: =((P124*10^-12)*(G121*617.9))*10^-6*10^9*10^3 ->  | R124: =1-(P124/P121) -> 
C125: 14 | D125: =IF('Chromium Connect Assay Info'!$B$10="","",'Chromium Connect Assay Info'!$B$10) ->  | E125: ='Chromium Connect Assay Info'!$H$1 -> 12500 | F125: =IF('Cq data input'!$B$68="","",'Cq data input'!$B$68) ->  | G125: =IF('Chromium Connect Assay Info'!$C$10="","",'Chromium Connect Assay Info'!$C$10) ->  | K125: - | N125: =M125*(452/G125) ->  | Q125: =((P125*10^-12)*(G125*617.9))*10^-6*10^9*10^3 ->  | R125: - | S125: =AVERAGE(O125:O128) ->  | T125: =AVERAGE(P125:P128) ->  | U125: =AVERAGE(Q125:Q128) -> 
E126: ='Chromium Connect Assay Info'!$H$2 -> 62500 | F126: =IF('Cq data input'!$B$69="","",'Cq data input'!$B$69) ->  | K126: =I126-I125 ->  | N126: =M126*(452/G125) ->  | Q126: =((P126*10^-12)*(G125*617.9))*10^-6*10^9*10^3 ->  | R126: =1-(P126/P125) -> 
E127: ='Chromium Connect Assay Info'!$H$3 -> 312500 | F127: =IF('Cq data input'!$B$70="","",'Cq data input'!$B$70) ->  | H127: ` | K127: =I127-I126 ->  | N127: =M127*(452/G125) ->  | Q127: =((P127*10^-12)*(G125*617.9))*10^-6*10^9*10^3 ->  | R127: =1-(P127/P125) -> 
E128: ='Chromium Connect Assay Info'!$H$4 -> 1562500 | F128: =IF('Cq data input'!$B$71="","",'Cq data input'!$B$71) ->  | K128: =I128-I127 ->  | N128: =M128*(452/G125) ->  | Q128: =((P128*10^-12)*(G125*617.9))*10^-6*10^9*10^3 ->  | R128: =1-(P128/P125) -> 
C129: 15 | D129: =IF('Chromium Connect Assay Info'!$B$11="","",'Chromium Connect Assay Info'!$B$11) ->  | E129: ='Chromium Connect Assay Info'!$H$1 -> 12500 | F129: =IF('Cq data input'!$B$80="","",'Cq data input'!$B$80) ->  | G129: =IF('Chromium Connect Assay Info'!$C$11="","",'Chromium Connect Assay Info'!$C$11) ->  | K129: - | N129: =M129*(452/G129) ->  | Q129: =((P129*10^-12)*(G129*617.9))*10^-6*10^9*10^3 ->  | R129: - | S129: =AVERAGE(O129:O132) ->  | T129: =AVERAGE(P129:P132) ->  | U129: =AVERAGE(Q129:Q132) -> 
E130: ='Chromium Connect Assay Info'!$H$2 -> 62500 | F130: =IF('Cq data input'!$B$81="","",'Cq data input'!$B$81) ->  | K130: =I130-I129 ->  | N130: =M130*(452/G129) ->  | Q130: =((P130*10^-12)*(G129*617.9))*10^-6*10^9*10^3 ->  | R130: =1-(P130/P129) -> 
E131: ='Chromium Connect Assay Info'!$H$3 -> 312500 | F131: =IF('Cq data input'!$B$82="","",'Cq data input'!$B$82) ->  | H131: ` | K131: =I131-I130 ->  | N131: =M131*(452/G129) ->  | Q131: =((P131*10^-12)*(G129*617.9))*10^-6*10^9*10^3 ->  | R131: =1-(P131/P129) -> 
E132: ='Chromium Connect Assay Info'!$H$4 -> 1562500 | F132: =IF('Cq data input'!$B$83="","",'Cq data input'!$B$83) ->  | K132: =I132-I131 ->  | N132: =M132*(452/G129) ->  | Q132: =((P132*10^-12)*(G129*617.9))*10^-6*10^9*10^3 ->  | R132: =1-(P132/P129) -> 
C133: 16 | D133: =IF('Chromium Connect Assay Info'!$B$12="","",'Chromium Connect Assay Info'!$B$12) ->  | E133: ='Chromium Connect Assay Info'!$H$1 -> 12500 | F133: =IF('Cq data input'!$B$92="","",'Cq data input'!$B$92) ->  | G133: =IF('Chromium Connect Assay Info'!$C$12="","",'Chromium Connect Assay Info'!$C$12) ->  | K133: - | N133: =M133*(452/G133) ->  | Q133: =((P133*10^-12)*(G133*617.9))*10^-6*10^9*10^3 ->  | R133: - | S133: =AVERAGE(O133:O136) ->  | T133: =AVERAGE(P133:P136) ->  | U133: =AVERAGE(Q133:Q136) -> 
E134: ='Chromium Connect Assay Info'!$H$2 -> 62500 | F134: =IF('Cq data input'!$B$93="","",'Cq data input'!$B$93) ->  | K134: =I134-I133 ->  | N134: =M134*(452/G133) ->  | Q134: =((P134*10^-12)*(G133*617.9))*10^-6*10^9*10^3 ->  | R134: =1-(P134/P133) -> 
E135: ='Chromium Connect Assay Info'!$H$3 -> 312500 | F135: =IF('Cq data input'!$B$94="","",'Cq data input'!$B$94) ->  | H135: ` | K135: =I135-I134 ->  | N135: =M135*(452/G133) ->  | Q135: =((P135*10^-12)*(G133*617.9))*10^-6*10^9*10^3 ->  | R135: =1-(P135/P133) -> 
E136: ='Chromium Connect Assay Info'!$H$4 -> 1562500 | F136: =IF('Cq data input'!$B$95="","",'Cq data input'!$B$95) ->  | K136: =I136-I135 ->  | N136: =M136*(452/G133) ->  | Q136: =((P136*10^-12)*(G133*617.9))*10^-6*10^9*10^3 ->  | R136: =1-(P136/P133) -> 

Sheet Summary
R1: CG000157 Rev A
C2: Library concentrations
C4: Sample name | D4: Library Concentration (pM) | E4: Library Concentration (nM) | F4: Library Concentration (ng/µL)
C5: =Analysis!D73 ->  | D5: =Analysis!S73 ->  | E5: =Analysis!T73 ->  | F5: =Analysis!U73 -> 
C6: =Analysis!D77 ->  | D6: =Analysis!S77 ->  | E6: =Analysis!T77 ->  | F6: =Analysis!U77 -> 
C7: =Analysis!D81 ->  | D7: =Analysis!S81 ->  | E7: =Analysis!T81 ->  | F7: =Analysis!U81 -> 
C8: =Analysis!D85 ->  | D8: =Analysis!S85 ->  | E8: =Analysis!T85 ->  | F8: =Analysis!U85 -> 
C9: =Analysis!D89 ->  | D9: =Analysis!S89 ->  | E9: =Analysis!T89 ->  | F9: =Analysis!U89 -> 
C10: =Analysis!D93 ->  | D10: =Analysis!S93 ->  | E10: =Analysis!T93 ->  | F10: =Analysis!U93 -> 
C11: =Analysis!D97 ->  | D11: =Analysis!S97 ->  | E11: =Analysis!T97 ->  | F11: =Analysis!U97 -> 
C12: =Analysis!D101 ->  | D12: =Analysis!S101 ->  | E12: =Analysis!T101 ->  | F12: =Analysis!U101 -> 
C13: =Analysis!D105 ->  | D13: =Analysis!S105 ->  | E13: =Analysis!T105 ->  | F13: =Analysis!U105 -> 
C14: =Analysis!D109 ->  | D14: =Analysis!S109 ->  | E14: =Analysis!T109 ->  | F14: =Analysis!U109 -> 
C15: =Analysis!D113 ->  | D15: =Analysis!S113 ->  | E15: =Analysis!T113 ->  | F15: =Analysis!U113 -> 
C16: =Analysis!D117 ->  | D16: =Analysis!S117 ->  | E16: =Analysis!T117 ->  | F16: =Analysis!U117 -> 
C17: =Analysis!D121 ->  | D17: =Analysis!S121 ->  | E17: =Analysis!T121 ->  | F17: =Analysis!U121 -> 
C18: =Analysis!D125 ->  | D18: =Analysis!S125 ->  | E18: =Analysis!T125 ->  | F18: =Analysis!U125 -> 
C19: =Analysis!D129 ->  | D19: =Analysis!S129 ->  | E19: =Analysis!T129 ->  | F19: =Analysis!U129 -> 
C20: =Analysis!D133 ->  | D20: =Analysis!S133 ->  | E20: =Analysis!T133 ->  | F20: =Analysis!U133 -> 
C22: Library ave concentrations and yields
C24: Sample name | D24: Ave Library Concentration (pM) | E24: Ave Library Concentration (nM) | F24: Stnd Dev of Library Conc (nM) | G24: Ave Conc of library (ng/µL) | H24: Library volume (µL) | I24: Available amount of library (ng)
C25: =C5 ->  | D25: =AVERAGE(D5,D13) ->  | F25: =STDEV(E5,E13) ->  | G25: =AVERAGE(F5,F13) ->  | H25: =25 -> 25 | I25: =G25*H25 -> 
C26: =C6 ->  | F26: =STDEV(E6,E14) ->  | H26: =25 -> 25 | I26: =G26*H26 -> 
H27: =25 -> 25
H28: 25
H29: 25
H30: 25
H31: 25
H32: 25

Sheet Example Assay Info
A1: Fill in the sample names and corresponding average library sizes for this experiment | G1: Dilution 1 | H1: 12500 | J1: CG000157 Rev A
G2: Dilution 2 | H2: 62500
G3: Dilution 3 | H3: 312500
B4: Sample name | C4: ave lib size (bp)(BioA) | G4: Dilution 4 | H4: 1562500
A5: Sample 1 | B5: Connect_1 | C5: 466
A6: Sample 2 | B6: Connect_2 | C6: 458
A7: Sample 3 | B7: Connect_3 | C7: 458
A8: Sample 4 | B8: Connect_4 | C8: 465
A9: Sample 5 | B9: Connect_5 | C9: 467
A10: Sample 6 | B10: Connect_6 | C10: 470
A11: Sample 7 | B11: Connect_7 | C11: 465
A12: Sample 8 | B12: Connect_8 | C12: 470

Sheet Example Cq data
A1: Copy and paste the Cq values obtained for this experiment into cells B4-B99 | J1: CG000157 Rev A
A3: Well | B3: Cq
A4: A01 | B4: 14.4
A5: A02 | B5: 16.84
A6: A03 | B6: 19.31
A7: A04 | B7: 21.86
A8: A05 | B8: 14.35
A9: A06 | B9: 16.89
A10: A07 | B10: 19.52
A11: A08 | B11: 21.94
A12: A09
A13: A10
A14: A11 | B14: 9.8
A15: A12 | B15: 9.73
A16: B01 | B16: 14.9
A17: B02 | B17: 17.36
A18: B03 | B18: 19.89
A19: B04 | B19: 22.28
A20: B05 | B20: 14.93
A21: B06 | B21: 17.4
A22: B07 | B22: 20
A23: B08 | B23: 22.54
A24: B09
A25: B10
A26: B11 | B26: 13.47
A27: B12 | B27: 13.6
A28: C01 | B28: 14.47
A29: C02 | B29: 16.96
A30: C03 | B30: 19.39
A31: C04 | B31: 21.98
A32: C05 | B32: 14.5
A33: C06 | B33: 17.06
A34: C07 | B34: 19.54
A35: C08 | B35: 22.04
A36: C09
A37: C10
A38: C11 | B38: 17.04
A39: C12 | B39: 17.04
A40: D01 | B40: 14.68
A41: D02 | B41: 17.15
A42: D03 | B42: 19.59
A43: D04 | B43: 22
A44: D05 | B44: 14.6
A45: D06 | B45: 17.17
A46: D07 | B46: 19.64
A47: D08 | B47: 22.17
A48: D09
A49: D10
A50: D11 | B50: 20.52
A51: D12 | B51: 20.64
A52: E01 | B52: 14.26
A53: E02 | B53: 16.79
A54: E03 | B54: 19.17
A55: E04 | B55: 21.7
A56: E05 | B56: 14.4
A57: E06 | B57: 16.77
A58: E07 | B58: 19.27
A59: E08 | B59: 21.8
A60: E09
A61: E10
A62: E11 | B62: 23.83
A63: E12 | B63: 23.83
A64: F01 | B64: 14.78
A65: F02 | B65: 17.11
A66: F03 | B66: 19.68
A67: F04 | B67: 22.17
A68: F05 | B68: 14.74
A69: F06 | B69: 17.22
A70: F07 | B70: 19.72
A71: F08 | B71: 22.24
A72: F09
A73: F10
A74: F11 | B74: 27.52
A75: F12 | B75: 27.4
A76: G01 | B76: 14.53
A77: G02 | B77: 17.04
A78: G03 | B78: 19.48
A79: G04 | B79: 22.06
A80: G05 | B80: 14.52
A81: G06 | B81: 17.12
A82: G07 | B82: 19.59
A83: G08 | B83: 22.13
A84: G09
A85: G10
A86: G11
A87: G12
A88: H01 | B88: 14.56
A89: H02 | B89: 17.07
A90: H03 | B90: 19.45
A91: H04 | B91: 21.95
A92: H05 | B92: 14.51
A93: H06 | B93: 17.08
A94: H07 | B94: 19.53
A95: H08 | B95: 22.08
A96: H09
A97: H10
A98: H11
A99: H12

Sheet Example Analysis
J1: CG000157 Rev A
C3: Section 1. Review Cq values for DNA Standards
C5: - Enter the appropriate information into the fields highlighted in green.
C6: - Move "outliers" to column G (so these are no longer is used in calculations). Delete the formula in the corresponding row in column I.
C7: - The average Cq value for each DNA Standard should be ~3.3 cycles later than the DNA Standard that is 10-fold more concentrated (between 3.2 and 3.45 is very good
C8: and 3.1 - 3.6 is acceptable).
C9: - If the spacing between any two standards is less than 3.1 cycles and more than 3.6 cycles, those data points (and any library samples falling between those
C10: data points) are not highly reliable. | T10: CG000157 Rev A
C13: Well | D13: Std # | E13: Conc (pM) | F13: Cq | G13: Outliers | H13: Av Cq | I13: Difference | J13: Delta Cq
C14: A11 | D14: 1 | E14: 20 | F14: =IF('Example Cq data'!$B$14="","",'Example Cq data'!$B$14) -> 9.8 | H14: =AVERAGE(F14:F15) -> 9.765 | I14: =F14-$H$14 -> 0.035
C15: A12 | D15: 1 | E15: 20 | F15: =IF('Example Cq data'!$B$15="","",'Example Cq data'!$B$15) -> 9.73 | I15: =F15-$H$14 -> -0.035 | J15: =H16-H14 -> 3.77
C16: B11 | D16: 2 | E16: 2 | F16: =IF('Example Cq data'!$B$26="","",'Example Cq data'!$B$26) -> 13.47 | H16: =AVERAGE(F16:F17) -> 13.535 | I16: =F16-$H$16 -> -0.065
C17: B12 | D17: 2 | E17: 2 | F17: =IF('Example Cq data'!$B$27="","",'Example Cq data'!$B$27) -> 13.6 | I17: =F17-$H$16 -> 0.065 | J17: =H18-H16 -> 3.505
C18: C11 | D18: 3 | E18: 0.2 | F18: =IF('Example Cq data'!$B$38="","",'Example Cq data'!$B$38) -> 17.04 | H18: =AVERAGE(F18:F19) -> 17.04 | I18: =F18-$H$18 -> 0
C19: C12 | D19: 3 | E19: 0.2 | F19: =IF('Example Cq data'!$B$39="","",'Example Cq data'!$B$39) -> 17.04 | I19: =F19-$H$18 -> 0 | J19: =H20-H18 -> 3.54
C20: D11 | D20: 4 | E20: 0.02 | F20: =IF('Example Cq data'!$B$50="","",'Example Cq data'!$B$50) -> 20.52 | H20: =AVERAGE(F20:F21) -> 20.58 | I20: =F20-$H$20 -> -0.06
C21: D12 | D21: 4 | E21: 0.02 | F21: =IF('Example Cq data'!$B$51="","",'Example Cq data'!$B$51) -> 20.64 | I21: =F21-$H$20 -> 0.06 | J21: =H22-H20 -> 3.25
C22: E11 | D22: 5 | E22: 0.002 | F22: =IF('Example Cq data'!$B$62="","",'Example Cq data'!$B$62) -> 23.83 | H22: =AVERAGE(F22:F23) -> 23.83 | I22: =F22-$H$22 -> 0
C23: E12 | D23: 5 | E23: 0.002 | F23: =IF('Example Cq data'!$B$63="","",'Example Cq data'!$B$63) -> 23.83 | I23: =F23-$H$22 -> 0 | J23: =H24-H22 -> 3.63
C24: F11 | D24: 6 | E24: 0.0002 | F24: =IF('Example Cq data'!$B$74="","",'Example Cq data'!$B$74) -> 27.52 | H24: =AVERAGE(F24:F25) -> 27.46 | I24: =F24-$H$24 -> 0.06
C25: F12 | D25: 6 | E25: 0.0002 | F25: =IF('Example Cq data'!$B$75="","",'Example Cq data'!$B$75) -> 27.4 | I25: =F25-$H$24 -> -0.06 | J25: =H26-H24 -> 
C26: G11 | D26: NTC | E26: - | F26: =IF('Example Cq data'!$B$86="","",'Example Cq data'!$B$86) ->  | H26: =AVERAGE(F26:F29) ->  | I26: =F26-$H$26 -> 
C27: G12 | D27: NTC | E27: - | F27: =IF('Example Cq data'!$B$87="","",'Example Cq data'!$B$87) ->  | I27: =F27-$H$26 ->  | J27: =H28-H26 -> 
C28: H11 | D28: NTC | E28: - | F28: =IF('Example Cq data'!$B$98="","",'Example Cq data'!$B$98) ->  | I28: =F28-$H$26 -> 
C29: H12 | D29: NTC | E29: - | F29: =IF('Example Cq data'!$B$99="","",'Example Cq data'!$B$99) -> 
C33: Section 2. Generate and review the standard curve
K36: Note: if the standard curve equation does not update, click on the line, right click and select
K37: Format Trendline. (Untick and) tick the boxes for "Display Equation and R-squared value on chart"
C40: DNA Standard | D40: Conc in pM | E40: Log conc | F40: Average Cq | G40: Delta Cq
C41: 1 | D41: 20 | E41: =LOG(D41) -> 1.301029996 | F41: =H14 -> 9.765 | G41: -
C42: 2 | D42: 2 | E42: 0.3010299957 | F42: =H16 -> 13.535 | G42: =F42-F41 -> 3.77 | H42: Should be between 3.1 and 3.6
C43: 3 | D43: 0.2 | E43: -0.6989700043 | F43: =H18 -> 17.04 | G43: =F43-F42 -> 3.505
C44: 4 | D44: 0.02 | E44: -1.698970004 | F44: =H20 -> 20.58 | G44: =F44-F43 -> 3.54
C45: 5 | D45: 0.002 | E45: -2.698970004 | F45: =H22 -> 23.83 | G45: =F45-F44 -> 3.25
C46: 6 | D46: 0.0002 | E46: -3.698970004 | F46: =H24 -> 27.46 | G46: =F46-F45 -> 3.63
C47: Efficiency: | D47: =POWER(10, 1/(-SLOPE(F41:F46, LOG(D41:D46))))-1 -> 0.9265681557 | E47: (Calculated) | F47: Should be between 90 and 110%
C48: Slope: | D48: =SLOPE(F41:F46, LOG(D41:D46)) -> -3.511428571 | E48: (Calculated) | F48: Value must be the same as on the graph
C49: R-squared: | D49: =RSQ(F41:F46, -LOG(D41:D46)) -> 0.9996356476 | E49: (Calculated) | F49: Should be between 0.99 and 1.00
C50: Intercept: | D50: =INTERCEPT(F41:F46,E41:E46) -> 14.49156914
C52: If slope = | D52: =SLOPE(F41:F46,E41:E46) -> -3.511428571
C53: then efficiency = | D53: =POWER(10, (-1/D52))-1 -> 0.9265681557 | E53: (Calculated)
C56: Note: it is important to type the appropriate values from the straight line equation into the two green blocks,
C57: as the table in Section 3 uses these two values to calculate the concentration of the library samples.
C63: Section 3. Calculate and review library concentrations
C65: - Sort the data for your library samples by grouping the Cq values for different dilutions of the same sample together. Enter the appropriate information into the fields highlighted in green (Columns C - G).
C66: - Move the outliers to Column H, so these are no longer is used in calculations. If you move a Cq value (outlier) from column F to H, you have to delete the formula in column J of that row.
C68: If the average Cq value for a library < than the average Cq value for Std 1, or > than the average Cq value for Std 6, the data from that dilution may not be used in calculations (i.e. you may not extrapolate). If only one dilution of each library was assayed, the library has to
C69: requantified using a more appropriate dilution.
C72: Library # | D72: Sample name | E72: Dilution | F72: Cq | G72: Average fragment length (bp) | H72: Outliers/ outside curve | I72: Average Cq | J72: Difference | K72: Delta Cq | L72: log (concentration) | M72: Average concentration (pM) | N72: Size-adjusted concentration (pM) | O72: Concentration of undiluted library (pM) | P72: Concentration of undiluted library (nM) | Q72: Conentration of undiluted library (ng/µL) | R72: % Deviation | S72: Working concentration (pM) | T72: Working concentration (nM) | U72: Working concentration (ng/µL)
C73: 1 | D73: =IF('Example Assay Info'!$B$5="","",'Example Assay Info'!$B$5) -> Connect_1 | E73: ='Example Assay Info'!$H$1 -> 12500 | F73: =IF('Example Cq data'!$B$4="","",'Example Cq data'!$B$4) -> 14.4 | G73: =IF('Example Assay Info'!$C$5="","",'Example Assay Info'!$C$5) -> 466 | I73: =AVERAGE(F73:F73) -> 14.4 | J73: =F73-I73 -> 0 | K73: - | L73: =(I73-$D$50)/$D$52 -> 0.02607745973 | M73: =10^L73 -> 1.061884936 | N73: =M73*(452/G73) -> 1.029982813 | O73: =N73*E73 -> 12874.78516 | P73: =O73/1000 -> 12.87478516 | Q73: =((P73*10^-12)*(G73*617.9))*10^-6*10^9*10^3 -> 3.707183665 | R73: - | S73: =AVERAGE(O73:O76) -> 12704.62487 | T73: =AVERAGE(P73:P76) -> 12.70462487 | U73: =AVERAGE(Q73:Q76) -> 3.65818747
E74: ='Example Assay Info'!$H$2 -> 62500 | F74: =IF('Example Cq data'!$B$5="","",'Example Cq data'!$B$5) -> 16.84 | I74: 16.84 | J74: 0 | K74: =I74-I73 -> 2.44 | L74: -0.6687964215 | M74: 0.2143895331 | N74: =M74*(452/G73) -> 0.2079486459 | O74: 12996.79037 | P74: 12.99679037 | Q74: =((P74*10^-12)*(G73*617.9))*10^-6*10^9*10^3 -> 3.742314014 | R74: =1-(P74/P73) -> -0.009476290446
E75: ='Example Assay Info'!$H$3 -> 312500 | F75: =IF('Example Cq data'!$B$6="","",'Example Cq data'!$B$6) -> 19.31 | H75: ` | I75: 19.31 | J75: 0 | K75: =I75-I74 -> 2.47 | L75: -1.372213834 | M75: 0.0424410545 | N75: =M75*(452/G73) -> 0.04116600137 | O75: 12864.37543 | P75: 12.86437543 | Q75: =((P75*10^-12)*(G73*617.9))*10^-6*10^9*10^3 -> 3.70418627 | R75: =1-(P75/P73) -> 0.0008085367067
E76: ='Example Assay Info'!$H$4 -> 1562500 | F76: =IF('Example Cq data'!$B$7="","",'Example Cq data'!$B$7) -> 21.86 | I76: 21.86 | J76: 0 | K76: =I76-I75 -> 2.55 | L76: -2.098413997 | M76: 0.007972343511 | N76: =M76*(452/G73) -> 0.007732831045 | O76: 12082.54851 | P76: 12.08254851 | Q76: =((P76*10^-12)*(G73*617.9))*10^-6*10^9*10^3 -> 3.479065933 | R76: =1-(P76/P73) -> 0.06153397083
C77: 2 | D77: =IF('Example Assay Info'!$B$6="","",'Example Assay Info'!$B$6) -> Connect_2 | E77: ='Example Assay Info'!$H$1 -> 12500 | F77: =IF('Example Cq data'!$B$16="","",'Example Cq data'!$B$16) -> 14.9 | G77: =IF('Example Assay Info'!$C$6="","",'Example Assay Info'!$C$6) -> 458 | I77: 14.9 | J77: 0 | K77: - | L77: -0.116314729 | M77: 0.7650419874 | N77: =M77*(452/G77) -> 0.7550196033 | O77: 9437.745041 | P77: 9.437745041 | Q77: =((P77*10^-12)*(G77*617.9))*10^-6*10^9*10^3 -> 2.670864859 | R77: - | S77: =AVERAGE(O77:O80) -> 9280.750187 | T77: =AVERAGE(P77:P80) -> 9.280750187 | U77: =AVERAGE(Q77:Q80) -> 2.626435598
E78: ='Example Assay Info'!$H$2 -> 62500 | F78: =IF('Example Cq data'!$B$17="","",'Example Cq data'!$B$17) -> 17.36 | I78: 17.36 | J78: 0 | K78: =I78-I77 -> 2.46 | L78: -0.8168842978 | M78: 0.1524458837 | N78: =M78*(452/G77) -> 0.1504487761 | O78: 9403.048504 | P78: 9.403048504 | Q78: =((P78*10^-12)*(G77*617.9))*10^-6*10^9*10^3 -> 2.661045801 | R78: =1-(P78/P77) -> 0.003676358771
E79: ='Example Assay Info'!$H$3 -> 312500 | F79: =IF('Example Cq data'!$B$18="","",'Example Cq data'!$B$18) -> 19.89 | H79: ` | I79: 19.89 | J79: 0 | K79: =I79-I78 -> 2.53 | L79: -1.537388773 | M79: 0.02901424186 | N79: =M79*(452/G77) -> 0.02863414263 | O79: 8948.16957 | P79: 8.94816957 | Q79: =((P79*10^-12)*(G77*617.9))*10^-6*10^9*10^3 -> 2.532315882 | R79: =1-(P79/P77) -> 0.05187419965
E80: ='Example Assay Info'!$H$4 -> 1562500 | F80: =IF('Example Cq data'!$B$19="","",'Example Cq data'!$B$19) -> 22.28 | I80: 22.28 | J80: 0 | K80: =I80-I79 -> 2.39 | L80: -2.218023435 | M80: 0.006053082104 | N80: =M80*(452/G77) -> 0.005973784085 | O80: 9334.037632 | P80: 9.334037632 | Q80: =((P80*10^-12)*(G77*617.9))*10^-6*10^9*10^3 -> 2.641515849 | R80: =1-(P80/P77) -> 0.01098857916
C81: 3 | D81: =IF('Example Assay Info'!$B$7="","",'Example Assay Info'!$B$7) -> Connect_3 | E81: ='Example Assay Info'!$H$1 -> 12500 | F81: =IF('Example Cq data'!$B$28="","",'Example Cq data'!$B$28) -> 14.47 | G81: =IF('Example Assay Info'!$C$7="","",'Example Assay Info'!$C$7) -> 458 | I81: 14.47 | J81: 0 | K81: - | L81: 0.006142553299 | M81: 1.014244248 | N81: =M81*(452/G81) -> 1.000957205 | O81: 12511.96507 | P81: 12.51196507 | Q81: =((P81*10^-12)*(G81*617.9))*10^-6*10^9*10^3 -> 3.540863592 | R81: - | S81: =AVERAGE(O81:O84) -> 12129.63559 | T81: =AVERAGE(P81:P84) -> 12.12963559 | U81: =AVERAGE(Q81:Q84) -> 3.432665038
E82: ='Example Assay Info'!$H$2 -> 62500 | F82: =IF('Example Cq data'!$B$29="","",'Example Cq data'!$B$29) -> 16.96 | I82: 16.96 | J82: 0 | K82: =I82-I81 -> 2.49 | L82: -0.7029705468 | M82: 0.1981661415 | N82: =M82*(452/G81) -> 0.1955700785 | O82: 12223.1299 | P82: 12.2231299 | Q82: =((P82*10^-12)*(G81*617.9))*10^-6*10^9*10^3 -> 3.459123761 | R82: =1-(P82/P81) -> 0.02308471602
E83: ='Example Assay Info'!$H$3 -> 312500 | F83: =IF('Example Cq data'!$B$30="","",'Example Cq data'!$B$30) -> 19.39 | H83: ` | I83: 19.39 | J83: 0 | K83: =I83-I82 -> 2.43 | L83: -1.394996584 | M83: 0.04027202018 | N83: =M83*(452/G81) -> 0.03974443913 | O83: 12420.13723 | P83: 12.42013723 | Q83: =((P83*10^-12)*(G81*617.9))*10^-6*10^9*10^3 -> 3.514876479 | R83: =1-(P83/P81) -> 0.007339201929
E84: ='Example Assay Info'!$H$4 -> 1562500 | F84: =IF('Example Cq data'!$B$31="","",'Example Cq data'!$B$31) -> 21.98 | I84: 21.98 | J84: 0 | K84: =I84-I83 -> 2.59 | L84: -2.132588122 | M84: 0.007369056357 | N84: =M84*(452/G81) -> 0.007272518501 | O84: 11363.31016 | P84: 11.36331016 | Q84: =((P84*10^-12)*(G81*617.9))*10^-6*10^9*10^3 -> 3.215796321 | R84: =1-(P84/P81) -> 0.09180451679
C85: 4 | D85: =IF('Example Assay Info'!$B$8="","",'Example Assay Info'!$B$8) -> Connect_4 | E85: ='Example Assay Info'!$H$1 -> 12500 | F85: =IF('Example Cq data'!$B$40="","",'Example Cq data'!$B$40) -> 14.68 | G85: =IF('Example Assay Info'!$C$8="","",'Example Assay Info'!$C$8) -> 465 | I85: 14.68 | J85: 0 | K85: - | L85: -0.05366216599 | M85: 0.8837671081 | N85: =M85*(452/G85) -> 0.8590596405 | O85: 10738.24551 | P85: 10.73824551 | Q85: =((P85*10^-12)*(G85*617.9))*10^-6*10^9*10^3 -> 3.085350283 | R85: - | S85: =AVERAGE(O85:O88) -> 10785.76843 | T85: =AVERAGE(P85:P88) -> 10.78576843 | U85: =AVERAGE(Q85:Q88) -> 3.099004736
E86: ='Example Assay Info'!$H$2 -> 62500 | F86: =IF('Example Cq data'!$B$41="","",'Example Cq data'!$B$41) -> 17.15 | I86: 17.15 | J86: 0 | K86: =I86-I85 -> 2.47 | L86: -0.7570795785 | M86: 0.1749526083 | N86: =M86*(452/G85) -> 0.1700614601 | O86: 10628.84125 | P86: 10.62884125 | Q86: =((P86*10^-12)*(G85*617.9))*10^-6*10^9*10^3 -> 3.05391587 | R86: =1-(P86/P85) -> 0.01018828005
E87: ='Example Assay Info'!$H$3 -> 312500 | F87: =IF('Example Cq data'!$B$42="","",'Example Cq data'!$B$42) -> 19.59 | H87: ` | I87: 19.59 | J87: 0 | K87: =I87-I86 -> 2.44 | L87: -1.45195346 | M87: 0.035322102 | N87: =M87*(452/G85) -> 0.03433460237 | O87: 10729.56324 | P87: 10.72956324 | Q87: =((P87*10^-12)*(G85*617.9))*10^-6*10^9*10^3 -> 3.082855664 | R87: =1-(P87/P85) -> 0.0008085367067
E88: ='Example Assay Info'!$H$4 -> 1562500 | F88: =IF('Example Cq data'!$B$43="","",'Example Cq data'!$B$43) -> 22 | I88: 22 | J88: 0 | K88: =I88-I87 -> 2.41 | L88: -2.13828381 | M88: 0.007273043589 | N88: =M88*(452/G85) -> 0.007069711188 | O88: 11046.42373 | P88: 11.04642373 | Q88: =((P88*10^-12)*(G85*617.9))*10^-6*10^9*10^3 -> 3.173897129 | R88: =1-(P88/P85) -> -0.02869912255
C89: 5 | D89: =IF('Example Assay Info'!$B$9="","",'Example Assay Info'!$B$9) -> Connect_5 | E89: ='Example Assay Info'!$H$1 -> 12500 | F89: =IF('Example Cq data'!$B$52="","",'Example Cq data'!$B$52) -> 14.26 | G89: =IF('Example Assay Info'!$C$9="","",'Example Assay Info'!$C$9) -> 467 | I89: 14.26 | J89: 0 | K89: - | L89: 0.06594727258 | M89: 1.163984702 | N89: =M89*(452/G89) -> 1.126597613 | O89: 14082.47017 | P89: 14.08247017 | Q89: =((P89*10^-12)*(G89*617.9))*10^-6*10^9*10^3 -> 4.063627733 | R89: - | S89: =AVERAGE(O89:O92) -> 13736.29019 | T89: =AVERAGE(P89:P92) -> 13.73629019 | U89: =AVERAGE(Q89:Q92) -> 3.963734281
E90: ='Example Assay Info'!$H$2 -> 62500 | F90: =IF('Example Cq data'!$B$53="","",'Example Cq data'!$B$53) -> 16.79 | I90: 16.79 | J90: 0 | K90: =I90-I89 -> 2.53 | L90: -0.6545572026 | M90: 0.2215352285 | N90: =M90*(452/G89) -> 0.2144195359 | O90: 13401.22099 | P90: 13.40122099 | Q90: =((P90*10^-12)*(G89*617.9))*10^-6*10^9*10^3 -> 3.867046949 | R90: =1-(P90/P89) -> 0.04837568727
E91: ='Example Assay Info'!$H$3 -> 312500 | F91: =IF('Example Cq data'!$B$54="","",'Example Cq data'!$B$54) -> 19.17 | H91: ` | I91: 19.17 | J91: 0 | K91: =I91-I90 -> 2.38 | L91: -1.332344021 | M91: 0.04652174311 | N91: =M91*(452/G89) -> 0.04502746871 | O91: 14071.08397 | P91: 14.07108397 | Q91: =((P91*10^-12)*(G89*617.9))*10^-6*10^9*10^3 -> 4.060342141 | R91: =1-(P91/P89) -> 0.0008085367067
E92: ='Example Assay Info'!$H$4 -> 1562500 | F92: =IF('Example Cq data'!$B$55="","",'Example Cq data'!$B$55) -> 21.7 | I92: 21.7 | J92: 0 | K92: =I92-I91 -> 2.53 | L92: -2.052848496 | M92: 0.008854244363 | N92: =M92*(452/G89) -> 0.008569846793 | O92: 13390.38561 | P92: 13.39038561 | Q92: =((P92*10^-12)*(G89*617.9))*10^-6*10^9*10^3 -> 3.863920299 | R92: =1-(P92/P89) -> 0.04914511045
C93: 6 | D93: =IF('Example Assay Info'!$B$10="","",'Example Assay Info'!$B$10) -> Connect_6 | E93: ='Example Assay Info'!$H$1 -> 12500 | F93: =IF('Example Cq data'!$B$64="","",'Example Cq data'!$B$64) -> 14.78 | G93: =IF('Example Assay Info'!$C$10="","",'Example Assay Info'!$C$10) -> 470 | I93: 14.78 | J93: 0 | K93: - | L93: -0.08214060374 | M93: 0.8276741591 | N93: =M93*(452/G93) -> 0.7959759998 | O93: 9949.699998 | P93: 9.949699998 | Q93: =((P93*10^-12)*(G93*617.9))*10^-6*10^9*10^3 -> 2.889522225 | R93: - | S93: =AVERAGE(O93:O96) -> 10132.01349 | T93: =AVERAGE(P93:P96) -> 10.13201349 | U93: =AVERAGE(Q93:Q96) -> 2.942468432
E94: ='Example Assay Info'!$H$2 -> 62500 | F94: =IF('Example Cq data'!$B$65="","",'Example Cq data'!$B$65) -> 17.11 | I94: 17.11 | J94: 0 | K94: =I94-I93 -> 2.33 | L94: -0.7456882034 | M94: 0.1796022597 | N94: =M94*(452/G93) -> 0.1727238753 | O94: 10795.24221 | P94: 10.79524221 | Q94: =((P94*10^-12)*(G93*617.9))*10^-6*10^9*10^3 -> 3.135078675 | R94: =1-(P94/P93) -> -0.08498167878
E95: ='Example Assay Info'!$H$3 -> 312500 | F95: =IF('Example Cq data'!$B$66="","",'Example Cq data'!$B$66) -> 19.68 | H95: ` | I95: 19.68 | J95: 0 | K95: =I95-I94 -> 2.57 | L95: -1.477584054 | M95: 0.03329783112 | N95: =M95*(452/G93) -> 0.03202259503 | O95: 10007.06095 | P95: 10.00706095 | Q95: =((P95*10^-12)*(G93*617.9))*10^-6*10^9*10^3 -> 2.906180591 | R95: =1-(P95/P93) -> -0.005765093432
E96: ='Example Assay Info'!$H$4 -> 1562500 | F96: =IF('Example Cq data'!$B$67="","",'Example Cq data'!$B$67) -> 22.17 | I96: 22.17 | J96: 0 | K96: =I96-I95 -> 2.49 | L96: -2.186697154 | M96: 0.006505832029 | N96: =M96*(452/G93) -> 0.006256672504 | O96: 9776.050788 | P96: 9.776050788 | Q96: =((P96*10^-12)*(G93*617.9))*10^-6*10^9*10^3 -> 2.839092237 | R96: =1-(P96/P93) -> 0.01745270814
C97: 7 | D97: =IF('Example Assay Info'!$B$11="","",'Example Assay Info'!$B$11) -> Connect_7 | E97: ='Example Assay Info'!$H$1 -> 12500 | F97: =IF('Example Cq data'!$B$76="","",'Example Cq data'!$B$76) -> 14.53 | G97: =IF('Example Assay Info'!$C$11="","",'Example Assay Info'!$C$11) -> 465 | I97: 14.53 | J97: 0 | K97: - | L97: -0.01094450935 | M97: 0.975114222 | N97: =M97*(452/G97) -> 0.9478529642 | O97: 11848.16205 | P97: 11.84816205 | Q97: =((P97*10^-12)*(G97*617.9))*10^-6*10^9*10^3 -> 3.404255389 | R97: - | S97: =AVERAGE(O97:O100) -> 11356.08748 | T97: =AVERAGE(P97:P100) -> 11.35608748 | U97: =AVERAGE(Q97:Q100) -> 3.2628708
E98: ='Example Assay Info'!$H$2 -> 62500 | F98: =IF('Example Cq data'!$B$77="","",'Example Cq data'!$B$77) -> 17.04 | I98: 17.04 | J98: 0 | K98: =I98-I97 -> 2.51 | L98: -0.725753297 | M98: 0.1880384675 | N98: =M98*(452/G97) -> 0.1827814781 | O98: 11423.84238 | P98: 11.42384238 | Q98: =((P98*10^-12)*(G97*617.9))*10^-6*10^9*10^3 -> 3.282338376 | R98: =1-(P98/P97) -> 0.035813122
E99: ='Example Assay Info'!$H$3 -> 312500 | F99: =IF('Example Cq data'!$B$78="","",'Example Cq data'!$B$78) -> 19.48 | H99: ` | I99: 19.48 | J99: 0 | K99: =I99-I98 -> 2.44 | L99: -1.420627178 | M99: 0.03796407492 | N99: =M99*(452/G97) -> 0.03690271369 | O99: 11532.09803 | P99: 11.53209803 | Q99: =((P99*10^-12)*(G97*617.9))*10^-6*10^9*10^3 -> 3.313442768 | R99: =1-(P99/P97) -> 0.0266762071
E100: ='Example Assay Info'!$H$4 -> 1562500 | F100: =IF('Example Cq data'!$B$79="","",'Example Cq data'!$B$79) -> 22.06 | I100: 22.06 | J100: 0 | K100: =I100-I99 -> 2.58 | L100: -2.155370872 | M100: 0.006992446106 | N100: =M100*(452/G97) -> 0.006796958365 | O100: 10620.24745 | P100: 10.62024745 | Q100: =((P100*10^-12)*(G97*617.9))*10^-6*10^9*10^3 -> 3.051446667 | R100: =1-(P100/P97) -> 0.1036375601
C101: 8 | D101: =IF('Example Assay Info'!$B$12="","",'Example Assay Info'!$B$12) -> Connect_8 | E101: ='Example Assay Info'!$H$1 -> 12500 | F101: =IF('Example Cq data'!$B$88="","",'Example Cq data'!$B$88) -> 14.56 | G101: =IF('Example Assay Info'!$C$12="","",'Example Assay Info'!$C$12) -> 470 | I101: 14.56 | J101: 0 | K101: - | L101: -0.01948804068 | M101: 0.9561190236 | N101: =M101*(452/G101) -> 0.9195016993 | O101: 11493.77124 | P101: 11.49377124 | Q101: =((P101*10^-12)*(G101*617.9))*10^-6*10^9*10^3 -> 3.337940588 | R101: - | S101: =AVERAGE(O101:O104) -> 11376.29381 | T101: =AVERAGE(P101:P104) -> 11.37629381 | U101: =AVERAGE(Q101:Q104) -> 3.303823615
E102: ='Example Assay Info'!$H$2 -> 62500 | F102: =IF('Example Cq data'!$B$89="","",'Example Cq data'!$B$89) -> 17.07 | I102: 17.07 | J102: 0 | K102: =I102-I101 -> 2.51 | L102: -0.7342968283 | M102: 0.1843754833 | N102: =M102*(452/G101) -> 0.1773142946 | O102: 11082.14341 | P102: 11.08214341 | Q102: =((P102*10^-12)*(G101*617.9))*10^-6*10^9*10^3 -> 3.218398514 | R102: =1-(P102/P101) -> 0.035813122
E103: ='Example Assay Info'!$H$3 -> 312500 | F103: =IF('Example Cq data'!$B$90="","",'Example Cq data'!$B$90) -> 19.45 | H103: ` | I103: 19.45 | J103: 0 | K103: =I103-I102 -> 2.38 | L103: -1.412083647 | M103: 0.03871830647 | N103: =M103*(452/G101) -> 0.03723547771 | O103: 11636.08679 | P103: 11.63608679 | Q103: =((P103*10^-12)*(G101*617.9))*10^-6*10^9*10^3 -> 3.379270872 | R103: =1-(P103/P101) -> -0.01238197115
E104: ='Example Assay Info'!$H$4 -> 1562500 | F104: =IF('Example Cq data'!$B$91="","",'Example Cq data'!$B$91) -> 21.95 | I104: 21.95 | J104: 0 | K104: =I104-I103 -> 2.5 | L104: -2.124044591 | M104: 0.007515457259 | N104: =M104*(452/G101) -> 0.007227631236 | O104: 11293.17381 | P104: 11.29317381 | Q104: =((P104*10^-12)*(G101*617.9))*10^-6*10^9*10^3 -> 3.279684485 | R104: =1-(P104/P101) -> 0.01745270814
C105: 9 | D105: =IF('Example Assay Info'!$B$5="","",'Example Assay Info'!$B$5) -> Connect_1 | E105: ='Example Assay Info'!$H$1 -> 12500 | F105: =IF('Example Cq data'!$B$8="","",'Example Cq data'!$B$8) -> 14.35 | G105: =IF('Example Assay Info'!$C$5="","",'Example Assay Info'!$C$5) -> 466 | I105: 14.35 | J105: 0 | K105: - | L105: 0.0403166786 | M105: 1.097278017 | N105: =M105*(452/G105) -> 1.064312583 | O105: 13303.90729 | P105: 13.30390729 | Q105: =((P105*10^-12)*(G105*617.9))*10^-6*10^9*10^3 -> 3.83074569 | R105: - | S105: =AVERAGE(O105:O108) -> 12138.99234 | T105: =AVERAGE(P105:P108) -> 12.13899234 | U105: =AVERAGE(Q105:Q108) -> 3.49531845
E106: ='Example Assay Info'!$H$2 -> 62500 | F106: =IF('Example Cq data'!$B$9="","",'Example Cq data'!$B$9) -> 16.89 | I106: 16.89 | J106: 0 | K106: =I106-I105 -> 2.54 | L106: -0.6830356404 | M106: 0.2074743247 | N106: =M106*(452/G105) -> 0.2012411905 | O106: 12577.5744 | P106: 12.5775744 | Q106: =((P106*10^-12)*(G105*617.9))*10^-6*10^9*10^3 -> 3.621604382 | R106: =1-(P106/P105) -> 0.05459545598
E107: ='Example Assay Info'!$H$3 -> 312500 | F107: =IF('Example Cq data'!$B$10="","",'Example Cq data'!$B$10) -> 19.52 | H107: ` | I107: 19.52 | J107: 0 | K107: =I107-I106 -> 2.63 | L107: -1.432018553 | M107: 0.03698123809 | N107: =M107*(452/G105) -> 0.03587021377 | O107: 11209.4418 | P107: 11.2094418 | Q107: =((P107*10^-12)*(G105*617.9))*10^-6*10^9*10^3 -> 3.227662366 | R107: =1-(P107/P105) -> 0.1574323574
E108: ='Example Assay Info'!$H$4 -> 1562500 | F108: =IF('Example Cq data'!$B$11="","",'Example Cq data'!$B$11) -> 21.94 | I108: 21.94 | J108: 0 | K108: =I108-I107 -> 2.42 | L108: -2.121196747 | M108: 0.007564901073 | N108: =M108*(452/G105) -> 0.007337629366 | O108: 11465.04589 | P108: 11.46504589 | Q108: =((P108*10^-12)*(G105*617.9))*10^-6*10^9*10^3 -> 3.301261363 | R108: =1-(P108/P105) -> 0.1382196496
C109: 10 | D109: =IF('Example Assay Info'!$B$6="","",'Example Assay Info'!$B$6) -> Connect_2 | E109: ='Example Assay Info'!$H$1 -> 12500 | F109: =IF('Example Cq data'!$B$20="","",'Example Cq data'!$B$20) -> 14.93 | G109: =IF('Example Assay Info'!$C$6="","",'Example Assay Info'!$C$6) -> 458 | I109: 14.93 | J109: 0 | K109: - | L109: -0.1248582604 | M109: 0.7501389904 | N109: =M109*(452/G109) -> 0.7403118421 | O109: 9253.898026 | P109: 9.253898026 | Q109: =((P109*10^-12)*(G109*617.9))*10^-6*10^9*10^3 -> 2.618836484 | R109: - | S109: =AVERAGE(O109:O112) -> 8652.472682 | T109: =AVERAGE(P109:P112) -> 8.652472682 | U109: =AVERAGE(Q109:Q112) -> 2.448634195
E110: ='Example Assay Info'!$H$2 -> 62500 | F110: =IF('Example Cq data'!$B$21="","",'Example Cq data'!$B$21) -> 17.4 | I110: 17.4 | J110: 0 | K110: =I110-I109 -> 2.47 | L110: -0.8282756729 | M110: 0.1484992729 | N110: =M110*(452/G109) -> 0.1465538675 | O110: 9159.616721 | P110: 9.159616721 | Q110: =((P110*10^-12)*(G109*617.9))*10^-6*10^9*10^3 -> 2.592155045 | R110: =1-(P110/P109) -> 0.01018828005
E111: ='Example Assay Info'!$H$3 -> 312500 | F111: =IF('Example Cq data'!$B$22="","",'Example Cq data'!$B$22) -> 20 | H111: ` | I111: 20 | J111: 0 | K111: =I111-I110 -> 2.6 | L111: -1.568715055 | M111: 0.0269951003 | N111: =M111*(452/G109) -> 0.0266414527 | O111: 8325.453969 | P111: 8.325453969 | Q111: =((P111*10^-12)*(G109*617.9))*10^-6*10^9*10^3 -> 2.356088487 | R111: =1-(P111/P109) -> 0.1003300505
E112: ='Example Assay Info'!$H$4 -> 1562500 | F112: =IF('Example Cq data'!$B$23="","",'Example Cq data'!$B$23) -> 22.54 | I112: 22.54 | J112: 0 | K112: =I112-I111 -> 2.54 | L112: -2.292067373 | M112: 0.005104258099 | N112: =M112*(452/G109) -> 0.005037390089 | O112: 7870.922014 | P112: 7.870922014 | Q112: =((P112*10^-12)*(G109*617.9))*10^-6*10^9*10^3 -> 2.227456762 | R112: =1-(P112/P109) -> 0.1494479417
C113: 11 | D113: =IF('Example Assay Info'!$B$7="","",'Example Assay Info'!$B$7) -> Connect_3 | E113: ='Example Assay Info'!$H$1 -> 12500 | F113: =IF('Example Cq data'!$B$32="","",'Example Cq data'!$B$32) -> 14.5 | G113: =IF('Example Assay Info'!$C$7="","",'Example Assay Info'!$C$7) -> 458 | I113: 14.5 | J113: 0 | K113: - | L113: -0.002400978027 | M113: 0.9944867976 | N113: =M113*(452/G113) -> 0.9814585863 | O113: 12268.23233 | P113: 12.26823233 | Q113: =((P113*10^-12)*(G113*617.9))*10^-6*10^9*10^3 -> 3.471887666 | R113: - | S113: =AVERAGE(O113:O116) -> 11474.27598 | T113: =AVERAGE(P113:P116) -> 11.47427598 | U113: =AVERAGE(Q113:Q116) -> 3.24719945
E114: ='Example Assay Info'!$H$2 -> 62500 | F114: =IF('Example Cq data'!$B$33="","",'Example Cq data'!$B$33) -> 17.06 | I114: 17.06 | J114: 0 | K114: =I114-I113 -> 2.56 | L114: -0.7314489845 | M114: 0.1855884803 | N114: =M114*(452/G113) -> 0.1831571901 | O114: 11447.32438 | P114: 11.44732438 | Q114: =((P114*10^-12)*(G113*617.9))*10^-6*10^9*10^3 -> 3.239572195 | R114: =1-(P114/P113) -> 0.06691330282
E115: ='Example Assay Info'!$H$3 -> 312500 | F115: =IF('Example Cq data'!$B$34="","",'Example Cq data'!$B$34) -> 19.54 | H115: ` | I115: 19.54 | J115: 0 | K115: =I115-I114 -> 2.48 | L115: -1.437714241 | M115: 0.03649940284 | N115: =M115*(452/G113) -> 0.03602124473 | O115: 11256.63898 | P115: 11.25663898 | Q115: =((P115*10^-12)*(G113*617.9))*10^-6*10^9*10^3 -> 3.185608569 | R115: =1-(P115/P113) -> 0.08245632487
E116: ='Example Assay Info'!$H$4 -> 1562500 | F116: =IF('Example Cq data'!$B$35="","",'Example Cq data'!$B$35) -> 22.04 | I116: 22.04 | J116: 0 | K116: =I116-I115 -> 2.5 | L116: -2.149675185 | M116: 0.007084754656 | N116: =M116*(452/G113) -> 0.006991941276 | O116: 10924.90824 | P116: 10.92490824 | Q116: =((P116*10^-12)*(G113*617.9))*10^-6*10^9*10^3 -> 3.091729368 | R116: =1-(P116/P113) -> 0.1094961399
C117: 12 | D117: =IF('Example Assay Info'!$B$8="","",'Example Assay Info'!$B$8) -> Connect_4 | E117: ='Example Assay Info'!$H$1 -> 12500 | F117: =IF('Example Cq data'!$B$44="","",'Example Cq data'!$B$44) -> 14.6 | G117: =IF('Example Assay Info'!$C$8="","",'Example Assay Info'!$C$8) -> 465 | I117: 14.6 | J117: 0 | K117: - | L117: -0.03087941578 | M117: 0.9313664385 | N117: =M117*(452/G117) -> 0.905328237 | O117: 11316.60296 | P117: 11.31660296 | Q117: =((P117*10^-12)*(G117*617.9))*10^-6*10^9*10^3 -> 3.251525971 | R117: - | S117: =AVERAGE(O117:O120) -> 10517.90155 | T117: =AVERAGE(P117:P120) -> 10.51790155 | U117: =AVERAGE(Q117:Q120) -> 3.022040286
E118: ='Example Assay Info'!$H$2 -> 62500 | F118: =IF('Example Cq data'!$B$45="","",'Example Cq data'!$B$45) -> 17.17 | I118: 17.17 | J118: 0 | K118: =I118-I117 -> 2.57 | L118: -0.7627752661 | M118: 0.1726731191 | N118: =M118*(452/G117) -> 0.1678456985 | O118: 10490.35616 | P118: 10.49035616 | Q118: =((P118*10^-12)*(G117*617.9))*10^-6*10^9*10^3 -> 3.014125848 | R118: =1-(P118/P117) -> 0.07301191061
E119: ='Example Assay Info'!$H$3 -> 312500 | F119: =IF('Example Cq data'!$B$46="","",'Example Cq data'!$B$46) -> 19.64 | H119: ` | I119: 19.64 | J119: 0 | K119: =I119-I118 -> 2.47 | L119: -1.466192679 | M119: 0.0341827754 | N119: =M119*(452/G117) -> 0.03322712791 | O119: 10383.47747 | P119: 10.38347747 | Q119: =((P119*10^-12)*(G117*617.9))*10^-6*10^9*10^3 -> 2.983417089 | R119: =1-(P119/P117) -> 0.08245632487
E120: ='Example Assay Info'!$H$4 -> 1562500 | F120: =IF('Example Cq data'!$B$47="","",'Example Cq data'!$B$47) -> 22.17 | I120: 22.17 | J120: 0 | K120: =I120-I119 -> 2.53 | L120: -2.186697154 | M120: 0.006505832029 | N120: =M120*(452/G117) -> 0.006323948553 | O120: 9881.169613 | P120: 9.881169613 | Q120: =((P120*10^-12)*(G117*617.9))*10^-6*10^9*10^3 -> 2.839092237 | R120: =1-(P120/P117) -> 0.1268431308
C121: 13 | D121: =IF('Example Assay Info'!$B$9="","",'Example Assay Info'!$B$9) -> Connect_5 | E121: ='Example Assay Info'!$H$1 -> 12500 | F121: =IF('Example Cq data'!$B$56="","",'Example Cq data'!$B$56) -> 14.4 | G121: =IF('Example Assay Info'!$C$9="","",'Example Assay Info'!$C$9) -> 467 | I121: 14.4 | J121: 0 | K121: - | L121: 0.02607745973 | M121: 1.061884936 | N121: =M121*(452/G121) -> 1.027777282 | O121: 12847.21603 | P121: 12.84721603 | Q121: =((P121*10^-12)*(G121*617.9))*10^-6*10^9*10^3 -> 3.707183665 | R121: - | S121: =AVERAGE(O121:O124) -> 13035.95782 | T121: =AVERAGE(P121:P124) -> 13.03595782 | U121: =AVERAGE(Q121:Q124) -> 3.761646865
E122: ='Example Assay Info'!$H$2 -> 62500 | F122: =IF('Example Cq data'!$B$57="","",'Example Cq data'!$B$57) -> 16.77 | I122: 16.77 | J122: 0 | K122: =I122-I121 -> 2.37 | L122: -0.648861515 | M122: 0.2244597552 | N122: =M122*(452/G121) -> 0.2172501271 | O122: 13578.13294 | P122: 13.57813294 | Q122: =((P122*10^-12)*(G121*617.9))*10^-6*10^9*10^3 -> 3.918096538 | R122: =1-(P122/P121) -> -0.05689301962
E123: ='Example Assay Info'!$H$3 -> 312500 | F123: =IF('Example Cq data'!$B$58="","",'Example Cq data'!$B$58) -> 19.27 | H123: ` | I123: 19.27 | J123: 0 | K123: =I123-I122 -> 2.5 | L123: -1.360822459 | M123: 0.04356899488 | N123: =M123*(452/G121) -> 0.0421695625 | O123: 13177.98828 | P123: 13.17798828 | Q123: =((P123*10^-12)*(G121*617.9))*10^-6*10^9*10^3 -> 3.802631074 | R123: =1-(P123/P121) -> -0.0257466093
E124: ='Example Assay Info'!$H$4 -> 1562500 | F124: =IF('Example Cq data'!$B$59="","",'Example Cq data'!$B$59) -> 21.8 | I124: 21.8 | J124: 0 | K124: =I124-I123 -> 2.53 | L124: -2.081326934 | M124: 0.008292262963 | N124: =M124*(452/G121) -> 0.008025916187 | O124: 12540.49404 | P124: 12.54049404 | Q124: =((P124*10^-12)*(G121*617.9))*10^-6*10^9*10^3 -> 3.618676182 | R124: =1-(P124/P121) -> 0.02387458789
C125: 14 | D125: =IF('Example Assay Info'!$B$10="","",'Example Assay Info'!$B$10) -> Connect_6 | E125: ='Example Assay Info'!$H$1 -> 12500 | F125: =IF('Example Cq data'!$B$68="","",'Example Cq data'!$B$68) -> 14.74 | G125: =IF('Example Assay Info'!$C$10="","",'Example Assay Info'!$C$10) -> 470 | I125: 14.74 | J125: 0 | K125: - | L125: -0.07074922864 | M125: 0.8496709525 | N125: =M125*(452/G125) -> 0.8171303628 | O125: 10214.12953 | P125: 10.21412953 | Q125: =((P125*10^-12)*(G125*617.9))*10^-6*10^9*10^3 -> 2.966316001 | R125: - | S125: =AVERAGE(O125:O128) -> 9835.890839 | T125: =AVERAGE(P125:P128) -> 9.835890839 | U125: =AVERAGE(Q125:Q128) -> 2.856470566
E126: ='Example Assay Info'!$H$2 -> 62500 | F126: =IF('Example Cq data'!$B$69="","",'Example Cq data'!$B$69) -> 17.22 | I126: 17.22 | J126: 0 | K126: =I126-I125 -> 2.48 | L126: -0.7770144849 | M126: 0.167103488 | N126: =M126*(452/G125) -> 0.1607037799 | O126: 10043.98624 | P126: 10.04398624 | Q126: =((P126*10^-12)*(G125*617.9))*10^-6*10^9*10^3 -> 2.916904177 | R126: =1-(P126/P125) -> 0.01665763974
E127: ='Example Assay Info'!$H$3 -> 312500 | F127: =IF('Example Cq data'!$B$70="","",'Example Cq data'!$B$70) -> 19.72 | H127: ` | I127: 19.72 | J127: 0 | K127: =I127-I126 -> 2.5 | L127: -1.488975429 | M127: 0.03243579681 | N127: =M127*(452/G125) -> 0.03119357481 | O127: 9747.992127 | P127: 9.747992127 | Q127: =((P127*10^-12)*(G125*617.9))*10^-6*10^9*10^3 -> 2.830943638 | R127: =1-(P127/P125) -> 0.04563652793
E128: ='Example Assay Info'!$H$4 -> 1562500 | F128: =IF('Example Cq data'!$B$71="","",'Example Cq data'!$B$71) -> 22.24 | I128: 22.24 | J128: 0 | K128: =I128-I127 -> 2.52 | L128: -2.20663206 | M128: 0.006213952652 | N128: =M128*(452/G125) -> 0.005975971487 | O128: 9337.455448 | P128: 9.337455448 | Q128: =((P128*10^-12)*(G125*617.9))*10^-6*10^9*10^3 -> 2.711718449 | R128: =1-(P128/P125) -> 0.08582954461
C129: 15 | D129: =IF('Example Assay Info'!$B$11="","",'Example Assay Info'!$B$11) -> Connect_7 | E129: ='Example Assay Info'!$H$1 -> 12500 | F129: =IF('Example Cq data'!$B$80="","",'Example Cq data'!$B$80) -> 14.52 | G129: =IF('Example Assay Info'!$C$11="","",'Example Assay Info'!$C$11) -> 465 | I129: 14.52 | J129: 0 | K129: - | L129: -0.008096665578 | M129: 0.9815294492 | N129: =M129*(452/G129) -> 0.9540888409 | O129: 11926.11051 | P129: 11.92611051 | Q129: =((P129*10^-12)*(G129*617.9))*10^-6*10^9*10^3 -> 3.426651814 | R129: - | S129: =AVERAGE(O129:O132) -> 10909.86396 | T129: =AVERAGE(P129:P132) -> 10.90986396 | U129: =AVERAGE(Q129:Q132) -> 3.134660297
E130: ='Example Assay Info'!$H$2 -> 62500 | F130: =IF('Example Cq data'!$B$81="","",'Example Cq data'!$B$81) -> 17.12 | I130: 17.12 | J130: 0 | K130: =I130-I129 -> 2.6 | L130: -0.7485360472 | M130: 0.1784283884 | N130: =M130*(452/G129) -> 0.1734400678 | O130: 10840.00424 | P130: 10.84000424 | Q130: =((P130*10^-12)*(G129*617.9))*10^-6*10^9*10^3 -> 3.114587958 | R130: =1-(P130/P129) -> 0.09106961321
E131: ='Example Assay Info'!$H$3 -> 312500 | F131: =IF('Example Cq data'!$B$82="","",'Example Cq data'!$B$82) -> 19.59 | H131: ` | I131: 19.59 | J131: 0 | K131: =I131-I130 -> 2.47 | L131: -1.45195346 | M131: 0.035322102 | N131: =M131*(452/G129) -> 0.03433460237 | O131: 10729.56324 | P131: 10.72956324 | Q131: =((P131*10^-12)*(G129*617.9))*10^-6*10^9*10^3 -> 3.082855664 | R131: =1-(P131/P129) -> 0.1003300505
E132: ='Example Assay Info'!$H$4 -> 1562500 | F132: =IF('Example Cq data'!$B$83="","",'Example Cq data'!$B$83) -> 22.13 | I132: 22.13 | J132: 0 | K132: =I132-I131 -> 2.54 | L132: -2.175305779 | M132: 0.006678735147 | N132: =M132*(452/G129) -> 0.00649201782 | O132: 10143.77784 | P132: 10.14377784 | Q132: =((P132*10^-12)*(G129*617.9))*10^-6*10^9*10^3 -> 2.914545753 | R132: =1-(P132/P129) -> 0.1494479417
C133: 16 | D133: =IF('Example Assay Info'!$B$12="","",'Example Assay Info'!$B$12) -> Connect_8 | E133: ='Example Assay Info'!$H$1 -> 12500 | F133: =IF('Example Cq data'!$B$92="","",'Example Cq data'!$B$92) -> 14.51 | G133: =IF('Example Assay Info'!$C$12="","",'Example Assay Info'!$C$12) -> 470 | I133: 14.51 | J133: 0 | K133: - | L133: -0.005248821803 | M133: 0.9879868818 | N133: =M133*(452/G133) -> 0.9501490863 | O133: 11876.86358 | P133: 11.87686358 | Q133: =((P133*10^-12)*(G133*617.9))*10^-6*10^9*10^3 -> 3.449195583 | R133: - | S133: =AVERAGE(O133:O136) -> 11074.58529 | T133: =AVERAGE(P133:P136) -> 11.07458529 | U133: =AVERAGE(Q133:Q136) -> 3.216203537
E134: ='Example Assay Info'!$H$2 -> 62500 | F134: =IF('Example Cq data'!$B$93="","",'Example Cq data'!$B$93) -> 17.08 | I134: 17.08 | J134: 0 | K134: =I134-I133 -> 2.57 | L134: -0.7371446721 | M134: 0.1831704144 | N134: =M134*(452/G133) -> 0.1761553772 | O134: 11009.71108 | P134: 11.00971108 | Q134: =((P134*10^-12)*(G133*617.9))*10^-6*10^9*10^3 -> 3.197363223 | R134: =1-(P134/P133) -> 0.07301191061
E135: ='Example Assay Info'!$H$3 -> 312500 | F135: =IF('Example Cq data'!$B$94="","",'Example Cq data'!$B$94) -> 19.53 | H135: ` | I135: 19.53 | J135: 0 | K135: =I135-I134 -> 2.45 | L135: -1.434866397 | M135: 0.03673953057 | N135: =M135*(452/G133) -> 0.03533248472 | O135: 11041.40147 | P135: 11.04140147 | Q135: =((P135*10^-12)*(G133*617.9))*10^-6*10^9*10^3 -> 3.206566527 | R135: =1-(P135/P133) -> 0.07034366429
E136: ='Example Assay Info'!$H$4 -> 1562500 | F136: =IF('Example Cq data'!$B$95="","",'Example Cq data'!$B$95) -> 22.08 | I136: 22.08 | J136: 0 | K136: =I136-I135 -> 2.55 | L136: -2.16106656 | M136: 0.006901340261 | N136: =M136*(452/G133) -> 0.006637033612 | O136: 10370.36502 | P136: 10.37036502 | Q136: =((P136*10^-12)*(G133*617.9))*10^-6*10^9*10^3 -> 3.011688816 | R136: =1-(P136/P133) -> 0.1268431308

Sheet Example Summary
R1: CG000157 Rev A
C2: Library concentrations
C4: Sample name | D4: Library Concentration (pM) | E4: Library Concentration (nM) | F4: Library Concentration (ng/µL)
C5: ='Example Analysis'!D73 -> Connect_1 | D5: ='Example Analysis'!S73 -> 12704.62487 | E5: ='Example Analysis'!T73 -> 12.70462487 | F5: ='Example Analysis'!U73 -> 3.65818747
C6: ='Example Analysis'!D77 -> Connect_2 | D6: ='Example Analysis'!S77 -> 9280.750187 | E6: ='Example Analysis'!T77 -> 9.280750187 | F6: ='Example Analysis'!U77 -> 2.626435598
C7: ='Example Analysis'!D81 -> Connect_3 | D7: ='Example Analysis'!S81 -> 12129.63559 | E7: ='Example Analysis'!T81 -> 12.12963559 | F7: ='Example Analysis'!U81 -> 3.432665038
C8: ='Example Analysis'!D85 -> Connect_4 | D8: ='Example Analysis'!S85 -> 10785.76843 | E8: ='Example Analysis'!T85 -> 10.78576843 | F8: ='Example Analysis'!U85 -> 3.099004736
C9: ='Example Analysis'!D89 -> Connect_5 | D9: ='Example Analysis'!S89 -> 13736.29019 | E9: ='Example Analysis'!T89 -> 13.73629019 | F9: ='Example Analysis'!U89 -> 3.963734281
C10: ='Example Analysis'!D93 -> Connect_6 | D10: ='Example Analysis'!S93 -> 10132.01349 | E10: ='Example Analysis'!T93 -> 10.13201349 | F10: ='Example Analysis'!U93 -> 2.942468432
C11: ='Example Analysis'!D97 -> Connect_7 | D11: ='Example Analysis'!S97 -> 11356.08748 | E11: ='Example Analysis'!T97 -> 11.35608748 | F11: ='Example Analysis'!U97 -> 3.2628708
C12: ='Example Analysis'!D101 -> Connect_8 | D12: ='Example Analysis'!S101 -> 11376.29381 | E12: ='Example Analysis'!T101 -> 11.37629381 | F12: ='Example Analysis'!U101 -> 3.303823615
C13: ='Example Analysis'!D105 -> Connect_1 | D13: ='Example Analysis'!S105 -> 12138.99234 | E13: ='Example Analysis'!T105 -> 12.13899234 | F13: ='Example Analysis'!U105 -> 3.49531845
C14: ='Example Analysis'!D109 -> Connect_2 | D14: ='Example Analysis'!S109 -> 8652.472682 | E14: ='Example Analysis'!T109 -> 8.652472682 | F14: ='Example Analysis'!U109 -> 2.448634195
C15: ='Example Analysis'!D113 -> Connect_3 | D15: ='Example Analysis'!S113 -> 11474.27598 | E15: ='Example Analysis'!T113 -> 11.47427598 | F15: ='Example Analysis'!U113 -> 3.24719945
C16: ='Example Analysis'!D117 -> Connect_4 | D16: ='Example Analysis'!S117 -> 10517.90155 | E16: ='Example Analysis'!T117 -> 10.51790155 | F16: ='Example Analysis'!U117 -> 3.022040286
C17: ='Example Analysis'!D121 -> Connect_5 | D17: ='Example Analysis'!S121 -> 13035.95782 | E17: ='Example Analysis'!T121 -> 13.03595782 | F17: ='Example Analysis'!U121 -> 3.761646865
C18: ='Example Analysis'!D125 -> Connect_6 | D18: ='Example Analysis'!S125 -> 9835.890839 | E18: ='Example Analysis'!T125 -> 9.835890839 | F18: ='Example Analysis'!U125 -> 2.856470566
C19: ='Example Analysis'!D129 -> Connect_7 | D19: ='Example Analysis'!S129 -> 10909.86396 | E19: ='Example Analysis'!T129 -> 10.90986396 | F19: ='Example Analysis'!U129 -> 3.134660297
C20: ='Example Analysis'!D133 -> Connect_8 | D20: ='Example Analysis'!S133 -> 11074.58529 | E20: ='Example Analysis'!T133 -> 11.07458529 | F20: ='Example Analysis'!U133 -> 3.216203537
C22: Library ave concentrations and yields
C24: Sample name | D24: Ave Library Concentration (pM) | E24: Ave Library Concentration (nM) | F24: Stnd Dev of Library Conc (nM) | G24: Ave Conc of library (ng/µL) | H24: Library volume (µL) | I24: Available amount of library (ng)
C25: =C5 -> Connect_1 | D25: =AVERAGE(D5,D13) -> 12421.80861 | E25: =AVERAGE(E5,E13) -> 12.42180861 | F25: =STDEV(E5,E13) -> 0.3999625915 | G25: =AVERAGE(F5,F13) -> 3.57675296 | H25: =25 -> 25 | I25: =G25*H25 -> 89.41882401
C26: =C6 -> Connect_2 | D26: 8966.611435 | E26: 8.966611435 | F26: =STDEV(E6,E14) -> 0.4442592839 | G26: 2.537534896 | H26: =25 -> 25 | I26: =G26*H26 -> 63.4383724
C27: Connect_3 | D27: 11801.95579 | E27: 11.80195579 | F27: 0.463409221 | G27: 3.339932244 | H27: =25 -> 25 | I27: 83.4983061
C28: Connect_4 | D28: 10651.83499 | E28: 10.65183499 | F28: 0.1894104883 | G28: 3.060522511 | H28: 25 | I28: 76.51306279
C29: Connect_5 | D29: 13386.12401 | E29: 13.38612401 | F29: 0.4952097621 | G29: 3.862690573 | H29: 25 | I29: 96.56726432
C30: Connect_6 | D30: 9983.952162 | E30: 9.983952162 | F30: 0.2093903313 | G30: 2.899469499 | H30: 25 | I30: 72.48673748
C31: Connect_7 | D31: 11132.97572 | E31: 11.13297572 | F31: 0.3155276749 | G31: 3.198765549 | H31: 25 | I31: 79.96913871
C32: Connect_8 | D32: 11225.43955 | E32: 11.22543955 | F32: 0.2133401428 | G32: 3.260013576 | H32: 25 | I32: 81.5003394
